Workbook

Sheet Cover

Sheet Contents
C77: Key
C78: KPI | D78: Key Performance Indicator
C79: PI | D79: Performance Indicator
C80: Req | D80: Requirements that will help to develop future strategy or performance
C81: DPI | D81: Additional performance indicators specified by the Highways Monitor
C83: Version control
C84: V1.0 | D84: Highways England annual return published July 2020

Sheet PS1 - Making the Network safer
A1: Highways England Performance Monitoring Statements Year end 2019-20
A2: Statement PS1: Making the network safer | D2: For a definition of the metric and parameters for measuring and monitoring safety performance see Highways England’s Operational Metrics Manual
A3: Performance specification
B4: Source of baseline | C4: Actual | D4: Annual Baseline | E4: KPI/PI/ Req | F4: Difference | M4: Notes
A5: KPI
A6: KSI
A7: On-going reduction in Network KSIs to support a decrease of at least 40% by 31 December 2020 against the 2005-9 average baseline | G7: In 2018 KSI casualties have decreased by 30% per cent to 2,152 from our 2005-09 baseline and by 11.7% from 2015. Safety performance in 2018 was 5.1% above the annual KPI monitoring point. Validated data for 2019 is not expected until late July / Autumn 2020. In RP1 we have completed all 130 actions of our Health and Safety Five Year Plan and continue to embed our Home Safe and Well Approach across our business and supply chain in order to continue to improve the safety of our network. Changes in how police forces record road casualty data mean that it has not been possible to monitor progress against the target on a consistent basis during RIS1. Since late 2015, around half of English police forces have adopted a new system for reporting road casualties (CRASH – Collision Recording and Sharing). This has caused an increase in recorded KSIs because some casualties which would have been recorded as ‘slight’ in the old system are recorded as ‘serious’ in the new system. To address this discontinuity, the DfT commissioned the Office for National Statistics to produce a robust methodology for adjusting historic road casualty data. This work concluded in 2018, and has enabled the Department to publish revised road casualty statistics that consistently account for the impact of CRASH over time. The DfT advises that these data may be subject to further revision in future years as more police forces move to CRASH.
A8: 2005-09 | B8: OMM p16 | C8: 2,321 (original) 3,094 (revised)
B9: Corporate management information | C9: 1784 | D9: 1750 | E9: KPI | F9: =IFERROR(IF(D9="N/A","N/A",C9-D9),"X") -> 34 | M9: [1]
A10: 2016 | B10: Corporate management information | C10: 2,005 (original) 2,223 (revised) | D10: 1,678 (original) 2,237 (revised) | E10: KPI | F10: 327 (original) 83 (revised) | M10: [1]
A11: 2017 | B11: Corporate management information | C11: 1,853 (original) 2,035 (revised) | D11: 1,607 (original) 2,142 (revised) | E11: KPI | F11: 246 (original) -44 (revised) | M11: [1]
A12: 2018 | B12: Corporate management information | C12: 1,987 (original) 2,152 (revised) | D12: 1,536 (original) 2,047 (revised) | E12: KPI | F12: 451 (original) 187 (revised) | M12: [1]
A13: 2019 | B13: PS p15,DP p30, OMM p16 | C13: X | D13: 1,464 (original) 1,952 (revised) | E13: KPI | F13: X | M13: [1]
A14: 2020 | B14: PS p15,DP p30, OMM p17 | C14: X | D14: 1,393 (original) 1,857 (revised) | E14: KPI | F14: X | M14: [1]
A16: PIs
A17: Incident numbers for motorways
A18: Illustrate the impact of activities undertaken by the Company, and the influence of external factors with regards to making the Network safer. | G18: Incidents numbers on the Motorway have increased by 9.7% from 2018-19. However we are pleased to report despite this we have we have successfully improved our incident clearance rate and our clearance metric has remained above target for the whole of RP1.
A19: 2014-15 | B19: OMM p25 | C19: 44915
A20: 2015-16 | B20: Corporate management information | C20: 46561 | E20: PI | M20: [2]
A21: 2016-17 | B21: Corporate management information | C21: 49130 | E21: PI | M21: [2]
A22: 2017-18 | B22: Corporate management information | C22: 56136 | E22: PI | M22: [2]
A23: 2018-19 | B23: Corporate management information | C23: 58680 | E23: PI | M23: [2]
A24: 2019-20 | B24: Corporate management information | C24: 64408 | E24: PI | M24: [2]
A26: Casualty numbers for Motorways
A27: Illustrate the impact of activities undertaken by the Company, and the influence of external factors with regards to making the Network safer. | G27: 2018 validated data for Casualty Numbers on motorways has indicated that: total casualties have decreased by 6.1% from 6,930 in 2017 to 6,507 in 2018.
A28: 2005 | B28: Historic Data | C28: 11200
A29: 2006 | B29: Historic Data | C29: X
A30: 2007 | B30: Historic Data | C30: X
A31: 2008 | B31: Historic Data | C31: X
A32: 2009 | B32: Historic Data | C32: X
A33: 2010 | B33: Historic Data | C33: 9378
A34: 2011 | B34: Historic Data | C34: 8752
A35: 2012 | B35: Historic Data | C35: 8211
A36: 2013 | B36: Historic Data | C36: 7837
A37: 2014 | B37: OMM p25 | C37: 8191
A38: 2015 | B38: Corporate management information | C38: 7988 | E38: PI | M38: [3]
A39: 2016 | B39: Corporate management information | C39: 7792 | E39: PI | M39: [3]
A40: 2017 | B40: Corporate management information | C40: 6930 | E40: PI | M40: [3]
A41: 2018 | B41: Corporate management information | C41: 6507 | E41: PI | M41: [3]
A42: 2019 | B42: Corporate management information | C42: X | E42: PI | M42: [3]
A43: 2020 | B43: Corporate management information | C43: X | E43: PI
A45: Casualty numbers for APTR
A46: Illustrate the impact of activities undertaken by the Company, and the influence of external factors with regards to making the Network safer. | G46: 2018 validated data for Casualty numbers on the APTR Network has indicated that: total casualties have decreased by 6.1% to 6,873 from 7,295 in 2017.
A47: 2005 | B47: Historic Data | C47: 10503
A48: 2006 | B48: Historic Data | C48: X
A49: 2007 | B49: Historic Data | C49: X
A50: 2008 | B50: Historic Data | C50: X
A51: 2009 | B51: Historic Data | C51: X
A52: 2010 | B52: Historic Data | C52: 8644
A53: 2011 | B53: Historic Data | C53: 8968
A54: 2012 | B54: Historic Data | C54: 8462
A55: 2013 | B55: Historic Data | C55: 8251
A56: 2014 | B56: OMM p33 | C56: 8623
A57: 2015 | B57: Corporate management information | C57: 8387 | E57: PI | M57: [3]
A58: 2016 | B58: Corporate management information | C58: 8441 | E58: PI | M58: [3]
A59: 2017 | B59: Corporate management information | C59: 7295 | E59: PI | M59: [3]
A60: 2018 | B60: Corporate management information | C60: 6873 | E60: PI | M60: [3]
A61: 2019 | B61: Corporate management information | C61: X | E61: PI | M61: [3]
A62: 2020 | B62: Corporate management information | C62: X | E62: PI | M62: [3]
A64: IRAP: International Road Assessment Programme
A65: IRAP based road safety investigations, developed in conjunction with the Department, to feed into subsequent Route Strategies. Illustrate the impact of activities undertaken by the Company, and the influence of external factors with regards to making the Network safer. We are committed to ensure that 90% of travel on our roads is 3* rated or higher by 2020. The latest data indicates that 95% of travel on our roads is on 3-star rated roads or above which exceeds the target set in our delivery plan. | G65: We committed to ensure that 90% of travel on our roads is 3* rated or higher by 2020 and achieved this in 2019 with 95% of roads being assessed as 3* or above.
A66: 2015-16 | B66: Corporate management information | C66: N/A | D66: N/A | E66: PI | F66: =IFERROR(IF(D66="N/A","N/A",C66-D66),"X") -> N/A | M66: [4]
A67: 2016-17 | B67: Corporate management information | C67: X | D67: [X] | E67: PI | F67: =IFERROR(IF(D67="N/A","N/A",C67-D67),"X") -> X | M67: [4]
A68: 2017-18 | B68: Corporate management information | C68: X | D68: [X] | E68: PI | F68: =IFERROR(IF(D68="N/A","N/A",C68-D68),"X") -> X | M68: [4]
A69: 2018-19 | B69: Corporate management information | C69: X | D69: [X] | E69: PI | F69: =IFERROR(IF(D69="N/A","N/A",C69-D69),"X") -> X | M69: [4]
A70: 2019-20 | B70: Corporate management information | C70: 0.95 | D70: 0.9 | E70: PI | F70: =IFERROR(IF(D70="N/A","N/A",C70-D70),"X") -> 0.05 | M70: [4]
A72: AFR (Accident Frequency Rate) of construction and maintenance workers
A73: This is the ratio of the number of Reporting of Injuries, Diseases & Dangerous Occurrences Regulation 2013 (RIDDOR) reportable personal injury accidents and fatalities in a population, to the hours worked by that population, and expressed per 100,000 hours | G73: For construction and maintenance workers in Highways England’s supply chain, the accident frequency rate was 0.07 in 2019-20, a slight increase on the record low seen in 2018-19. Example contributory factors include: -An increase of incidents involving slips and trips, manual handling and falls from vehicles within the maintenance community. -Third party (road) users involved in vehicle collisions with our suppliers. The supply chain workforce has been a core part of the rollout of our Home Safe and Well approach this year, visibly demonstrating our commitment to make further improvements in this area.
A74: 2009-10 | B74: Historic Data | C74: =[16]DATA!AC182 -> 0.24
A75: 2010-11 | B75: Historic Data | C75: =[16]DATA!AD182 -> 0.17
A76: 2011-12 | B76: Historic Data | C76: =[16]DATA!AE182 -> 0.18
A77: 2012-13 | B77: Historic Data | C77: =[16]DATA!AF182 -> 0.12
A78: 2013-14 | B78: Historic Data | C78: ='[16]DCS KPI1'!I17 -> 0.14
A79: 2014-15 | B79: OMM p45 | C79: ='[16]DCS KPI1'!J17 -> 0.14
A80: 2015-16 | B80: Corporate management information | C80: 0.15 | E80: PI | F80: =IFERROR(IF(D80="N/A","N/A",C80-D80),"X") -> 0.15
A81: 2016-17 | B81: Corporate management information | C81: 0.11 | E81: PI | F81: =IFERROR(IF(D81="N/A","N/A",C81-D81),"X") -> 0.11
A82: 2017-18 | B82: Corporate management information | C82: 0.12 | E82: PI | F82: =IFERROR(IF(D82="N/A","N/A",C82-D82),"X") -> 0.12
A83: 2018-19 | B83: Corporate management information | C83: 0.05 | E83: PI | F83: =IFERROR(IF(D83="N/A","N/A",C83-D83),"X") -> 0.05
A84: 2019-20 | C84: 0.07 | E84: PI | F84: =IFERROR(IF(D84="N/A","N/A",C84-D84),"X") -> 0.07
A86: AFR (Accident Frequency Rate) of Customer Operations Directorate: Is the ratio of the number of Reporting of Injuries, Diseases & Dangerous Occurrences Regulation 2013 (RIDDOR) reportable personal injury accidents and fatalities in a population, to the hours worked by that population, and expressed per 100,000 hours | G86: The AFR for our Customer Operations team has improved in 2019-20 to a record low of 0.02. The majority of the incidents have been as a consequence of slips and trips, when attending road accidents and incidents on the network, generally in a mixture of demanding physical and environmental conditions. Highways England recently went a whole 12 month period without a single RIDDOR (Reporting of Injuries, Diseases and Dangerous Occurrences Regulations) which is a record of the hard work we put into getting everyone home safe and well every day. Note: Figures for 2018-19 have been updated to reflect improved data received since last year's publication.
A87: 2011-12 | B87: Historic Data | C87: 0.43
A88: 2012-13 | B88: Historic Data | C88: 0.63
A89: 2013-14 | B89: Historic Data | C89: 0.34
A90: 2014-15 | B90: OMM p44 | C90: 0.36 | E90: PI
A91: 2015-16 | B91: Corporate management information | C91: 0.77 | E91: PI | F91: 0.77
A92: 2016-17 | B92: Corporate management information | C92: 0.51 | E92: PI | F92: 0.51
A93: 2017-18 | B93: Corporate management information | C93: 0.43 | E93: PI | F93: 0.43
A94: 2018-19 | B94: Corporate management information | C94: 0.07 | E94: PI | F94: 0.07
A95: 2019-20 | C95: 0.02 | E95: PI | F95: X
C97: 2015 | D97: 2016 | E97: 2017 | F97: 2018 | G97: 2019 | H97: 2020 | I97: Cumulative | K97: Number of incidents resulting in KSI annual | L97: Number of incidents resulting in KSI cumulative
A98: Casualties numbers and contributory* factors for motorway (OMM p21)
A99: Illustrate the impact of activities undertaken by the Company, and the influence of external factors with regards to making the Network safer. | C99: Validated 2018 data
A100: Factor (Reported Road Casualties on the SRN 2013) | B100: Number
A101: Failed to look properly | B101: 1 | C101: 182 | D101: 215 | E101: 172 | F101: 175 | G101: X | H101: X | I101: =SUM(C101:H101) -> 744 | J101: PI | K101: X | L101: X | M101: [5]
A102: Loss of control | B102: 2 | C102: 155 | D102: 167 | E102: 161 | F102: 143 | G102: X | H102: X | I102: =SUM(C102:H102) -> 626 | J102: PI | K102: X | L102: X | M102: [5]
A103: Failed to judge other person's path or speed | B103: 3 | C103: 142 | D103: 160 | E103: 191 | F103: 183 | G103: X | H103: X | I103: 676 | J103: PI | K103: X | L103: X | M103: [5]
A104: Poor turn or manoeuvre | B104: 4 | C104: 53 | D104: 67 | E104: 62 | F104: 71 | G104: X | H104: X | I104: 253 | J104: PI | K104: X | L104: X | M104: [5]
A105: Careless, reckless or in a hurry | B105: 5 | C105: 66 | D105: 61 | E105: 68 | F105: 93 | G105: X | H105: X | I105: 288 | J105: PI | K105: X | L105: X | M105: [5]
A106: Swerved | B106: 6 | C106: 54 | D106: 59 | E106: 43 | F106: X | G106: X | H106: X | I106: 156 | J106: PI | K106: X | L106: X | M106: [5]
A107: Fatigue | B107: 7 | C107: 72 | D107: 73 | E107: 46 | F107: 55 | G107: X | H107: X | I107: 246 | J107: PI | K107: X | L107: X | M107: [5]
A108: Following too close | B108: 8 | C108: 64 | D108: 52 | E108: 62 | F108: 59 | G108: X | H108: X | I108: 237 | J108: PI | K108: X | L108: X | M108: [5]
A109: Sudden braking | B109: 9 | C109: 64 | D109: 61 | E109: 64 | F109: X | G109: X | H109: X | I109: 189 | J109: PI | K109: X | L109: X | M109: [5]
A110: Slippery road (due to weather) | B110: 10 | C110: 48 | D110: 66 | E110: 44 | F110: 54 | G110: X | H110: X | I110: 212 | J110: PI | K110: X | L110: X | M110: [5]
A111: Travelling too fast for conditions | B111: 11 | C111: 50 | D111: 50 | E111: 71 | F111: 56 | G111: X | H111: X | I111: 227 | J111: PI | K111: X | L111: X | M111: [5]
A112: Impaired by alcohol (driver or rider) | B112: 12 | C112: X | D112: X | E112: X | F112: X | G112: X | H112: X | I112: 0 | J112: PI | K112: X | L112: X | M112: [5]
A113: Illness or disability, mental or physical | B113: 13 | C113: X | D113: X | E113: X | F113: X | G113: X | H113: X | I113: 0 | J113: PI | K113: X | L113: X | M113: [5]
A114: Distraction in vehicle | B114: 14 | C114: X | D114: X | E114: 32 | F114: 54 | G114: X | H114: X | I114: 86 | J114: PI | K114: X | L114: X | M114: [5]
A115: Other - Please specify below | B115: 15 | C115: X | D115: X | E115: X | F115: X | G115: X | H115: X | I115: 0 | J115: PI | K115: X | L115: X | M115: [5]
A116: Exceeding speed limit | B116: 16 | C116: X | D116: X | E116: X | F116: X | G116: X | H116: X | I116: 0 | J116: PI | K116: X | L116: X | M116: [5]
A117: Aggressive driving | B117: 17 | C117: X | D117: X | E117: X | F117: X | G117: X | H117: X | I117: 0 | J117: PI | K117: X | L117: X | M117: [5]
A118: Learner or inexperienced driver/rider | B118: 18 | C118: X | D118: X | E118: X | F118: X | G118: X | H118: X | I118: 0 | J118: PI | K118: X | L118: X | M118: [5]
A119: Rain, sleet, snow or fog | B119: 19 | C119: X | D119: X | E119: X | F119: X | G119: X | H119: X | I119: 0 | J119: PI | K119: X | L119: X | M119: [5]
A120: Distraction outside vehicle | B120: 20 | C120: X | D120: X | E120: X | F120: X | G120: X | H120: X | I120: 0 | J120: PI | K120: X | L120: X | M120: [5]
C121: =SUM(C101:C120) -> 950 | D121: 1031 | E121: 1016 | F121: 943 | G121: 0 | H121: 0 | I121: =SUM(I101:I120) -> 3940 | J121: PI | K121: =SUM(K101:K120) -> 0 | L121: =SUM(L101:L120) -> 0 | M121: [5]
A123: Casualties numbers and contributory factors for APTR (OMM P31) (Note that the Performance Specification refers to "causation factors") | C123: Validated 2018 data
A124: Illustrate the impact of activities undertaken by the Company, and the influence of external factors with regards to making the Network safer.
A125: Factor (Reported Road Casualties on the SRN 2013) | B125: Number
A126: Failed to look properly | B126: 1 | C126: 341 | D126: 340 | E126: 311 | F126: 323 | G126: X | H126: X | I126: =SUM(C126:H126) -> 1315 | J126: PI | K126: X | L126: X | M126: [6]
A127: Loss of control | B127: 2 | C127: 198 | D127: 201 | E127: 224 | F127: 215 | G127: X | H127: X | I127: =SUM(C127:H127) -> 838 | J127: PI | K127: X | L127: X | M127: [6]
A128: Failed to judge other person's path or speed | B128: 3 | C128: 226 | D128: 230 | E128: 240 | F128: 208 | G128: X | H128: X | I128: 904 | J128: PI | K128: X | L128: X | M128: [6]
A129: Poor turn or manoeuvre | B129: 4 | C129: 170 | D129: 146 | E129: 152 | F129: 114 | G129: X | H129: X | I129: 582 | J129: PI | K129: X | L129: X | M129: [6]
A130: Careless, reckless or in a hurry | B130: 5 | C130: 156 | D130: 165 | E130: 146 | F130: 158 | G130: X | H130: X | I130: 625 | J130: PI | K130: X | L130: X | M130: [6]
A131: Swerved | B131: 6 | C131: 64 | D131: 71 | E131: 0 | F131: X | G131: X | H131: X | I131: 135 | J131: PI | K131: X | L131: X | M131: [6]
A132: Fatigue | B132: 7 | C132: 73 | D132: 71 | E132: 0 | F132: 75 | G132: X | H132: X | I132: 219 | J132: PI | K132: X | L132: X | M132: [6]
A133: Following too close | B133: 8 | C133: X | D133: X | E133: 63 | F133: 75 | G133: X | H133: X | I133: 138 | J133: PI | K133: X | L133: X | M133: [6]
A134: Sudden braking | B134: 9 | C134: 63 | D134: 58 | E134: 62 | F134: X | G134: X | H134: X | I134: 183 | J134: PI | K134: X | L134: X | M134: [6]
A135: Slippery road (due to weather) | B135: 10 | C135: 51 | D135: 75 | E135: 68 | F135: 102 | G135: X | H135: X | I135: 296 | J135: PI | K135: X | L135: X | M135: [6]
A136: Travelling too fast for conditions | B136: 11 | C136: 86 | D136: 85 | E136: 75 | F136: 104 | G136: X | H136: X | I136: 350 | J136: PI | K136: X | L136: X | M136: [6]
A137: Impaired by alcohol (driver or rider) | B137: 12 | C137: X | D137: X | E137: X | F137: 69 | G137: X | H137: X | I137: 69 | J137: PI | K137: X | L137: X | M137: [6]
A138: Illness or disability, mental or physical | B138: 13 | C138: X | D138: X | E138: X | F138: X | G138: X | H138: X | I138: 0 | J138: PI | K138: X | L138: X | M138: [6]
A139: Distraction in vehicle | B139: 14 | C139: X | D139: X | E139: X | F139: X | G139: X | H139: X | I139: 0 | J139: PI | K139: X | L139: X | M139: [6]
A140: Other - Please specify below | B140: 15 | C140: X | D140: X | E140: X | F140: X | G140: X | H140: X | I140: 0 | J140: PI | K140: X | L140: X | M140: [6]
A141: Exceeding speed limit | B141: 16 | C141: 67 | D141: 74 | E141: 0 | F141: X | G141: X | H141: X | I141: 141 | J141: PI | K141: X | L141: X | M141: [6]
A142: Aggressive driving | B142: 17 | C142: X | D142: X | E142: X | F142: X | G142: X | H142: X | I142: 0 | J142: PI | K142: X | L142: X | M142: [6]
A143: Learner or inexperienced driver/rider | B143: 18 | C143: X | D143: X | E143: X | F143: X | G143: X | H143: X | I143: 0 | J143: PI | K143: X | L143: X | M143: [6]
A144: Rain, sleet, snow or fog | B144: 19 | C144: X | D144: X | E144: X | F144: X | G144: X | H144: X | I144: 0 | J144: PI | K144: X | L144: X | M144: [6]
A145: Distraction outside vehicle | B145: 20 | C145: X | D145: X | E145: X | F145: X | G145: X | H145: X | I145: 0 | J145: PI | K145: X | L145: X | M145: [6]
C146: =SUM(C126:C145) -> 1495 | D146: 1516 | E146: 1341 | F146: 1443 | G146: 0 | H146: 0 | I146: =SUM(I126:I145) -> 5795 | J146: PI | K146: =SUM(K126:K145) -> 0 | L146: =SUM(L126:L145) -> 0 | M146: [6]
A148: Other monitoring requirements | C148: 2015 | D148: 2016 | E148: 2017 | F148: 2018 | G148: 2019 | H148: 2020
C149: Validated 2018 data
A150: Location of KSI
A151: East | C151: 288 | D151: 314 | E151: 317 | F151: 292 | G151: X | H151: X | J151: DPI | M151: [7]
A152: London and south east | C152: 530 | D152: 611 | E152: 517 | F152: 616 | G152: X | H152: X | J152: DPI | M152: [7]
A153: South west | C153: 202 | D153: 225 | E153: 210 | F153: 224 | G153: X | H153: X | J153: DPI | M153: [7]
A154: Midlands | C154: 359 | D154: 395 | E154: 366 | F154: 342 | G154: X | H154: X | J154: DPI | M154: [7]
A155: North west | C155: 191 | D155: 201 | E155: 185 | F155: 226 | G155: X | H155: X | J155: DPI | M155: [7]
A156: Yorkshire and northeast | C156: 214 | D156: 259 | E156: 258 | F156: 287 | G156: X | H156: X | J156: DPI | M156: [7]
C157: =SUM(C151:C156) -> 1784 | D157: 2005 | E157: 1853 | F157: 1987 | G157: 0 | H157: 0 | J157: DPI | M157: [7]
A159: Notes and commentary
A160: [1] Explain what actions and activities have been taken by management to achieve trajectory and explain whether they were successful. Explain external factors that have impacted the actuals and quantify that impact. Explain reasons for the variance.
A161: [2] Explain what actions and activities have been taken by management to achieve trajectory and explain whether they were successful. Explain external factors that have impacted the actuals and quantify that impact. Explain reasons for the variance.
A162: [3] Explain what actions and activities have been taken by management to achieve trajectory and explain whether they were successful. Explain external factors that have impacted the actuals and quantify that impact. Explain reasons for the variance.
A163: [4] Explain what actions and activities have been taken by management to achieve trajectory and explain whether they were successful. Explain external factors that have impacted the actuals and quantify that impact. Explain reasons for the variance.
A164: [5] Explain significant year on year variances.
A165: [6] Explain significant year on year variances.
A166: [7] Explain significant year on year variances. Where one or two areas of the SRN are driving down performance, explanation of the variance should be disaggregated and published.
A167: [X] HE and ORR to consider reporting this data once appropriate strategies and/or reporting has been developed.

Sheet PS2 - User satisfaction
A1: Highways England Performance Monitoring Statements Year end 2019-20
A2: Statement PS2: Improving user satisfaction | C2: For a definition of the metric and parameters for measuring and monitoring User satisfaction see Highways England’s Operational Metrics Manual
A3: Performance specification
B4: Source of baseline | C4: Actual | D4: Annual baseline | E4: KPI/PI/ Req | F4: Difference | L4: Notes
A5: KPI
A6: NRUSS score
A7: Achieve a score of 90% by 31 March 2017 and then maintain or improve it | G7: Customer satisfaction end of year score is the highest score since 2016/17 at 89.22% (March 2020), in comparison to the 90% target for RP1. In comparison to March 2019 (88.41%) the overall score increased by 0.81%. Even though the 90% target has not been met the marginal satisfaction increase we have seen in this last year does indicate that despite increased works on the network, the initiatives that have been implemented and embedded have made a difference and positively impacted our customers' satisfaction and experience. To further improve the customer satisfaction Highways England has targeted specific areas. We have launched our ‘in the moment’ customer feedback platform ECHO (Every Customer Has an Opinion), which allows our customers to provide feedback on their contact with us. We continue to annually review and manage top 25 litter spots, roll out best practise guidelines to the supply chain for roadworks, we have implemented of 60mph through roadworks (where safe to do so), running customer forums for our largest road schemes. To further support and improve the road user satisfaction score, and our customers' overall experience, we are launching the internal Customer Service Delivery Plan 2020-21.
A8: 2011-12 | B8: Historic Data | C8: 0.9148
A9: 2012-13 | B9: OMM p51, Historic Data | C9: 0.907
A10: 2013-14 | B10: OMM p51, Historic Data | C10: 0.896
A11: 2014-15 | B11: OMM p51, Historic Data | C11: 0.8851
A12: 2015-16 | B12: Corporate management information | C12: 0.8932 | D12: 0.9 | E12: KPI | F12: -0.68 | L12: [1]
A13: 2016-17 | B13: Corporate management information | C13: 0.8911 | D13: 0.9 | E13: KPI | F13: -0.89 | L13: [1]
A14: 2017-18 | B14: Corporate management information | C14: 0.8873 | D14: 0.9 | E14: KPI | F14: -1.27 | L14: [1]
A15: 2018-19 | B15: Corporate management information | C15: 0.8841 | D15: 0.9 | E15: KPI | F15: -1.59 | L15: [1]
A16: 2019-20 | B16: Corporate management information | C16: 0.8922 | D16: 0.9 | E16: KPI | F16: =IFERROR(IF(D16="N/A","N/A",C16-D16),"X") -> -0.0078 | L16: [1]
A18: PIs
A19: Performance of factors that influence user satisfaction
A20: Journey time
A21: 2011-12 | B21: Historic Data | C21: 0.91 | G21: Customer satisfaction with journey time has increased our highest cumulative score in RP1 to 88.80% for 2019-20. We continue to improve performance in terms of journey time compared to last year is testament to the initiatives implemented towards the end of 2018-19 that our customers are seemingly starting to feel the benefits of. We encouragingly continue to see an increase in our customers’ cumulative satisfaction scores with their journey times when compared to the same time last year. This shows the success of our commitment to listen and respond to what is important to our customers. We have been providing clear and more accurate information based on comprehensive listening to and testing with customers, our initiatives such as new customer focused variable message legends. This allows us to strategically manage incident information to better communicate with our road users and enable them to feel more in control of their journeys.
A22: 2012-13 | B22: Historic Data | C22: 0.8898
A23: 2013-14 | B23: Historic Data | C23: 0.8851
A24: 2014-15 | B24: Historic Data | C24: 0.87
A25: 2015-16 | B25: Corporate management information | C25: 0.8792 | D25: 0.9 | E25: PI | F25: =IFERROR(IF(D25="N/A","N/A",C25-D25),"X") -> -0.0208
A26: 2016-17 | B26: Corporate management information | C26: 0.8725 | D26: 0.9 | E26: PI | F26: =IFERROR(IF(D26="N/A","N/A",C26-D26),"X") -> -0.0275
A27: 2017-18 | B27: Corporate management information | C27: 0.8783 | D27: 0.9 | E27: PI | F27: =IFERROR(IF(D27="N/A","N/A",C27-D27),"X") -> -0.0217
A28: 2018-19 | B28: Corporate management information | C28: 0.8756 | D28: 0.9 | E28: PI | F28: =IFERROR(IF(D28="N/A","N/A",C28-D28),"X") -> -0.0244
A29: 2019-20 | B29: Corporate management information | C29: 0.888 | D29: 0.9 | E29: PI | F29: =IFERROR(IF(D29="N/A","N/A",C29-D29),"X") -> -0.012
A31: Roadwork management
A32: 2011-12 | B32: Historic Data | C32: 0.6944 | G32: Customer Satisfaction with roadworks management has seen significant improvement in the satisfaction of 75.48% for 2019-20 this is the highest year-end score across all RIS1. We have seen our highest roadworks satisfaction score throughout RIS1 in the final months. This validates that despite the continually increasing number of roadworks on our SRN, by listening to what our customers are telling us and responding with customer-centric roadworks, it appears to be positively impacting on our customers’ perceptions of roadworks and their subsequent satisfaction levels. Also, our steady implementation of 60mph through roadworks (where safe to do so) had a positive impact on our customers’ experiences.
A33: 2012-13 | B33: Historic Data | C33: 0.6603
A34: 2013-14 | B34: Historic Data | C34: 0.7173
A35: 2014-15 | B35: Historic Data | C35: 0.6695
A36: 2015-16 | B36: Corporate management information | C36: 0.6509 | D36: 0.9 | E36: PI | F36: =IFERROR(IF(D36="N/A","N/A",C36-D36),"X") -> -0.2491
A37: 2016-17 | B37: Corporate management information | C37: 0.6288 | D37: 0.9 | E37: PI | F37: =IFERROR(IF(D37="N/A","N/A",C37-D37),"X") -> -0.2712
A38: 2017-18 | B38: Corporate management information | C38: 0.629 | D38: 0.9 | E38: PI | F38: =IFERROR(IF(D38="N/A","N/A",C38-D38),"X") -> -0.271
A39: 2018-19 | B39: Corporate management information | C39: 0.6534 | D39: 0.9 | E39: PI | F39: =IFERROR(IF(D39="N/A","N/A",C39-D39),"X") -> -0.2466
A40: 2019-20 | B40: Corporate management information | C40: 0.7548 | D40: 0.9 | E40: PI | F40: =IFERROR(IF(D40="N/A","N/A",C40-D40),"X") -> -0.1452
A42: General upkeep
A43: 2011-12 | B43: Historic Data | C43: 0.9267 | G43: Customer Satisfaction with general upkeep has seen an improvement in the satisfaction of 88.04%, when compared to March 2019 (87.02%). Highways England engaged with customers using our roads on our work clearing litter from our network, explaining how the impact of dropping litter extends further than they may appreciate. For the fifth year running we’re participated in Keep Britain Tidy Annual Great British Spring Clean events; collecting a total of 39,000 bags of litter from our network over 5 years period.
A44: 2012-13 | B44: Historic Data | C44: 0.9097
A45: 2013-14 | B45: Historic Data | C45: 0.8976
A46: 2014-15 | B46: Historic Data | C46: 0.9038
A47: 2015-16 | B47: Corporate management information | C47: 0.8952 | D47: 0.9 | E47: PI | F47: =IFERROR(IF(D47="N/A","N/A",C47-D47),"X") -> -0.0048
A48: 2016-17 | B48: Corporate management information | C48: 0.8979 | D48: 0.9 | E48: PI | F48: =IFERROR(IF(D48="N/A","N/A",C48-D48),"X") -> -0.0021
A49: 2017-18 | B49: Corporate management information | C49: 0.8871 | D49: 0.9 | E49: PI | F49: =IFERROR(IF(D49="N/A","N/A",C49-D49),"X") -> -0.0129
A50: 2018-19 | B50: Corporate management information | C50: 0.8702 | D50: 0.9 | E50: PI | F50: =IFERROR(IF(D50="N/A","N/A",C50-D50),"X") -> -0.0298
A51: 2019-20 | B51: Corporate management information | C51: 0.8804 | D51: 0.9 | E51: PI | F51: =IFERROR(IF(D51="N/A","N/A",C51-D51),"X") -> -0.0196
A53: Signage
A54: 2011-12 | B54: Historic Data | C54: 0.9183 | G54: Customer satisfaction with information and signage we have achieved our highest satisfaction score throughout RIS1, of 93.30% for 2019-20. Information and signage remains our highest performing PI in RIS1. Highways England concentrated on having the right information at the right time to help customers' feel in control of their journeys. We continue to work on providing information that meets the needs of our customers, including improving our signs at the roadside and also how we share this information through tailored, diverse engagements and forums to target our customer audiences.
A55: 2012-13 | B55: Historic Data | C55: 0.9176
A56: 2013-14 | B56: Historic Data | C56: 0.905
A57: 2014-15 | B57: Historic Data | C57: 0.89
A58: 2015-16 | B58: Corporate management information | C58: 0.9199 | D58: 0.9 | E58: PI | F58: =IFERROR(IF(D58="N/A","N/A",C58-D58),"X") -> 0.0199
A59: 2016-17 | B59: Corporate management information | C59: 0.9263 | D59: 0.9 | E59: PI | F59: =IFERROR(IF(D59="N/A","N/A",C59-D59),"X") -> 0.0263
A60: 2017-18 | B60: Corporate management information | C60: 0.921 | D60: 0.9 | E60: PI | F60: =IFERROR(IF(D60="N/A","N/A",C60-D60),"X") -> 0.021
A61: 2018-19 | B61: Corporate management information | C61: 0.9251 | D61: 0.9 | E61: PI | F61: =IFERROR(IF(D61="N/A","N/A",C61-D61),"X") -> 0.0251
A62: 2019-20 | B62: Corporate management information | C62: 0.933 | D62: 0.9 | E62: PI | F62: =IFERROR(IF(D62="N/A","N/A",C62-D62),"X") -> 0.033
A64: Safety
A65: 2011-12 | B65: Historic Data | C65: 0.9224 | G65: Customer Satisfaction with safety remains below the target for the first time in RP1, achieving year-end score of 89.46%, this is lower when compared to March 2019 (90.63%). We dipped below the 90% target for first time, we have done lots of work by helping our customers to feel safe when using our roads, reassuring them that our network is safe and accessible. We have helped our customers to feel safe when using our roads, reassuring them that our network is safe and accessible. We continued to improve our understanding of what makes our customers feel safe and were able to respond to this and then improve their perception of safety and their satisfaction. To support this, we ran various safety campaigns including ‘Don’t be a Space Invader’, ‘BikerTek’ and subsequent winter readiness customer communications. We ensured that we have tailored how we have engaged with our different customer segments to ensure that important messages reached them effectively, to help them in feeling safe.
A66: 2012-13 | B66: Historic Data | C66: 0.9439
A67: 2013-14 | B67: Historic Data | C67: 0.925
A68: 2014-15 | B68: Historic Data | C68: 0.9181
A69: 2015-16 | B69: Corporate management information | C69: 0.9233 | D69: 0.9 | E69: PI | F69: =IFERROR(IF(D69="N/A","N/A",C69-D69),"X") -> 0.0233
A70: 2016-17 | B70: Corporate management information | C70: 0.9156 | D70: 0.9 | E70: PI | F70: =IFERROR(IF(D70="N/A","N/A",C70-D70),"X") -> 0.0156
A71: 2017-18 | B71: Corporate management information | C71: 0.9049 | D71: 0.9 | E71: PI | F71: =IFERROR(IF(D71="N/A","N/A",C71-D71),"X") -> 0.0049
A72: 2018-19 | B72: Corporate management information | C72: 0.9063 | D72: 0.9 | E72: PI | F72: =IFERROR(IF(D72="N/A","N/A",C72-D72),"X") -> 0.0063
A73: 2019-20 | B73: Corporate management information | C73: 0.8946 | D73: 0.9 | E73: PI | F73: =IFERROR(IF(D73="N/A","N/A",C73-D73),"X") -> -0.0054
A75: Requirements
A76: Activities undertaken to maintain or improve user satisfaction.
A77: Demonstrate what activities have been taken, and how effective they have been, to maintain and improve user satisfaction. | B77: Corporate management information | C77: For 2019-20, we developed and implemented a Customer Service Delivery Plan, which enabled us to focus our efforts with the intention to improve customer experience. Initiatives within the Customer Service Plan that were successfully completed: • We have published Customer Service Standard for planned diversions which ensured amongst others that a consistent standard of service across the network. • We are now setting 60mph nationally instead of 50mph when we set the message 'Report of...' on the variable message signs. This has resulted in an average saving for customers of 855hours of journey time per day. This translates as a projected potential annual saving of approximately £4½M per annum to the economy of UK plc. • We engaged with areas of the freight industry were we historically had little or no contact with, at the Commercial Vehicle Show and Truckfest, Peterborough. Which made a positive impact of engagement. • We have identified and begun to align customer maturity assessments between us and our supply chain to ensure we’re consistent in our customer approach and align all the supply chain to ensure customer practice is embedded thought all their work. • We have launched 10-day response times for customer correspondence as an internal pilot. • In November we started a trial where have been making contact with customers through an on-line survey to gather real-time feedback about interactions with Traffic Officers. Going forward this will help to drive improvements and highlight examples of great customer service. • We are continuing to embed a customer-led approach into our frameworks and processes that underpin our suppliers’ performance, such as an IT platform to host customer eLearning modules for the supply chain and undertaking Customer Tender Assessments for SPECTRE bids from suppliers. • We have completed the 60mph on the A1 Leeming to Ripon roadworks, this is the first time it has been used in contraflow. Customers have now experienced over 66km of carriageway at 60mph. • We worked collaboratively with Transport focus to better understand what our customers think about the M4 smart motorway scheme, Transport focus published a collaborative report about road users views of upgrading the M4 to smart motorway. Awareness of the scheme is encouraging, the report highlights areas to improve roadworks experience and understanding of smart motorways generally; we have implemented an action plan to address that. We have a dedicated team who manage our day to day engagement with Transport Focus, including the investigations to value and prioritise work for customers.
A80: Support Transport Focus as it develops replacements, by April 2016, for the NRUSS
A81: Feedback from TF on engagement | B81: Corporate management information | C81: We have been working with Transport Focus to help understand SRN users’ experiences and needs to improve road user satisfaction. Key areas of work are: • Improving journey and traffic information • We arranged three very successful network tours in the west midlands, south east and the north west including smart motorway upgrades and the M5 at Oldbury. • We worked collaboratively with Transport Focus to shape and prioritise the 2020-21 customer service actions plans • We work with Transport Focus to ensure that the insight recommendations and issues raised are understood and are being acted upon appropriately. • We attend the quarterly Transport Focus Road User Panel meetings to report on the business and answer questions from major road user stakeholder groups. • Transport Focus has helped us to ensure that RIS2 addresses the needs of road users their Roads Information Campaign. Transport Focus piloted various methodologies for the Strategic Roads User Survey (SRUS) during 2017. The survey was launched at the beginning of April 2018 and has been running alongside NRUSS. SRUS has been designed to provide the official measure of road user satisfaction on the strategic road network for 2020-25 and replaces the National Road Users’ Satisfaction Survey. We worked with Transport Focus to develop the new survey and are using the insight to help shape our customer service action plans. SRUS asks questions about a range of elements of the journey experience on a motorway or major ‘A’ road in England, including overall journey experience, journey time, surface quality, roadworks management, permanent and electronic information and feelings of safety. Around 9,000 face to face interviews with road users are carried out each year. Separate surveys have been designed to capture the views of logistic and coach operators and cyclists, pedestrians and equestrians.
A83: Other monitoring requirements | C83: 2014-15 | D83: 2015-16 | E83: 2016-17 | F83: 2017-18 | G83: 2018-19 | H83: 2019-20
A85: NRUSS score for motorways and All Purpose Trunk Roads | I85: Performance for All Purpose Trunk Roads show slight increase compared to 2018-19 by 1.18% to 90.23% in 2019-20. Motorways slightly decreased in comparison to last year by 0.53% to a score of 88.34% for 2019-20.
A86: Motorways | C86: 0.8827 | D86: 0.8914 | E86: 0.8809 | F86: 0.8751 | G86: 0.8781 | H86: 0.8834 | L86: [2]
A87: APTR | C87: 0.8881 | D87: 0.8953 | E87: 0.9027 | F87: 0.901 | G87: 0.8905 | H87: 0.9023 | L87: [2]
A89: NRUSS score based on location
A90: East | B90: Corporate management information | C90: 0.9202 | D90: 0.9175 | E90: 0.9105 | F90: 0.9027 | G90: 0.9029 | H90: 0.8816 | I90: The 2019-20 end of year scores the North West increased by (+1.22%), Midlands by (+1.63%), South East by (+2.26%), M25 (+1.44) and Yorkshire & North East by (+1.51%) and are the only regions to have increased their cumulative scores, when compared to March 2019. The Yorkshire & North East is the only region scored above the 90% target for the year end. | L90: [3]
A91: South East | B91: Corporate management information | C91: 0.8841 | D91: 0.8907 | E91: 0.8846 | F91: 0.9081 | G91: 0.8643 | H91: 0.8869 | L91: [3]
A92: M25 | B92: Corporate management information | C92: 0.8883 | D92: 0.8952 | E92: 0.8932 | F92: 0.8991 | G92: 0.8724 | H92: 0.8868
A93: South west | B93: Corporate management information | C93: 0.8616 | D93: 0.911 | E93: 0.9083 | F93: 0.8884 | G93: 0.8883 | H93: 0.8817 | L93: [3]
A94: Midlands | B94: Corporate management information | C94: 0.8721 | D94: 0.8905 | E94: 0.8684 | F94: 0.8859 | G94: 0.8826 | H94: 0.8989 | L94: [3]
A95: North west | B95: Corporate management information | C95: 0.8309 | D95: 0.8354 | E95: 0.8299 | F95: 0.7785 | G95: 0.84 | H95: 0.8522 | L95: [3]
A96: Yorkshire and northeast | B96: Corporate management information | C96: 0.8899 | D96: 0.8609 | E96: 0.8799 | F96: 0.8831 | G96: 0.9112 | H96: 0.9263 | L96: [3]
A98: Notes and commentary
A99: [1] Explain external factors that have impacted the actuals and quantify that impact. Explain reasons for the variance.
A100: [2] Explain significant year on year variances. Compare the scores on Motorways to APTR
A101: [3] Explain significant year on year variances. Where one or two areas of the SRN are driving down performance, explanation of the variance should be disaggregated and published.
A102: [X] HE and ORR to consider reporting this data once appropriate strategies and/or reporting has been developed.

Sheet PS3 - Traffic Flow
A1: Highways England Performance Monitoring Statements Year end 2019-20
A2: Statement PS3: Supporting the smooth flow of traffic | C2: For a definition of the metric and parameters for measuring and monitoring the flow of traffic see Highways England’s Operational Metrics Manual
A3: Performance specification
D4: Annual
B5: Source of baseline | C5: Actual | D5: baseline | E5: KPI/PI/ Req | F5: Difference | L5: Notes
A6: KPIs
A7: Network availability
A8: Maximise lane availability so that it does not fall below 97% in any one rolling year | G8: Highways England successfully maintained performance above the 97% target throughout RP1. During 2019-20 we achieved a score of 98.18% of the network available to road users. Annual performance was 0.11% lower than 2018-19. Highways England continues to increase the volume and proportion of roadworks carried out at night, where there are lower traffic volumes to reduce the impact on our customers. We have worked closely with those companies for whom it is essential to use our network at night, such as parcel delivery firms, to mitigate the impact on them by providing them with advance notice of planned road closures. Our Daily Road Closure Report provides notification of road closures which allows customers to plan alternative routes. It is distributed to major hauliers and logistics companies as well as being made available on our website. Regions also directly tweeted customers with respect to roadworks for their awareness.
A9: 2014-15 | B9: Historical Data | C9: 0.9846
A10: 2015-16 | B10: Corporate management information | C10: 0.984 | D10: 0.97 | E10: KPI | F10: =IFERROR(IF(D10="N/A","N/A",C10-D10),"X") -> 0.014 | L10: [1]
A11: 2016-17 | B11: Corporate management information | C11: 0.9841 | D11: 0.97 | E11: KPI | F11: =IFERROR(IF(D11="N/A","N/A",C11-D11),"X") -> 0.0141 | L11: [1]
A12: 2017-18 | B12: Corporate management information | C12: 0.9826 | D12: 0.97 | E12: KPI | F12: =IFERROR(IF(D12="N/A","N/A",C12-D12),"X") -> 0.0126 | L12: [1]
A13: 2018-19 | B13: Corporate management information | C13: 0.9829 | D13: 0.97 | E13: KPI | F13: =IFERROR(IF(D13="N/A","N/A",C13-D13),"X") -> 0.0129 | L13: [1]
A14: 2019-20 | B14: Corporate management information | C14: 0.9818 | D14: 0.97 | E14: KPI | F14: =IFERROR(IF(D14="N/A","N/A",C14-D14),"X") -> 0.0118 | L14: [1]
A15: Incident management
A16: At least 85% of all motorway incidents should be cleared within one hour in any one rolling year | G16: Highways England demonstrated a significant improvement on incident clearance performance throughout the road period exceeding the target of 85%. In 2019-20 achieving a clearance rate of 89.07% , which is 1.06% higher than the previous year and the highest score over RIS1. We have responded to over 64,408 incidents during the twelve months of the current financial year, an increase of 9.76% on the corresponding period of the 2018-19. However, Highways England continues to follow all the strategies which have been successfully implemented to improve incident clearance performance over RIS1.
A17: 2011-12 | B17: Historic Data | C17: 0.869
A18: 2012-13 | B18: Historic Data | C18: 0.848
A19: 2013-14 | B19: Historic Data | C19: 0.857
A20: 2014-15 | B20: Historic Data | C20: 0.862
A21: 2015-16 | B21: Corporate management information | C21: 0.8596 | D21: 0.85 | E21: KPI | F21: =IFERROR(IF(D21="N/A","N/A",C21-D21),"X") -> 0.0096
A22: 2016-17 | B22: Corporate management information | C22: 0.8593 | D22: 0.85 | E22: KPI | F22: =IFERROR(IF(D22="N/A","N/A",C22-D22),"X") -> 0.0093
A23: 2017-18 | B23: Corporate management information | C23: 0.879 | D23: 0.85 | E23: KPI | F23: =IFERROR(IF(D23="N/A","N/A",C23-D23),"X") -> 0.029
A24: 2018-19 | B24: Corporate management information | C24: 0.8801 | D24: 0.85 | E24: KPI | F24: =IFERROR(IF(D24="N/A","N/A",C24-D24),"X") -> 0.0301
A25: 2019-20 | B25: Corporate management information | C25: 0.8907 | D25: 0.85 | E25: KPI | F25: =IFERROR(IF(D25="N/A","N/A",C25-D25),"X") -> 0.0407
A27: PIs
A28: Planning Time Index (PTI)
A29: This measure is designed to indicate how much additional time road users need to allow to ensure they arrive on time. It highlights roads where very slow journeys are encountered. This measure is the ratio of the 95%ile journey time and the free-flow journey time. | G29: Throughout RP1 the Planning Time Index (PTI) has been affected by long-term changes such as growth in traffic on the network, as well as seasonal traffic demand changes and weather. However, at the end of RP1 the score remaining stable in comparison to the previous years. The national PTI for 2019-20 was 1.66, remains stable in comparison to the 2018-19. *Currently a temporary methodology is being used to calculate the measure that uses speed limit as a proxy for free-flow speed, so all historical figures here have been reprocessed using this methodology as last year.
A30: 2009-10 | B30: Reprocessed historical data* | C30: 1.548125984
A31: 2010-11 | B31: Reprocessed historical data* | C31: 1.539052608
A32: 2011-12 | B32: Reprocessed historical data* | C32: 1.500907383
A33: 2012-13 | B33: Reprocessed historical data* | C33: 1.538959339 | D33: .
A34: 2013-14 | B34: Reprocessed historical data* | C34: 1.571621441
A35: 2014-15 | B35: Reprocessed historical data* | C35: 1.639760984
A36: 2015-16 | B36: Corporate management information | C36: 1.663441756 | D36: 1.64 | E36: PI | F36: 0.2
A37: 2016-17 | B37: Corporate management information | C37: 1.68 | D37: 1.64 | E37: PI | F37: =IFERROR(IF(D37="N/A","N/A",C37-D37),"X") -> 0.04
A38: 2017-18 | B38: Corporate management information | C38: 1.74 | D38: 1.64 | E38: PI | F38: 0.05
A39: 2018-19 | B39: Corporate management information | C39: 1.67 | D39: 1.64 | E39: PI | F39: =IFERROR(IF(D39="N/A","N/A",C39-D39),"X") -> 0.03
A40: 2019-20 | B40: Corporate management information | C40: 1.66 | D40: 1.64 | E40: PI | F40: =IFERROR(IF(D40="N/A","N/A",C40-D40),"X") -> 0.02
A42: Traffic on the SRN - Vehicle miles travelled
A43: Suite of indicators to illustrate the impact on traffic flow, of the activities undertaken by the Company, and the influence of other external factors, including at a minimum, reliability of journey times | G43: Traffic (total vehicle miles) on the SRN is collected via automatic and manual counters. The amount of traffic on the SRN is reported retrospectively on an annual basis via the validated count data, which is released by the DfT. The annual report entitled ‘Road Traffic Estimates in Great Britain’ provides a breakdown of the data by motorway and All Purpose Trunk Roads (APTR). Due to Covid-19 the DfT have delayed the Road Traffic Estimates in Great Britain 2019 release date, data for traffic (total vehicle miles) on the SRN will not available until late summer/early autumn 2020. Note: Between 1999 and 2012, the length of the SRN reduced by 12.6%.This was a result of the detrunking prgramme, where the management of parts of the SRN transferred from Highways England (then Highways Agency) to the relevant local authorities.
A44: Amount of Traffic (total vehicle miles on the SRN - per billion vehicle miles)
A46: 2000 | B46: Historical Data | C46: 88.8
A47: 2001 | B47: Historical Data | C47: 87
A48: 2002 | B48: Historical Data | C48: 86.6
A49: 2003 | B49: Historical Data | C49: 84.1
A50: 2004 | B50: Historical Data | C50: 84.4
A51: 2005 | B51: Historical Data | C51: 83.3
A52: 2006 | B52: Historical Data | C52: 85
A53: 2007 | B53: Historical Data | C53: 85.2
A54: 2008 | B54: Historical Data | C54: 84.9
A55: 2009 | B55: Historical Data | C55: 84.3
A56: 2010 | B56: Historical Data | C56: 83.1
A57: 2011 | B57: Historical Data | C57: 84.5
A58: 2012 | B58: Historical Data | C58: 84.7
A59: 2013 | B59: Historical Data | C59: 85.5
A60: 2014 | B60: https://www.gov.uk/government/statistical-data-sets/tra42-traffic-based-on-a-static-road-management-status | C60: 87.3
A61: 2015 | B61: https://www.gov.uk/government/statistical-data-sets/tra42-traffic-based-on-a-static-road-management-status | C61: 89.7
A62: 2016 | B62: https://www.gov.uk/government/statistical-data-sets/tra42-traffic-based-on-a-static-road-management-status#history | C62: 91.9 | E62: PI
A63: 2017 | B63: https://www.gov.uk/government/statistics/road-traffic-estimates-in-great-britain-2017 | C63: 94.1 | E63: PI
A64: 2018 | B64: https://www.gov.uk/government/statistics/road-traffic-estimates-in-great-britain-2018 | C64: 94.7 | E64: PI
A65: 2019 | B65: Delivery plan | C65: X | E65: PI
A66: 2020 | B66: Delivery plan | C66: X | E66: PI
A68: Acceptable Journeys
A69: A high proportion of journeys above the threshold journey time will reflect road performance that is largely unaffected by significant congestion or incident effects. Percentage of the journeys faster than 4/3 of the free flow. | G69: 82.57% of journeys were classified as acceptable in 2019-20 , this is a 0.14% decrease compared to the 2018-19 figure. The proportion of acceptable journeys performance slightly decreased by 1% over RP1 due to economic growth, seasonal traffic demand changes and weather. Typically, over the financial year, in month performance would be better on a weekend due to lower traffic volumes, and the performance scoring days occurred during school holidays or days with very poor weather. *Currently a temporary methodology is being used to calculate the measure that uses speed limit as a proxy for free-flow speed, so all historical figures here have been reprocessed using this methodology.
A70: 2009-10 | B70: Reprocessed historical data* | C70: 0.8575061206
A71: 2010-11 | B71: Reprocessed historical data* | C71: 0.8665193603
A72: 2011-12 | B72: Reprocessed historical data* | C72: 0.8774490518
A73: 2012-13 | B73: Reprocessed historical data* | C73: 0.8707887599
A74: 2013-14 | B74: Reprocessed historical data* | C74: 0.8580725532
A75: 2014-15 | B75: Reprocessed historical data* | C75: 0.8343803903
A76: 2015-16 | B76: Corporate management information | C76: 0.8357871486 | D76: 0.8344 | E76: PI | F76: =IFERROR(IF(D76="N/A","N/A",C76-D76),"X") -> 0.001387148566
A77: 2016-17 | B77: Corporate management information | C77: 0.8346 | D77: 0.8344 | E77: PI | F77: =IFERROR(IF(D77="N/A","N/A",C77-D77),"X") -> 0.0002
A78: 2017-18 | B78: Corporate management information | C78: 0.8245 | D78: 0.8344 | E78: PI | F78: -0.0028
A79: 2018-19 | B79: Corporate management information | C79: 0.8271 | D79: 0.8344 | E79: PI | F79: =IFERROR(IF(D79="N/A","N/A",C79-D79),"X") -> -0.0073
A80: 2019-20 | B80: Corporate management information | C80: 0.8257 | D80: 0.8344 | E80: PI | F80: =IFERROR(IF(D80="N/A","N/A",C80-D80),"X") -> -0.0087
A81: Average Speed (Miles per Hour)
A82: 2009-10 | B82: Reprocessed historical data* | C82: 60.77588924 | G82: This metric is measured using individual car journeys across all times of day and night. The average speed across the SRN for 2019-20 was 58.89 mph. Average speed has shown a reasonably consistent performance over RP1. *Currently a temporary methodology is being used to calculate the measure that uses speed limit as a proxy for free-flow speed, so all historical figures here have been reprocessed using this methodology.
A83: 2010-11 | B83: Reprocessed historical data* | C83: 61.18838859
A84: 2011-12 | B84: Reprocessed historical data* | C84: 61.87904182
A85: 2012-13 | B85: Reprocessed historical data* | C85: 61.33592833
A86: 2013-14 | B86: Reprocessed historical data* | C86: 60.71481323
A87: 2014-15 | B87: Reprocessed historical data* | C87: 59.41165225
A88: 2015-16 | B88: Corporate management information | C88: 59.33 | D88: 59.41 | E88: PI | F88: =IFERROR(IF(D88="N/A","N/A",C88-D88),"X") -> -0.08
A89: 2016-17 | B89: Corporate management information | C89: 59.45 | D89: 59.41 | E89: PI | F89: =IFERROR(IF(D89="N/A","N/A",C89-D89),"X") -> 0.04
A90: 2017-18 | B90: Corporate management information | C90: 58.36 | D90: 59.41 | E90: PI | F90: -0.17
A91: 2018-19 | B91: Corporate management information | C91: 59.03 | D91: 59.41 | E91: PI | F91: =IFERROR(IF(D91="N/A","N/A",C91-D91),"X") -> -0.38
A92: 2019-20 | B92: Corporate management information | C92: 58.89 | D92: 59.41 | E92: PI | F92: =IFERROR(IF(D92="N/A","N/A",C92-D92),"X") -> -0.52
A94: Requirements
A95: Impact of activities undertaken to minimise inconvenience to road users through road works
A96: Demonstrate what activities have been taken, and how effective they have been, to maintain and improve user satisfaction. | C96: Through different working practices and innovative techniques Highways England can minimise the impact of work on customers. Examples include: - We rolled out a new intelligence led approach to maintenance. The new outcome focussed specification reinforces Asset Delivery, giving regions ownership that allows them to reprioritise maintenance activities based on local intelligence. - We published our first three Customer Service Standards. They focus on scheme billboards to improve information, accurate advance notification of planned closures and litter. Going forward the A14 project tested new electronic billboards displaying a range of messages about work taking place on the scheme. And on M4 we have activated our electronic billboards providing more customer friendly messaging for road users. - In 2019, we signed a revised Memorandum of Understanding with Network Rail. The MoU sets our collective ambition to work together to develop areas of mutual interest and identify opportunities for future joint working, in particular around joint planning in the early stages of programmes. - We delivered a campaign across all channels to explain the Lower Thames Crossing ground investigation programme. It informs customers what is happening to the landscape and why the work is important to the safe design of the scheme. - We released a time lapse of the A14 Cambridge to Huntingdon bridge demolition at the most complex junction on social media praising the way the demolition was handled and communicated. - We carried out media interviews to publicise a new asphalt that uses waste rubber onpart of the M1 testing its long-term durability. We are also testing seven new types of road markings on the M5, they have been tested in a controlled environment and will now be tested in all weathers. - We collaborated with our supply chain to produce a series of short films for our traffic management community on how we can reduce incursions through better design and the use of mitigating measures. A further video, for our customers, raises awareness around safer driving practices. All films have been well received across our industry. - We have successfully implemented 60mph within roadworks on 8 schemes in permanent, dynamic and contraflow scenarios. The findings have been compiled into guidance and case studies to support project teams in implementing the highest safe speed in their roadworks
A98: Working effectively with partners to improve incident response
A99: Demonstrate that it is working effectively with its partners to improve incident response. | C99: We adopt a continuous improvement approach to how we manage incidents. By constantly looking at ways we can improve our incident response and clearance times we allow quicker access to casualties and reduce the likelihood of secondary incidents occurring. Our current activities in this area are grouped into four main areas: -Highways England closely engaged with National Fire Chiefs Council (NFCC) and National Police Chiefs Council (NPCC) in redrafting the Strategic Road Responders agreement including the 2020 – 2025 requirements. Highways England together with Fire, Police and Ambulance raised and signed a statement of intent to commit to CLEAR. This historic and dated agreement has been bought up to date with a more customer focused approach in March 2020. - Highways England have worked with National Police Chiefs Council (NPCC) to nominate regional leads within each of the 7 NPCC regions that align, broadly, with HE regions. Operations managers are engaging at chief inspector, inspector level with strategic performance discussions. These discussions allow us to share best practice and work out how we can do more of the things that have proved effective. Also, it helps to identify and resolve blockers that might delay road opening following any incident. We will interrogate and debrief incident logs where appropriate and our findings form the basis for these conversations which are based on lessons learnt and knowledge transfer. - We had a speaker session ‘CLEAR – collaboration within incident management’ it stresses the need to engagement within responder communities for effective incident management ‘at the Emergency Services Show 2019 in the Public-Sector Hub theatre and Parliamentary Advisory Council for Transport Safety. These sessions aimed at providing blue light services, recovery and maintenance providers and insight into CLEAR and its benefits. - We continued closely work with Transport Focus to improve customer focus within our CLEAR initiative. - Roads policing memorandum of understanding (MOU) with local police forces, Highways England and other blue light services to put CLEAR at the heart of incident management on our SRN. This collaboration has supported our KPI on motorway incidents cleared, during 2019-20 Highways England exceeded the 85% target to clear of motorway incidents within an hour.
A101: Other monitoring requirements | C101: 2015-16 | D101: 2016-17 | E101: 2017-18 | F101: 2018-19 | G101: 2019-20
A102: No. impact incidents | C102: 46561 | D102: 49130 | E102: 56136 | F102: 58680 | G102: 64408 | I102: DPI | J102: Note: hours of time lost in traffic for the year is currently not reported on. Future development under consideration. | L102: [2]
A103: Mean time to clear incidents | C103: 00:40:32 | D103: 00:35:58 | E103: 00:32:55 | F103: 00:32:12 | G103: 00:30:24 | I103: DPI | L103: [2]
A104: Median time to clear incidents | C104: 00:22:38 | D104: 00:22:39 | E104: 00:22:04 | F104: 00:21:27 | G104: 00:20:59 | I104: DPI | L104: [2]
A105: Hours of time lost in traffic for the year | C105: n/a | D105: n/a | E105: n/a | F105: n/a | G105: n/a | I105: DPI | L105: [2]
A107: Notes and commentary
A108: [1] Explain what actions and activities have been taken by management to achieve trajectory and explain whether they were successful. Explain external factors that have impacted the actuals and quantify that impact. Explain reasons for the variance.
A109: [2] Explain external factors that have impacted the actuals and quantify that impact. Explain reason for the variance.
A110: [X] HE and ORR to consider reporting this data once appropriate strategies and/or reporting has been developed.

Sheet PS4 - Economic growth
A1: Highways England Performance Monitoring Statements Year end 2019-20
A2: Statement PS4: Encouraging economic growth | C2: For a definition of the metric and parameters for measuring and monitoring encouraging economic growth see Highways England’s Operational Metrics Manual
A3: Performance specification
D4: Annual
B5: Source of baseline | C5: Actual | D5: baseline | E5: KPI/PI/ Req | F5: Difference | L5: Notes
A6: KPI
A7: Average delay (time lost, in seconds, per vehicle per mile)
A8: The company should report annually on average delay | G8: During 2019-20, average delay on the SRN was 9.33 seconds per vehicle per mile. This represents a marginal 0.38% increase on 2018-19, indicating that delay has an upwards trend compared to the previous years. However, 2019-20 has seen four named storms that have had an impact on road user experience. Covid-19 travel restrictions came into place with the UK entering Delay Phase on the 12th March and Lockdown on the 24th. Responding to our customers’ and stakeholders’ feedback, we have reduced roadworks during high-demand travel periods, such as Christmas, Easter and school summer holidays. This has allowed around 99% of our network to be free from roadworks over these busy periods. We have looked to minimise the disruption caused to our customers by our works on the network. Examples include the M6 J13 - 15 smart motorway scheme which put in place a total closure to remove a narrow bridge in Staffordshire. A full weekend closure was originally planned for the works with traffic modelling predicting up to 5 hours of delay. The project re-worked their plans to reduce this to a 24-hour closure, and in the actual event managed to complete the removal in under half that time, opening the road after just 11 hours and reducing the impact on our customers. Similarly, to reduce the inconvenience of road closures to our customers, the A14 project team demolished Swavesey Bridge and reopened the road for traffic 20 hours earlier than scheduled.
A9: 2009-10 | B9: Reprocessed historical data | C9: 7.788279399
A10: 2010-11 | B10: Reprocessed historical data | C10: 7.417538257
A11: 2011-12 | B11: Reprocessed historical data | C11: 6.773123314
A12: 2012-13 | B12: Reprocessed historical data | C12: 7.217681828
A13: 2013-14 | B13: Reprocessed historical data | C13: 7.79607193
A14: 2014-15 | B14: Reprocessed historical data | C14: 8.970687797
A15: 2015-16 | B15: Historical data | C15: 8.932042105 | D15: 8.97 | E15: KPI | F15: =SUM(D15-C15) -> 0.03795789496
A16: 2016-17 | B16: Historical data | C16: 8.95 | D16: 8.93 | E16: KPI | F16: 0.02
A17: 2017-18 | B17: Delivery Plan | C17: 9.19 | D17: 8.95 | E17: KPI | F17: 0.24
A18: 2018-19 | B18: Corporate management information | C18: 9.37 | D18: 8.95 | E18: KPI | F18: 0.42
A19: 2019-20 | B19: Corporate management information | C19: 9.33 | D19: 8.95 | E19: KPI | F19: =IFERROR(IF(D19="N/A","N/A",C19-D19),"X") -> 0.38
A21: PIs
A22: Being an active and responsive part of the planning system
A23: 99% percentage of formal Local Planning Authority issued planning application consultations should be responded to within 21 days of their receipt | G23: In 2019-20 we continued the yearly trend of exceeding our target by responding to 99.85% of planning applications within 21 days.
A24: 2010-11 | B24: Historical Data | C24: 0.9822
A25: 2011-12 | B25: Historical Data | C25: 0.999
A26: 2012-13 | B26: Historical Data | C26: 0.996
A27: 2013-14 | B27: Historical Data | C27: 0.996
A28: 2014-15 | B28: Historical Data | C28: 0.999
A29: 2015-16 | B29: Historical Data | C29: 0.998 | D29: 0.99 | E29: PI | F29: 0.008
A30: 2016-17 | B30: Historical Data | C30: 0.9977 | D30: 0.99 | E30: PI | F30: 0.0077
A31: 2017-18 | B31: Delivery Plan | C31: 1 | D31: 0.99 | E31: PI | F31: 0.01
A32: 2018-19 | B32: Corporate management information | C32: 0.9988 | D32: 0.99 | E32: PI | F32: 0.0088
A33: 2019-20 | B33: Corporate management information | C33: 0.9985 | D33: 0.99 | E33: PI | F33: 0.0085
A35: Average delay on Gateway Routes (Seconds per vehicle mile)
A36: The company should report annually on average delay | G36: During 2019-20, average delay on Gateway Routes was 8.62 seconds. This represents a decrease of 4% from the previous year, compared to the rise of 3% seen for the year 2018-19. A general upward trend can be observed from RIS 1 onwards. Covid-19 travel restrictions came into place with the UK entering Delay Phase on the 12th March and Lockdown on the 24th.
A37: 2009-10 | B37: Reprocessed historical data | C37: 7.506512588
A38: 2010-11 | B38: Reprocessed historical data | C38: 6.923314842
A39: 2011-12 | B39: Reprocessed historical data | C39: 6.181591104
A40: 2012-13 | B40: Reprocessed historical data | C40: 6.555660691
A41: 2013-14 | B41: Reprocessed historical data | C41: 7.246343854
A42: 2014-15 | B42: Reprocessed historical data | C42: 8.660087209
A43: 2015-16 | B43: Historical data | C43: 8.110787491 | D43: 8.66 | E43: PI | F43: =SUM(D43-C43) -> 0.5492125087
A44: 2016-17 | B44: Historical data | C44: 8.23 | D44: 8.11 | E44: PI | F44: 0.12
A45: 2017-18 | B45: Corporate management information | C45: 8.7 | D45: 8.23 | E45: PI | F45: 0.47
A46: 2018-19 | B46: Corporate management information | C46: 8.96 | D46: 8.7 | E46: PI | F46: 0.26
A47: 2019-20 | B47: Corporate management information | C47: 8.62 | D47: 8.96 | E47: PI | F47: 0.34
A49: Helping the Government support small and medium sized enterprises
A50: 25% of direct and indirect spend to Small and Medium size Enterprises (SME) | G50: The 25% target has again been achieved this year continuing the trend across RIS1. We have engaged directly with SMEs at key industry events and have attended several events throughout each year. This engagement supports our suppliers’ understanding of our tendering processes and helped to raise awareness of relevant contracting opportunities, removing some of the potential barriers they face. Performance has also been influenced by the fact that more projects have moved into the construction phase where we would typically expect to see a higher proportion of expenditure with small and medium sized enterprises in comparison to earlier options and development phases, as well as us having more robust data.
A51: 2013-14 | B51: Historical Data | C51: 0.307
A52: 2014-15 | B52: Historical Data | C52: 0.269
A53: 2015-16 | B53: Historical Data | C53: 0.2688 | D53: 0.25 | E53: PI | F53: 0.0188
A54: 2016-17 | B54: Historical Data | C54: 0.2546 | D54: 0.25 | E54: PI | F54: 0.0046
A55: 2017-18 | B55: Delivery Plan | C55: 0.25 | D55: 0.25 | E55: PI | F55: =SUM(D55-C55) -> 0
A56: 2018-19 | B56: Corporate management information | C56: 0.2624 | D56: 0.25 | E56: PI | F56: 0.0124
A57: 2019-20 | B57: Corporate management information | C57: 0.2986 | D57: 0.25 | E57: PI | F57: =SUM(C57-D57) -> 0.0486
A60: Requirements
A62: Actively support the Construction 2025 goals
A63: People – an industry that is known for its talented and diverse workforce | E63: Req | G63: To ensure the optimal commercial and procurement solutions and the optimal value adding supply base are available to Highways England we have the Improvement Plan. Delivering the Commercial & Procurement (C&P) capability via the Contract Control Framework (CCF), the ongoing commercial management and of suppliers and the development of strategic relationships coupled with information led targeted supplier development. We are investing in the development of our people (technical skills, soft skills and leadership skills), modernising our processes and tools and the ongoing improvement of all areas via the rolling C&P 3-year Strategic plan.
A64: Smart – an industry that is efficient and technologically advanced | E64: Req | G64: The implementation of our category management approach in IT commercialises and procures all infrastructure, software, hardware, change, traffic and roadside technology for the delivery of Highways England programmes and services. We do this within a culture and work environment that promotes colleague engagement and wellbeing with a clear focus on achieving targeted cost reductions. We execute these accountabilities through our sub-category teams which are Enterprise Systems, Infrastructure Services, Operational Roadside Technology and Operational Systems by: • Enabling the procurement of cameras, roadside infrastructure and telecoms, lighting, maintenance contracting, signs & signals, traffic flow control devices, power supply (DNO), meteorological devices, maintenance and product development devices, data centre services, network and telephony. • Our services and the underpinning supply chains drive the delivery of the Company’s information and technology services. • We work closely with and collaborate across different divisions. We collaborate with other Government Departments including GDS, CCS and GCF to create value and technology alignment.
A65: Sustainable – an industry that leads the world in low-carbon and green construction exports | E65: Req | G65: Our approach to procurement relating to our Designated Funds enables us to address social and environmental issues beyond the traditional focus of road investment. This helps us to enhance biodiversity, conserve cultural heritage and strengthen flood resilience as well as improve air quality, increase local integration, and support walkers, cyclists and horse riders. We know that the local impact of such schemes has made them a visible manifestation of the benefits of our overall investment programme. This enables us to work together with key stakeholders to invest these funds in a flexible way across this broad range of issues over the course of the next five years.
A66: Growth – an industry that drives growth across the entire economy | E66: Req | G66: Changes in the way in which Highways England operates, maintains and enhances the SRN represent an evolution, building on the lessons learnt from RP1, instead of a completely new way of doing things. Highways England will be exploring new ways of procuring services as part of ongoing efforts to find efficiencies. The biggest change is the increased scale of work, which began to ramp up towards the end of RP1 and continues into RP2, and the consequent demand on the supply chain. However, the certainty provided by the 5-year funding cycle, and long-term planning, will help the supply chain to plan, invest and grow to meet the demand. Highways England is working with the supply chain to ensure the company and the supply chain will have the capability and capacity required.
A67: Leadership – an industry with clear leadership from a Construction Leadership Council | E67: Req | G67: We continue to work with our suppliers to manage opportunities and risks before they impact on operational delivery as well as obtaining a better understanding of how suppliers will develop their own capability and capacity, accelerate the sharing of learning and address any wider factors that may impact on supplier performance and sustainability moving forward. Examples include embedding best practise on the HMG agenda like the Outsourcing Playbook and policies to combat Modern Slavery. Also helping to ensure initiatives such as 60mph through roadworks and HE Passport are adopted at all levels by the supply chain before being needed by projects. At sector level we operate to prime the market and ensure existing and potential new suppliers are; developing the leadership and skills needed to deliver our business, developing their collaborative working, improving forecasting reliability, shaping their digital capability, thinking about strategic sourcing and developing their supply chains to drive to better safety, delivery performance and outcomes for our customers.
A69: Roads academy programme
A70: Deliver the Roads Academy programme across the industry | E70: Req | G70: Roads Academy is a cross-sector initiative to create significant change in how roads industry thinks, behaves and performs. During RP1 we have had over 160 learners successfully graduate from Emerging Leaders and Senior Leaders programmes. The first graduation for our cohort on the Step-up to Leadership programme will take place next year. Alongside these, bitesize versions of the programmes are currently in development. The Roads Academy continued to improve diversity, for example 31% of learners in 2019 were women. During this time period we have had held 10 bi-annual masterclasses for current course participants, alumni and senior leaders from membership organisations to learn and discuss about key current themes for the sector such as Health and Wellbeing, the Customer, RIS1 and RIS2. Within the Roads Academy we have tiered the membership model to attract SMEs from our supply chain and added a membership model for local authorities, membership has since grown to 25-member organisations. The Roads Academy has won the Coventry University award for 'Enterprise and Innovation' – Coventry Excellence Awards for the category Creativity and Enterprise and were also finalists for the CIPD People Management Awards 'Best L&D Initiative -Third/Public Sector’. A new website has been launched to increase engagement with our members alongside our social media campaigns. The Roads Academy social media presence has grown, and at the end of 2019 there were 900 connections and 1056 followers on LinkedIn. 42% of applications from June 2019 applied via social media and the most viewed LinkedIn post in 2019 had 6739 views. Roads Academy continue to attend the annual Highways UK exhibition to increase engagement in programmes and generate interest across the wider sector.
A72: Innovation strategy
A73: Develop its Innovation, Technology, and Research Strategy and agree an implementation plan by March 2016 | E73: Req | G73: Completed
A75: Identify constraints through route strategies
A76: Through Route Strategies identify constraints to economic growth that the performance of the Network can help to alleviate and define future delivery and investment plans which address them. | E76: Req | G76: Completed
A78: Notes and commentary
A79: [1] Explain what actions and activities have been taken by management to achieve actual and explain whether they were successful. Explain external factors that have impacted the actuals and quantify that impact.
A80: [2] Explain what actions and activities have been taken by management to achieve trajectory and explain whether they were successful. Explain external factors that have impacted the actuals and quantify that impact. Explain reasons for the variance.
A81: [3] Explain what actions and activities have been taken by management to achieve trajectory and explain whether they were successful. Explain external factors that have impacted the actuals and quantify that impact. Explain reasons for the variance.
A82: [X] HE and ORR to consider reporting this data once appropriate strategies and/or reporting has been developed.

Sheet PS5 - Environment
A1: Highways England Performance Monitoring Statements Year end 2019-20
A2: Statement PS5: Delivering better environmental outcomes | C2: For a definition of the metric and parameters for measuring and monitoring environmental performance see Highways England’s Operational Metrics Manual
A3: Performance specification
D4: Annual | G4: Cumulative
B5: Source of baseline | C5: Actual | D5: baseline | E5: KPI/PI/ Req | F5: Difference | G5: Actual | H5: baseline | I5: KPI/PI/ Req | J5: Difference | L5: Notes
A6: KPIs
A7: Noise important areas
A8: Mitigate at least 1,150 Noise Important Areas over RP1 | C8: We exceeded our RIS1 target of 1,150 NIAs by delivering a total of 1,174 NIAs over the 5-year funding period. We achieved this through 4 key measures: insulation, resurfacing, barriers and bypasses. The number of properties mitigated per NIA steadily increased year on year as the scheme moved into larger areas with more properties (9 compared to 3-4 properties at the start). Our improved letter pack to customers and communications plan further supported this trend. We delivered the highest number of noise important areas (NIAs) between 2016-17 and 2017-18. More broadly, the noise team has been recognised by the Noise Abatement Society for its ‘integrated, comprehensive and complex noise mitigation and management scheme for 800 Noise Important Areas’​ and received the John Connell ‘Silent Approach’ Award for its efforts.
A9: 2015-16 | B9: Corporate management information | C9: 62 | D9: 0 | E9: KPI | F9: =IFERROR(IF(D9="N/A","N/A",C9-D9),"X") -> 62 | G9: =SUM($C$9:C9) -> 62 | H9: =SUM($D$9:D9) -> 0 | I9: KPI | J9: =IFERROR(IF(H9="N/A","N/A",G9-H9),"X") -> 62 | L9: [1]
A10: 2016-17 | B10: Corporate management information | C10: 141 | D10: 300 | E10: KPI | F10: =IFERROR(IF(D10="N/A","N/A",C10-D10),"X") -> -159 | G10: =SUM(C9:C10) -> 203 | H10: =SUM($D$9:D10) -> 300 | I10: KPI | J10: =IFERROR(IF(H10="N/A","N/A",G10-H10),"X") -> -97 | L10: [1]
A11: 2017-18 | B11: Delivery plan | C11: 448 | D11: 300 | E11: KPI | F11: =IFERROR(IF(D11="N/A","N/A",C11-D11),"X") -> 148 | G11: =SUM(C9:C11) -> 651 | H11: =SUM($D$9:D11) -> 600 | I11: KPI | J11: =IFERROR(IF(H11="N/A","N/A",G11-H11),"X") -> 51 | L11: [1]
A12: 2018-19 | B12: Delivery plan | C12: 300 | D12: 300 | E12: KPI | F12: =IFERROR(IF(D12="N/A","N/A",C12-D12),"X") -> 0 | G12: =SUM(C9:C12) -> 951 | H12: =SUM($D$9:D12) -> 900 | I12: KPI | J12: =IFERROR(IF(H12="N/A","N/A",G12-H12),"X") -> 51 | L12: [1]
A13: 2019-20 | B13: Performance Specification | C13: 223 | D13: 250 | E13: KPI | F13: =IFERROR(IF(D13="N/A","N/A",C13-D13),"X") -> -27 | G13: =SUM(C9:C13) -> 1174 | H13: =SUM($D$9:D13) -> 1150 | I13: KPI | J13: =IFERROR(IF(H13="N/A","N/A",G13-H13),"X") -> 24 | L13: [1]
A15: Biodiversity plan
A16: The Company should publish its Biodiversity Action Plan (BAP) by 30 June 2015 and report annually on how it has delivered against the Plan to reduce net biodiversity loss on an ongoing annual basis | C16: We delivered against the vast majority the actions in our external Biodiversity Action Plan. We annually reported on progress against the plan as committed. As a result, we made substantial progress in raising awareness about biodiversity across the company and significantly improved our company practices. In addition, we successfully developed and trialled a biodiversity metric, becoming the first company in the industry to achieve this.
A17: Publish BAP by 30 June 2015 | B17: Performance Specification | C17: Biodiversity Action Plan was published in June 2015, with progress reports against it released every year.
A19: PIs
A20: Develop an Air Quality Action Plan by March 2016
A22: Number of Air Quality pilot studies started
A23: 2015-16 | B23: Corporate management information | C23: 6 | D23: 6 | E23: PI | F23: =IFERROR(IF(D23="N/A","N/A",C23-D23),"X") -> 0 | G23: We successfully completed all 10 air quality feasability studies as committed and published an external report on the findings. In addition, significant progress was made on finding appropriate mitigations for the initial 101 Pollution Climate Mapping (PCM) links agreed with Defra as having the highest air pollution. We identified potential mitigation measures for the latest 28 links modelled as non-compliant. The solutions considered include 9.3m high vertical barriers, speed controls and traffic management studies, with a number of those implemented on the ground in RIS1. | L23: [2]
A24: 2016-17 | B24: DP p44, OMM p136, PS p24 | C24: 4 | D24: 6 | E24: PI | F24: =IFERROR(IF(D24="N/A","N/A",C24-D24),"X") -> -2 | L24: [2]
A25: 2017-18 | B25: Delivery plan | C25: 10 | D25: 10 | E25: PI | F25: =IFERROR(IF(D25="N/A","N/A",C25-D25),"X") -> 0 | L25: [2]
A26: 2018-19 | B26: Delivery plan | C26: 10 | D26: 10 | E26: PI | F26: =IFERROR(IF(D26="N/A","N/A",C26-D26),"X") -> 0 | L26: [2]
A27: 2019-20 | B27: Delivery plan | C27: 10 | D27: [X] | E27: PI | F27: =IFERROR(IF(D27="N/A","N/A",C27-D27),"X") -> X | L27: [2]
A29: Carbon and other greenhouse gas emissions (tonnes of CO2e):
A30: Associated with Highways England's activities
A31: 2008-09 | B31: Historical Data | C31: X | G31: We outperformed the Greening Government Commitment target by 5.6%, against the 44% reduction in emissions target. We substantially increased the use of LED units as part of lighting or traffic signal upgrades. The significant improvement in reliability of the LED bulbs also removes the maintenance requirement for bulb replacements over the 25-year lifespan of LED bulbs. Together with the enhanced lighting and greater lifespan, this reduces the disruption for customers and provides a safer environment for both customers and maintenance crews. We updated the existing Highways England Carbon Accounting Manual, thereby improving significantly our data processes and management.
A32: 2009-10 | B32: Historical Data | C32: 132500
A33: 2010-11 | B33: Historical Data | C33: 127310
A34: 2011-12 | B34: Historical Data | C34: 104043
A35: 2012-13 | B35: Historical Data | C35: 102862
A36: 2013-14 | B36: Historical Data | C36: 98496
A37: 2014-15 | B37: Historical Data | C37: 104978
A38: 2015-16 | B38: Corporate management information | C38: 95373 | D38: 104978 | E38: PI | F38: =IFERROR(IF(D38="N/A","N/A",C38-D38),"X") -> -9605 | L38: [3]
A39: 2016-17 | B39: Corporate management information | C39: 89591 | D39: 95373 | E39: PI | F39: =IFERROR(IF(D39="N/A","N/A",C39-D39),"X") -> -5782 | L39: [3]
A40: 2017-18 | B40: Delivery plan | C40: 83659 | D40: 89591 | E40: PI | F40: =IFERROR(IF(D40="N/A","N/A",C40-D40),"X") -> -5932 | L40: [3]
A41: 2018-19 | B41: Delivery plan | C41: 72302 | D41: 83659 | E41: PI | F41: =IFERROR(IF(D41="N/A","N/A",C41-D41),"X") -> -11357 | L41: [3]
A42: 2019-20 | B42: Delivery plan | C42: 66046 | D42: 72302 | E42: PI | F42: =IFERROR(IF(D42="N/A","N/A",C42-D42),"X") -> -6256 | L42: [3]
A43: Associated with the Supply chain activities
A44: 2008-09 | B44: Historical Data | C44: X | G44: Over RP1 we have significantly improved the timeliness and quality of the carbon data from our contractors’ activities. We actively engaged with the delivery arm of the business to ensure this positive trend continues and is maintained for the future. In terms of specific activities targeted at reducing supply chain emissions, we have revised our standards including a requirement that carbon emissions (greenhouse gases or carbon dioxide equivalents) associated with the whole life of a project shall be minimised. This promotes considerable investment need and design, maximising the use of existing assets, building cleverer the latest advances in the industry and being more efficient with technologies and waste elimination.
A45: 2009-10 | B45: Historical Data | C45: 567500
A46: 2010-11 | B46: Historical Data | C46: 507000
A47: 2011-12 | B47: Historical Data | C47: 411124
A48: 2012-13 | B48: Historical Data | C48: 203648
A49: 2013-14 | B49: OMM p153, Historical Data | C49: 303620
A50: 2014-15 | B50: Historical Data | C50: 383487
A51: 2015-16 | B51: Corporate management information | C51: 406523 | D51: 383487 | E51: PI | F51: =IFERROR(IF(D51="N/A","N/A",C51-D51),"X") -> 23036 | L51: [3]
A52: 2016-17 | B52: Corporate management information | C52: 326535 | D52: 406523 | E52: PI | F52: =IFERROR(IF(D52="N/A","N/A",C52-D52),"X") -> -79988 | L52: [3]
A53: 2017-18 | B53: Delivery plan | C53: 255000 | D53: 326535 | E53: PI | F53: -71535 | L53: [3]
A54: 2018-19 | B54: Delivery plan | C54: 293684 | D54: 255000 | E54: PI | F54: 38684 | L54: [3]
A55: 2019-20 | B55: Delivery plan | C55: 563847 | D55: 293684 | E55: PI | F55: 270163 | L55: [3]
A56: Total
A57: 2008-09 | B57: Delivery plan | C57: =IFERROR(SUM(C31+C44),"X") -> X
A58: 2009-10 | B58: Delivery plan | C58: =IFERROR(SUM(C32+C45),"X") -> 700000
A59: 2010-11 | B59: Delivery plan | C59: 634310
A60: 2011-12 | B60: Delivery plan | C60: 515167
A61: 2012-13 | B61: Delivery plan | C61: 306510
A62: 2013-14 | B62: Delivery plan | C62: =IFERROR(SUM(C36+C49),"X") -> 402116
A63: 2014-15 | B63: Delivery plan | C63: 488465
A64: 2015-16 | B64: Delivery plan | C64: 501896 | D64: =IFERROR(SUM(D38)+D51,"[X]") -> 488465 | E64: PI | F64: =IFERROR(IF(D57="N/A","N/A",C64-D64),"X") -> 13431 | L64: [3]
A65: 2016-17 | B65: Delivery plan | C65: 416126 | D65: =IFERROR(SUM(D39)+D52,"[X]") -> 501896 | E65: PI | F65: =IFERROR(IF(D65="N/A","N/A",C65-D65),"X") -> -85770 | L65: [3]
A66: 2017-18 | B66: Delivery plan | C66: 338659 | D66: =IFERROR(SUM(D40)+D53,"[X]") -> 416126 | E66: PI | F66: =IFERROR(IF(D66="N/A","N/A",C66-D66),"X") -> -77467 | L66: [3]
A67: 2018-19 | B67: Delivery plan | C67: 365986 | D67: =IFERROR(SUM(D41)+D54,"[X]") -> 338659 | E67: PI | F67: =IFERROR(IF(D67="N/A","N/A",C67-D67),"X") -> 27327 | L67: [3]
A68: 2019-20 | B68: Delivery plan | C68: =IFERROR(SUM(C42+C55),"X") -> 629893 | D68: =IFERROR(SUM(D42)+D55,"[X]") -> 365986 | E68: PI | F68: 263907 | L68: [3]
A70: Requirements | D70: Annual
B71: Source of baseline | C71: Actual | D71: baseline | E71: KPI/PI/ Req | F71: Difference
A73: Demonstrate what activities have been taken, and how effective they have been, to improve environmental outcomes. | C73: The company released an external overarching Sustainable Development and Environment Action Plan setting out our key cross-company activities by 2020. We completed the majority of the actions which put us in a more favourable position for the start of the next road period. We successfully updated and refreshed all our internal technical standards as part of our deisgn manual for roads and bridges and delivered an associated training across the whole fo the company. We made significant progress in developing the metrics to be implemented over the next five year RIS period as part of measuring and tracking our company performance. | L73: [4]
A75: Develop metrics covering broader environmental performance; new or improved biodiversity metrics
A76: 2015-16 | B76: Develop and monitor against programme | C76: Yes | D76: X | E76: Req | F76: =IFERROR(IF(D76="N/A","N/A",C76-D76),"X") -> X | G76: Throughout 2019-20 the development and trial of metrics for future RIS periods was undertaken. We successfully developed a biodiversity metric, thus meeting our requirement in the area. We also went beyond this and ensured that the metric is adopted by the relevant parts of the business in prepration for the second road period. The adoption of the metric by the business has demonstrated that we now have projects that are identifying opportunities to go beyond minimising impacts in favour of the delivery of net gains for biodiversity. The following activities have been completed as part of the metric introduction: – Trailling of reporting using Biodiversity Metric. – Applied across most major projects – Review, trialling and adoption of Biodiversity Metric 2.0 (and predecessors) including through Chief Highways Engineer memo. | L76: [5]
A77: 2016-17 | B77: Develop and monitor against programme | C77: Yes | D77: X | E77: Req | F77: =IFERROR(IF(D77="N/A","N/A",C77-D77),"X") -> X | L77: [5]
A78: 2017-18 | B78: Metric established by December 2017 (BAP) | C78: Yes | D78: X | E78: Req | F78: =IFERROR(IF(D78="N/A","N/A",C78-D78),"X") -> X | L78: [5]
A79: 2018-19 | B79: Metric reported | C79: Yes | D79: X | E79: Req | F79: =IFERROR(IF(D79="N/A","N/A",C79-D79),"X") -> X | L79: [5]
A80: 2019-20 | B80: Metric reported | C80: Yes | D80: X | E80: Req | F80: =IFERROR(IF(D80="N/A","N/A",C80-D80),"X") -> X | L80: [5]
A82: Develop metrics covering broader environmental performance; Carbon and other greenhouse gas emissions arising from the use of the SRN
A83: 2015-16 | B83: Develop and monitor against programme | C83: Yes | D83: X | E83: Req | F83: =IFERROR(IF(D83="N/A","N/A",C83-D83),"X") -> X | G83: Throughout 2019-20 we effectively developed and trialled the metrics for future RIS period. We worked on developing and further improving the metric, and we will continue to report on progress into the second road period. | L83: [6]
A84: 2016-17 | B84: Develop and monitor against programme | C84: Yes | D84: X | E84: Req | F84: =IFERROR(IF(D84="N/A","N/A",C84-D84),"X") -> X | L84: [6]
A85: 2017-18 | B85: Develop and monitor against programme | C85: Yes | D85: X | E85: Req | F85: =IFERROR(IF(D85="N/A","N/A",C85-D85),"X") -> X | L85: [6]
A86: 2018-19 | B86: Develop and monitor against programme | C86: Yes | D86: X | E86: Req | F86: =IFERROR(IF(D86="N/A","N/A",C86-D86),"X") -> X | L86: [6]
A87: 2019-20 | B87: Metric established | C87: Yes | D87: X | E87: Req | F87: =IFERROR(IF(D87="N/A","N/A",C87-D87),"X") -> X | L87: [6]
A89: The number of validated flooding hotspots mitigated
A90: 2015-16 | B90: Corporate management information | C90: 72 | D90: 69 | E90: Req | G90: We successfully mitigated 40 flooding hotspots during RP1. To achieve this we standardised the reporting requirements for supply chain, by introducing contractor performance framework metric for water environments which improves reporting requirements and incentivises good design and identification of wider benefits. The company delivered a suite of training webinars, provided to the business along with briefing guidance. | L90: [6]
A91: 2016-17 | B91: Corporate management information | C91: 61 | D91: 72 | E91: Req | F91: =IFERROR(IF(D90="N/A","N/A",C91-D90),"X") -> -8 | L91: [6]
A92: 2017-18 | B92: Milestones in Delivery plan | C92: 40 | D92: 61 | E92: Req | F92: =IFERROR(IF(D92="N/A","N/A",C92-D92),"X") -> -21 | L92: [6]
A93: 2018-19 | B93: Milestones in Delivery plan | C93: 35 | D93: 40 | E93: Req | F93: =IFERROR(IF(D93="N/A","N/A",C93-D93),"X") -> -5 | L93: [6]
A94: 2019-20 | B94: Milestones in Delivery plan | C94: 40 | D94: 35 | E94: Req | F94: =IFERROR(IF(D94="N/A","N/A",C94-D94),"X") -> 5 | L94: [6]
A96: The number of validated culverts mitigated
A97: 2015-16 | B97: Corporate management information | C97: 3 | D97: 21 | E97: Req | G97: We successfully mitigated 3 culverts during RP1. To achieve this we standardised the reporting requirements for supply chain, by introducing contractor performance framework metric for water environments which improves reporting requirements and incentivises good design and identification of wider benefits. The company delivered a suite of training webinars, provided to the business along with briefing guidance. | L97: [6]
A98: 2016-17 | B98: Corporate management information | C98: 5 | D98: 3 | E98: Req | F98: =IFERROR(IF(D98="N/A","N/A",C98-D98),"X") -> 2 | L98: [6]
A99: 2017-18 | B99: Milestones in Delivery plan | C99: 1 | D99: 5 | E99: Req | F99: =IFERROR(IF(D99="N/A","N/A",C99-D99),"X") -> -4 | L99: [6]
A100: 2018-19 | B100: Milestones in Delivery plan | C100: 0 | D100: 1 | E100: Req | F100: =IFERROR(IF(D100="N/A","N/A",C100-D100),"X") -> -1 | L100: [6]
A101: 2019-20 | B101: Milestones in Delivery plan | C101: 3 | D101: 0 | E101: Req | F101: =IFERROR(IF(D101="N/A","N/A",C101-D101),"X") -> 3 | L101: [6]
A103: The number of validated outfalls mitigated
A104: 2015-16 | B104: Corporate management information | C104: 0 | D104: [X] | E104: Req | G104: We sucessfully delivered 14 outfalls over RIS1 and met our internal company targets for each financial year. | L104: [6]
A105: 2016-17 | B105: Corporate management information | C105: 5 | D105: 0 | E105: Req | F105: =IFERROR(IF(D105="N/A","N/A",C105-D105),"X") -> 5 | L105: [6]
A106: 2017-18 | B106: Milestones in Delivery plan | C106: 5 | D106: 5 | E106: Req | F106: =IFERROR(IF(D106="N/A","N/A",C106-D106),"X") -> 0 | L106: [6]
A107: 2018-19 | B107: Milestones in Delivery plan | C107: 6 | D107: 5 | E107: Req | F107: =IFERROR(IF(D107="N/A","N/A",C107-D107),"X") -> 1 | L107: [6]
A108: 2019-20 | B108: Milestones in Delivery plan | C108: 14 | D108: 6 | E108: Req | F108: =IFERROR(IF(D108="N/A","N/A",C108-D108),"X") -> 8 | L108: [6]
A110: The number of validated soakaways mitigated
A111: 2015-16 | B111: Corporate management information | C111: 0 | D111: 0 | E111: Req | F111: 0 | G111: We efficiently prioritsed flooding hotspots and outfalls for our programme as these make up the majority of the contribution to the performance indicator since they are larger in total number across our network and carry a greater risk to the road users, our customers and the receiving water environment. | L111: [6]
A112: 2016-17 | B112: Corporate management information | C112: 0 | D112: 0 | E112: Req | F112: =IFERROR(IF(D112="N/A","N/A",C112-D112),"X") -> 0 | L112: [6]
A113: 2017-18 | B113: Milestones in Delivery plan | C113: 0 | D113: 0 | E113: Req | F113: =IFERROR(IF(D113="N/A","N/A",C113-D113),"X") -> 0 | L113: [6]
A114: 2018-19 | B114: Milestones in Delivery plan | C114: 0 | D114: 0 | E114: Req | F114: =IFERROR(IF(D114="N/A","N/A",C114-D114),"X") -> 0 | L114: [6]
A115: 2019-20 | B115: Milestones in Delivery plan | C115: 0 | D115: 0 | E115: Req | F115: =IFERROR(IF(D115="N/A","N/A",C115-D115),"X") -> 0 | L115: [6]
A117: Other monitoring requirements
A118: None
A119: Notes and commentary
A120: [1] Explain what actions and activities have been taken by management to achieve trajectory and explain whether they were successful. Explain external factors that have impacted the actuals and quantify that impact. Explain reasons for the variance.
A121: [2] Explain what actions and activities have been taken by management to achieve trajectory and explain whether they were successful. Explain external factors that have impacted the actuals and quantify that impact. Explain reasons for the variance.
A122: [3] Explain what actions and activities have been taken by management to achieve trajectory and explain whether they were successful. Explain external factors that have impacted the actuals and quantify that impact. Explain reasons for the variance.
A123: [4] Where an activity has been rated very effective, explain the reason why. Where an activity has been rated as very ineffective - explain the reason why.
A124: [5] Explain reasons for the variance.
A125: [6] Explain reasons for the variance.
A126: [X] HE and ORR to consider reporting this data once appropriate strategies and/or reporting has been developed.

Sheet PS6 - Vulnerable Users
A1: Highways England Performance Monitoring Statements Year end 2019-20
A2: Statement PS6: Helping cyclists, walkers, and other vulnerable users of the Network | E2: For a definition of the metric and parameters for measuring and monitoring performance regarding vulnerable users see Highways England’s Operational Metrics Manual
A3: Performance specification
D4: Annual | G4: Cumulative
B5: Source of baseline | C5: Actual | D5: baseline | E5: KPI/PI/ Req | F5: Difference | G5: Actual | H5: Baseline | I5: KPI/PI/ Req | J5: Difference | L5: Notes
A6: KPIs
A7: The number of (completed) new and upgraded crossings | D7: In 2019-20 we have completed 121 new crossings and 45 Upgraded crossings, our highest year's figures in RP1 as we have completed significant work across the country to facilitate journeys for pedestrians, cyclists and equestrians. *The review of 2015-16 data has been completed to take into account the methodology changes and the figures updated to reflect the outcome.
A9: 2015-16 | B9: Corporate management information | C9: *62 | D9: X | E9: KPI | F9: =IFERROR(IF(D9="N/A","N/A",C9-D9),"X") -> X | G9: 62 | H9: =IF(D9="X","X",SUM($D9:D$9)) -> X | I9: KPI | J9: =IFERROR(IF(H9="N/A","N/A",G9-H9),"X") -> X | L9: [1]
A10: 2016-17 | B10: Corporate management information | C10: 27 | D10: X | E10: KPI | F10: =IFERROR(IF(D10="N/A","N/A",C10-D10),"X") -> X | G10: 89 | H10: =IF(D10="X","X",SUM($D$9:D10)) -> X | I10: KPI | J10: =IFERROR(IF(H10="N/A","N/A",G10-H10),"X") -> X | L10: [1]
A11: 2017-18 | B11: Corporate management information | C11: 100 | D11: [X] | E11: KPI | F11: X | G11: 189 | H11: [X] | I11: KPI | J11: X | L11: [1]
A12: 2018-19 | B12: Corporate management information | C12: 83 | D12: [X] | E12: KPI | F12: X | G12: 272 | H12: [X] | I12: KPI | J12: X | L12: [1]
A13: 2019-20 | B13: Corporate management information | C13: 166 | D13: [X] | E13: KPI | F13: X | G13: 438 | H13: [X] | I13: KPI | J13: =IFERROR(IF(H13="N/A","N/A",G13-H13),"X") -> X | L13: [1]
A15: The number of (completed) new crossings
A17: 2015-16 | B17: Corporate management information | C17: 13 | D17: X | E17: KPI | F17: =IFERROR(IF(D17="N/A","N/A",C17-D17),"X") -> X | G17: =IF(C17="X","X",SUM($C$17:C17)) -> 13 | H17: =IF(D17="X","X",SUM($D$17:D17)) -> X | I17: KPI | J17: =IFERROR(IF(H17="N/A","N/A",G17-H17),"X") -> X | L17: [1]
A18: 2016-17 | B18: Corporate management information | C18: 20 | D18: X | E18: KPI | F18: =IFERROR(IF(D18="N/A","N/A",C18-D18),"X") -> X | G18: =IF(C18="X","X",SUM($C$17:C18)) -> 33 | H18: =IF(D18="X","X",SUM($D$17:D18)) -> X | I18: KPI | J18: =IFERROR(IF(H18="N/A","N/A",G18-H18),"X") -> X | L18: [1]
A19: 2017-18 | B19: Corporate management information | C19: 28 | D19: [X] | E19: KPI | F19: =IFERROR(IF(D19="N/A","N/A",C19-D19),"X") -> X | G19: =IF(C19="X","X",SUM($C$17:C19)) -> 61 | H19: [X] | I19: KPI | J19: =IFERROR(IF(H19="N/A","N/A",G19-H19),"X") -> X | L19: [1]
A20: 2018-19 | B20: Corporate management information | C20: 29 | D20: [X] | E20: KPI | F20: =IFERROR(IF(D20="N/A","N/A",C20-D20),"X") -> X | G20: =IF(C20="X","X",SUM($C$17:C20)) -> 90 | H20: [X] | I20: KPI | J20: =IFERROR(IF(H20="N/A","N/A",G20-H20),"X") -> X | L20: [1]
A21: 2019-20 | B21: Corporate management information | C21: 121 | D21: [X] | E21: KPI | F21: =IFERROR(IF(D21="N/A","N/A",C21-D21),"X") -> X | G21: =IF(C21="X","X",SUM($C$17:C21)) -> 211 | H21: [X] | I21: KPI | J21: =IFERROR(IF(H21="N/A","N/A",G21-H21),"X") -> X | L21: [1]
A23: The number of (completed) upgraded crossings
A25: 2015-16 | B25: Corporate management information | C25: 49 | D25: X | E25: KPI | F25: =IFERROR(IF(D25="N/A","N/A",C25-D25),"X") -> X | G25: =IF(C25="X","X",SUM($C$25:C25)) -> 49 | H25: =IF(D25="X","X",SUM($D$25:D25)) -> X | I25: KPI | J25: =IFERROR(IF(H25="N/A","N/A",G25-H25),"X") -> X | L25: [1]
A26: 2016-17 | B26: Corporate management information | C26: 7 | D26: X | E26: KPI | F26: =IFERROR(IF(D26="N/A","N/A",C26-D26),"X") -> X | G26: =IF(C26="X","X",SUM($C$25:C26)) -> 56 | H26: =IF(D26="X","X",SUM($D$25:D26)) -> X | I26: KPI | J26: =IFERROR(IF(H26="N/A","N/A",G26-H26),"X") -> X | L26: [1]
A27: 2017-18 | B27: Corporate management information | C27: 72 | D27: [X] | E27: KPI | F27: =IFERROR(IF(D27="N/A","N/A",C27-D27),"X") -> X | G27: =IF(C27="X","X",SUM($C$25:C27)) -> 128 | H27: [X] | I27: KPI | J27: =IFERROR(IF(H27="N/A","N/A",G27-H27),"X") -> X | L27: [1]
A28: 2018-19 | B28: Corporate management information | C28: 54 | D28: [X] | E28: KPI | F28: =IFERROR(IF(D28="N/A","N/A",C28-D28),"X") -> X | G28: 182 | H28: [X] | I28: KPI | J28: =IFERROR(IF(H28="N/A","N/A",G28-H28),"X") -> X | L28: [1]
A29: 2019-20 | B29: Corporate management information | C29: 45 | D29: [X] | E29: KPI | F29: =IFERROR(IF(D29="N/A","N/A",C29-D29),"X") -> X | G29: =IF(C29="X","X",SUM($C$25:C29)) -> 227 | H29: [X] | I29: KPI | J29: =IFERROR(IF(H29="N/A","N/A",G29-H29),"X") -> X | L29: [1]
A31: PIs
A32: The number of vulnerable users casualties on the SRN
A33: Cyclists
A34: 2010 | B34: Historical Data | C34: 148 | F34: 2018 Validated Stats 19 data recorded cyclist casualties were recorded at 103 (Fatalities - 1; Serious - 34; and Slight - 68), this is lower than the 2017 results at 137 casualties.
A35: 2011 | B35: Historical Data | C35: 173
A36: 2012 | B36: Historical Data | C36: 170
A37: 2013 | B37: Historical Data | C37: 149
A38: 2014 | B38: Historical Data | C38: 179
A39: 2015 | B39: Corporate management information | C39: 153 | E39: PI | L39: [1]
A40: 2016 | B40: Corporate management information | C40: 152 | E40: PI | L40: [1]
A41: 2017 | B41: Corporate management information | C41: 137 | E41: PI | L41: [1]
A42: 2018 | B42: Corporate management information | C42: 103 | E42: PI | L42: [1]
A43: 2019 | B43: Corporate management information | C43: X | E43: PI | L43: [1]
A44: Pedestrians
A45: 2010 | B45: Historical Data | C45: 199 | F45: 2018 Validated Stats 19 data recorded pedestrian casualties were recorded at 148 (Fatalities - 42; Serious - 54; and Slight - 52), this is similar to the 2017 results with 153 casualties.
A46: 2011 | B46: Historical Data | C46: 182
A47: 2012 | B47: Historical Data | C47: 148
A48: 2013 | B48: Historical Data | C48: 183
A49: 2014 | B49: Historical Data | C49: 182
A50: 2015 | B50: Corporate management information | C50: 158 | E50: PI | L50: [1]
A51: 2016 | B51: Corporate management information | C51: 154 | E51: PI | L51: [1]
A52: 2017 | B52: Corporate management information | C52: 153 | E52: PI | L52: [1]
A53: 2018 | B53: Corporate management information | C53: 148 | E53: PI | L53: [1]
A54: 2019 | B54: Corporate management information | C54: X | E54: PI | L54: [1]
A55: Motorcyclists
A56: 2013 | B56: Historical Data | C56: 846 | F56: 2018 Validated Stats 19 data recorded motorcyclist casualties were recorded at 785 (Fatalities - 32; Serious - 321; and Slight - 432), this represents an increase from 2017 where 760 casualties were recorded.
A57: 2014 | B57: Historical Data | C57: 917
A58: 2015 | B58: Corporate management information | C58: 849 | E58: PI | L58: [1]
A59: 2016 | B59: Corporate management information | C59: 864 | E59: PI | L59: [1]
A60: 2017 | B60: Corporate management information | C60: 760 | E60: PI | L60: [1]
A61: 2018 | B61: Corporate management information | C61: 785 | E61: PI | L61: [1]
A62: 2019 | B62: Corporate management information | C62: X | E62: PI | L62: [1]
A63: Equestrians
A64: 2013 | B64: Historical Data | C64: 0 | F64: We have not had any deaths or serious injuries in this category since 2005, and there have been no further identified casualties within the release of the 2018 casualty data.
A65: 2014 | B65: Historical Data | C65: 0
A66: 2015 | B66: Corporate management information | C66: 0 | E66: PI | L66: [1]
A67: 2016 | B67: Corporate management information | C67: 0 | E67: PI | L67: [1]
A68: 2017 | B68: Corporate management information | C68: 0 | E68: PI | L68: [1]
A69: 2018 | B69: Corporate management information | C69: 0 | E69: PI | L69: [1]
A70: 2019 | B70: Corporate management information | C70: X | E70: PI | L70: [1]
A71: Total vulnerable users casualties
A72: 2013 | B72: Historical Data | C72: 1178 | F72: 2018 Validated Stats 19 data recorded 1,036 total vulnerable users casualties, which a decrease from 2017 where 1,050 casualties were recorded. Vulnerable users are at the heart of our approach to road scheme design and we continue to look to make further improvements to the safety of our network for all road users.
A73: 2014 | B73: Historical Data | C73: 1278
A74: 2015 | B74: Corporate management information | C74: 1160 | E74: PI | L74: [1]
A75: 2016 | B75: Corporate management information | C75: 1170 | E75: PI | L75: [1]
A76: 2017 | B76: Corporate management information | C76: 1050 | E76: PI | L76: [1]
A77: 2018 | B77: Corporate management information | C77: 1036 | E77: PI | L77: [1]
A78: 2019 | B78: Corporate management information | C78: X | E78: PI | L78: [1]
A80: Identification and Delivery of the Annual Cycling Programme | D80: 59 new cycle schemes delivered within the 2019-20 financial year. This is the highest number of schemes we have completed in one year in RP1 and means we have delivered a total of 160 schemes over the last five years, exceeding our target of 150.
A81: Number of cycling schemes begin design
A82: 2015-16 | B82: Corporate management information | C82: 80 | D82: X | E82: PI | F82: =IFERROR(IF(D82="N/A","N/A",C82-D82),"X") -> X | G82: =IF(C82="X","X",SUM(C82:C$82)) -> 80 | H82: =IF(D82="X", "X", SUM(D82:D$82)) -> X | I82: PI | J82: =IFERROR(IF(H82="N/A","N/A",G82-H82),"X") -> X | L82: [1]
A83: 2016-17 | B83: Corporate management information | C83: 14 | D83: X | E83: PI | F83: =IFERROR(IF(D83="N/A","N/A",C83-D83),"X") -> X | G83: =IF(C83="X","X",SUM(C$82:C83)) -> 94 | H83: =IF(D83="X", "X", SUM(D$82:D83)) -> X | I83: PI | J83: X | L83: [1]
A84: 2017-18 | B84: Corporate management information | C84: 9 | D84: [X] | E84: PI | F84: X | G84: =IF(C84="X","X",SUM(C$82:C84)) -> 103 | H84: =IF(D84="X", "X", SUM(D$82:D84)) -> 0 | I84: PI | J84: 103 | L84: [1]
A85: 2018-19 | B85: Corporate management information | C85: 30 | D85: [X] | E85: PI | F85: X | G85: =IF(C85="X","X",SUM(C$82:C85)) -> 133 | H85: =IF(D85="X", "X", SUM(D$82:D85)) -> 0 | I85: PI | J85: 133 | L85: [1]
A86: 2019-20 | B86: Corporate management information | C86: 24 | D86: [X] | E86: PI | F86: X | G86: =IF(C86="X","X",SUM(C$82:C86)) -> 157 | H86: =IF(D86="X", "X", SUM(D$82:D86)) -> 0 | I86: PI | J86: 157 | L86: [1]
A87: Number of cycling schemes finish design
A88: 2015-16 | B88: Corporate management information | C88: 49 | D88: X | E88: PI | F88: =IFERROR(IF(D88="N/A","N/A",C88-D88),"X") -> X | G88: =IF(C88="X","X",SUM(C$88:C88)) -> 49 | H88: =IF(D88="X","X",SUM($D88:D$88)) -> X | I88: PI | J88: =IFERROR(IF(H88="N/A","N/A",G88-H88),"X") -> X | L88: [1]
A89: 2016-17 | B89: Corporate management information | C89: 17 | D89: X | E89: PI | F89: X | G89: =IF(C89="X","X",SUM(C$88:C89)) -> 66 | H89: =IF(D89="X","X",SUM($D$88:D89)) -> X | I89: PI | J89: X | L89: [1]
A90: 2017-18 | B90: Corporate management information | C90: 12 | D90: [X] | E90: PI | F90: X | G90: =IF(C90="X","X",SUM(C$88:C90)) -> 78 | H90: =IF(D90="X","X",SUM($D$88:D90)) -> 0 | I90: PI | J90: 78 | L90: [1]
A91: 2018-19 | B91: Corporate management information | C91: 19 | D91: [X] | E91: PI | F91: X | G91: =IF(C91="X","X",SUM(C$88:C91)) -> 97 | H91: =IF(D91="X","X",SUM($D$88:D91)) -> 0 | I91: PI | J91: 97 | L91: [1]
A92: 2019-20 | B92: Corporate management information | C92: 38 | D92: [X] | E92: PI | F92: X | G92: =IF(C92="X","X",SUM(C$88:C92)) -> 135 | H92: =IF(D92="X","X",SUM($D$88:D92)) -> 0 | I92: PI | J92: 135 | L92: [1]
A93: Number of cycling schemes start work
A94: 2015-16 | B94: Corporate management information | C94: 49 | D94: X | E94: PI | F94: X | G94: =IF(C94="X","X",SUM(C$94:C94)) -> 49 | H94: =IF(D94="X","X",SUM($D$94:D94)) -> X | I94: PI | J94: =IFERROR(IF(H94="N/A","N/A",G94-H94),"X") -> X | L94: [1]
A95: 2016-17 | B95: Corporate management information | C95: 14 | D95: X | E95: PI | F95: X | G95: =IF(C95="X","X",SUM(C$94:C95)) -> 63 | H95: =IF(D95="X","X",SUM($D$94:D95)) -> X | I95: PI | J95: =IFERROR(IF(H95="N/A","N/A",G95-H95),"X") -> X | L95: [1]
A96: 2017-18 | B96: Corporate management information | C96: 18 | D96: [X] | E96: PI | F96: X | G96: =IF(C96="X","X",SUM(C$94:C96)) -> 81 | H96: =IF(D96="X","X",SUM($D$94:D96)) -> 0 | I96: PI | J96: =IFERROR(IF(H96="N/A","N/A",G96-H96),"X") -> 81 | L96: [1]
A97: 2018-19 | B97: Corporate management information | C97: 24 | D97: [X] | E97: PI | F97: X | G97: =IF(C97="X","X",SUM(C$94:C97)) -> 105 | H97: =IF(D97="X","X",SUM($D$94:D97)) -> 0 | I97: PI | J97: =IFERROR(IF(H97="N/A","N/A",G97-H97),"X") -> 105 | L97: [1]
A98: 2019-20 | B98: Corporate management information | C98: 46 | D98: [X] | E98: PI | F98: X | G98: =IF(C98="X","X",SUM(C$94:C98)) -> 151 | H98: =IF(D98="X","X",SUM($D$94:D98)) -> 0 | I98: PI | J98: =IFERROR(IF(H98="N/A","N/A",G98-H98),"X") -> 151 | L98: [1]
A99: Number of cycling schemes completed | L99: [1]
A100: 2015-16 | B100: Delivery Plan | C100: 25 | D100: 40 | E100: PI | F100: -15 | G100: =IF(C100="X","X",SUM(C$100:C100)) -> 25 | H100: =IF(D100="X","X",SUM($D$100:D100)) -> 40 | I100: PI | J100: =IFERROR(IF(H100="N/A","N/A",G100-H100),"X") -> -15
A101: 2016-17 | B101: Corporate management information | C101: 32 | D101: X | E101: PI | F101: X | G101: =IF(C101="X","X",SUM(C$100:C101)) -> 57 | H101: X | I101: PI | J101: =IFERROR(IF(H101="N/A","N/A",G101-H101),"X") -> X | L101: [1]
A102: 2017-18 | B102: Corporate management information | C102: 22 | D102: [X] | E102: PI | F102: X | G102: =IF(C102="X","X",SUM(C$100:C102)) -> 79 | H102: =IF(D102="[X]","[X]",SUM($D$100:D102)) -> [X] | I102: PI | J102: =IFERROR(IF(H102="N/A","N/A",G102-H102),"X") -> X | L102: [1]
A103: 2018-19 | B103: Corporate management information | C103: 22 | D103: [X] | E103: PI | F103: X | G103: =IF(C103="X","X",SUM(C$100:C103)) -> 101 | H103: =IF(D103="[X]","[X]",SUM($D$100:D103)) -> [X] | I103: PI | J103: =IFERROR(IF(H103="N/A","N/A",G103-H103),"X") -> X | L103: [1]
A104: 2019-20 | B104: Corporate management information | C104: 59 | D104: [X] | E104: PI | F104: X | G104: =IF(C104="X","X",SUM(C$100:C104)) -> 160 | H104: =IF(D104="[X]","[X]",SUM($D$100:D104)) -> [X] | I104: PI | J104: =IFERROR(IF(H104="N/A","N/A",G104-H104),"X") -> X | L104: [1]
A106: Requirements
A108: Report annually on how it is delivering against the Public Sector Equality Duty
A110: Remove or minimise disadvantages suffered by persons who share a relevant protected characteristic that are connected to that characteristic. Protected characteristics age; disability; gender reassignment; pregnancy and maternity; race; religion or belief; sex; sexual orientation. | C110: The PSED requires us demonstrate how we provide equality of opportunity, eliminate discrimination and foster good relations between those with protected characteristics and others. Progress includes: * A new PSED objectives brochure for 2020-2025 produced ready for publication in the spring to fulfil part of our legal duty * Tendering for the contract to undertake access surveys and to publish access guides to every motorway service area in England * Contracted with Sign Live to provide a British Sign Language video replay service enabling deaf people to call our customer contact centre * Being shortlisted for Best Inclusion Activity in the year of engineering talent awards 2020 for our future generations at Highways UK * Completed Strategic Alignment Review Tool (StART) assessments for 25 core suppliers, scores have increased collectively by 27% * Ran an inclusion workshop with Operations and Asset Delivery supplier community to clarify requirements (over 50 attendees) *Third returners programme ended with four out of five individuals staying with us (92% of our returners are retained) * Celebrated LGBT+ History Month, International Womens' Day and Launched the Black, Asian Minority Ethnicity (BAME) newsletter and relaunched Access For All interactively * Five new starters joined through our ex-military recruitment programme. | I110: Req | L110: [2]
A111: Take steps to meet the needs of persons who share a relevant protected characteristic that are different from the needs of persons who do not share it; . | I111: Req | L111: [2]
A112: Encourage persons who share a relevant protected characteristic to participate in public life or in any other activity in which participation by such persons is disproportionately low. . | I112: Req | L112: [2]
A114: Other monitoring requirements | C114: 2015 | D114: 2016 | E114: 2017 | F114: 2018 | G114: 2019 | H114: Cumulative
C115: Validated 2018 data.
A116: Location of vulnerable user KSI
A118: East | C118: 57 | D118: 80 | E118: 72 | F118: 61 | G118: X | H118: =SUM(C118:G118) -> 270 | I118: DPI | L118: [3]
A119: South east | C119: 166 | D119: 168 | E119: 134 | F119: 162 | G119: X | H119: 630 | I119: DPI | L119: [3]
A120: South west | C120: 40 | D120: 54 | E120: 44 | F120: 58 | G120: X | H120: 196 | I120: DPI | L120: [3]
A121: Midlands | C121: 87 | D121: 104 | E121: 98 | F121: 94 | G121: X | H121: 383 | I121: DPI | L121: [3]
A122: North west | C122: 38 | D122: 48 | E122: 48 | F122: 53 | G122: X | H122: 187 | I122: DPI | L122: [3]
A123: Yorkshire and northeast | C123: 42 | D123: 56 | E123: 57 | F123: 56 | G123: X | H123: 211 | I123: DPI | L123: [3]
C124: =SUM(C118:C123) -> 430 | D124: 510 | E124: 453 | F124: 484 | G124: X | H124: 1877
C126: 2015-16 | D126: 2016-17 | E126: 2017-18 | F126: 2018-19 | G126: 2019-20 | H126: Cumulative
A127: Location new or upgraded crossings
A128: East | C128: X | D128: 14 | E128: 2 | F128: 0 | G128: 56 | H128: =SUM(C128:G128) -> 72 | I128: DPI | J128: In 2019-20 Highways England delivered 121 new and 45 upgraded crossings, which are our highest year's figures in RP1. | L128: [4]
A129: South east | C129: X | D129: 0 | E129: 3 | F129: 6 | G129: 23 | H129: 32 | I129: DPI | L129: [4]
A130: South west | C130: X | D130: 0 | E130: 2 | F130: 1 | G130: 11 | H130: 14 | I130: DPI | L130: [4]
A131: Midlands | C131: X | D131: 3 | E131: 30 | F131: 17 | G131: 12 | H131: 62 | I131: DPI | L131: [4]
A132: North west | C132: X | D132: 9 | E132: 46 | F132: 28 | G132: 20 | H132: 103 | I132: DPI | L132: [4]
A133: Yorkshire and northeast | C133: X | D133: 1 | E133: 17 | F133: 31 | G133: 44 | H133: 93 | I133: DPI | L133: [4]
C134: [X] | D134: =SUM(D128:D133) -> 27 | E134: 100 | F134: =SUM(F128:F133) -> 83 | G134: =SUM(G128:G133) -> 166 | H134: =SUM(H128:H133) -> 376 | L134: [4]
A136: Notes and commentary
A137: [1] Explain what actions and activities have been taken by management to achieve trajectory and explain whether they were successful. Explain external factors that have impacted the actuals and quantify that impact. Explain reasons for the variance.
A138: [2] Explain significant year on year variances.
A139: [3] Explain reasons for the variances.
A140: [4] Explain correlation with new and upgraded crossings by location with KSI by location.
A141: [X] HE and ORR to consider reporting this data once appropriate strategies and/or reporting has been developed.

Sheet PS7 - Achieving real efficiency
A1: Highways England Performance Monitoring Statements Year end 2019-20
A2: Statement PS7: Achieving real efficiency
A3: Performance specification
D4: Annual | G4: Cumulative | H4: Cumulative
B5: Source of baseline | C5: Actual | D5: baseline | E5: KPI/PI/ Req | F5: Difference | G5: Actual | H5: baseline | I5: KPI/PI/ Req | J5: Difference | L5: Notes
A6: Cost savings
A7: KPI: Total savings of £1.212 billion over RP1 on capital expenditure | F7: Efficiency savings of £1448m were identified in 2019-20 against the cumulative KPI target of £1212m. Corporate Assurance have validated 100% of this figure. Due to the principle of earned value any remaining efficiency to be realised will count as RP2 efficiency as part of the carryover category. In RP1 the Central Efficiency Group has produced 30+ guides for the purpose of driving repeatable efficiencies across the business. HE has established a robust reporting and assurance process which includes detailed efficiency registers which evidence our efficiency. To support this unit cost movements have been captured in Activity Benchmark Sheets (ABS) for our renewals programme alongside our Commerical Assurance Simulation Tool (CAST) for SMP, RIP and A14 programmes.
A8: 2015-16 | B8: Corporate management information | C8: 33.6 | D8: 32.9 | E8: PI | F8: =IFERROR(IF(D8="N/A","N/A",C8-D8),"X") -> 0.7 | G8: =SUM(C$8:$C8) -> 33.6 | H8: =SUM($D$8:D8) -> 32.9 | I8: PI | J8: =IFERROR(IF(H8="N/A","N/A",G8-H8),"X") -> 0.7 | L8: [1]
A9: 2016-17 | B9: Efficiency baseline, DP p54 | C9: 135.4 | D9: 106.4 | E9: PI | F9: =IFERROR(IF(D9="N/A","N/A",C9-D9),"X") -> 29 | G9: 169 | H9: =SUM($D$8:D9) -> 139.3 | I9: PI | J9: =IFERROR(IF(H9="N/A","N/A",G9-H9),"X") -> 29.7 | L9: [1]
A10: 2017-18 | B10: Efficiency baseline, DP p54 | C10: 316.6 | D10: 238.1 | E10: PI | F10: =IFERROR(IF(D10="N/A","N/A",C10-D10),"X") -> 78.5 | G10: 485.6 | H10: =SUM($D$8:D10) -> 377.4 | I10: PI | J10: =IFERROR(IF(H10="N/A","N/A",G10-H10),"X") -> 108.2 | L10: [1]
A11: 2018-19 | B11: Efficiency baseline, DP p54 | C11: 362.2 | D11: 345.1 | E11: PI | F11: =IFERROR(IF(D11="N/A","N/A",C11-D11),"X") -> 17.1 | G11: 847.9 | H11: =SUM($D$8:D11) -> 722.5 | I11: PI | J11: =IFERROR(IF(H11="N/A","N/A",G11-H11),"X") -> 125.4 | L11: [1]
A12: 2019-20 | B12: Performance Specification | C12: 600.1 | D12: 489.5 | E12: PI | F12: =IFERROR(IF(D12="N/A","N/A",C12-D12),"X") -> 110.6 | G12: 1447.9 | H12: =SUM($D$8:D12) -> 1212 | I12: KPI | J12: =IFERROR(IF(H12="N/A","N/A",G12-H12),"X") -> 235.9 | L12: [1]
A14: Delivery plan progress
A15: KPI: Progress of work, relative to forecasts set out in the Delivery Plan, and annual updates to that Plan, and expectations at the start of RP1 | F15: See Investment Plan tables IP1 to IP5
A18: CPI and SPI at PCF 5 and beyond
A19: Suite of performance indicators to demonstrate that the portfolio is being developed and the investment plan is delivered in a timely and efficient manner. These should include CPI and SPI for schemes at Project Control Framework Stage 5 and beyond | F19: This metric covers the major schemes in construction (i.e. after PCF stage 5) during the year. The earned value scope covers programme costs, excluding programme risk, lands and salaries. It has consisted of two metrics which measured portfolio performance against cost (scheme budget) and time (Delivery Plan open for traffic date). A CPI score below one indicates that cost is currently above budget whilst an SPI score below one indicates that current progress is behind schedule. To improve the usage and understanding of earned value as a management tools longer term, a company decision was taken to develop a cost and scheduling integrated system that would report CPI/SPI at project level rather than portfolio level. As the system is embedded and data integrity improved, for end of 2019/20 CPI/SPI is reported on 18 schemes beyond PCF 5.
A21: PCF 5
A22: CPI - major projects | B22: Corporate management information | C22: N/A | D22: 1 | E22: PI | F22: N/A | L22: [2]
A23: SPI - major projects | B23: Corporate management information | C23: N/A | D23: 1 | E23: PI | F23: N/A | L23: [2]
A25: Demonstrating efficiencies
A26: Demonstrate on an annual basis how efficiency savings have been achieved | F26: Efficiencies are demonstrated annually through the Efficiency report, which is shared with ORR. The report demonstrates how efficiencies have been achieved against the principles in the Efficiency and Inflation Monitoring manual, i.e. the three elements of efficiency reporting: performance against RIS, register build up and movement of unit costs.
A28: Notes and commentary
A29: [1] Explain how efficiencies have been achieved
A30: [2] Explain drivers of reported CPI and SPI at PCF 5

Sheet PS7x (alternative format) (hidden)
B1: Statement PS7: Achieving real efficiency
B2: Performance specification
E3: 2015-16 | H3: 2016-17 | K3: 2017-18 | N3: 2018-19 | Q3: 2019-20 | U3: Cumulative
C4: Source of baseline | D4: KPI, PI or Req | E4: Actual | F4: Baseline | G4: Difference | H4: Actual | I4: Baseline | J4: Difference | K4: Actual | L4: Baseline | M4: Difference | N4: Actual | O4: Baseline | P4: Difference | Q4: Actual | R4: Baseline | S4: Difference | T4: Actual | U4: Baseline | V4: Difference | X4: Notes
B5: Cost savings
B6: Total savings of £1.212 billion over RP1 on capital expenditure | C6: Efficiency baseline, DP p54 | D6: PI | E6: X | F6: 30 | G6: =IFERROR(E6-F6,"No actuals") -> No actuals | H6: X | I6: 110 | J6: =IFERROR(H6-I6,"No actuals") -> No actuals | K6: X | L6: 245 | M6: =IFERROR(K6-L6,"No actuals") -> No actuals | N6: X | O6: 357 | P6: =IFERROR(N6-O6,"No actuals") -> No actuals | Q6: X | R6: 470 | S6: =IFERROR(Q6-R6,"No actuals") -> No actuals | T6: X | U6: =F6+I6+L6+O6+R6 -> 1212 | V6: =IFERROR(T6-U6,"No actuals") -> No actuals
X7: [1]
B9: Delivery plan progress
B10: Progress of work, relative to forecasts set out in the Delivery Plan, and annual updates to that Plan, and expectations at the start of RP1 | E10: No of projects | H10: No of projects | K10: No of projects | N10: No of projects | Q10: No of projects | T10: No of projects
B11: PCF 0 | C11: Delivery plan update | D11: KPI | E11: X | F11: 0 | G11: =IFERROR(E11-F11,"No actuals") -> No actuals | J11: =IFERROR(H11-I11,"No actuals") -> 0 | M11: =IFERROR(K11-L11,"No actuals") -> 0 | P11: =IFERROR(N11-O11,"No actuals") -> 0 | S11: =IFERROR(Q11-R11,"No actuals") -> 0 | T11: X | U11: X | V11: X | X11: [2]
B12: PCF 1 | C12: Delivery plan update | D12: KPI | E12: X | F12: 62 | G12: No actuals | J12: 0 | M12: 0 | P12: 0 | S12: 0 | T12: X | U12: X | V12: X | X12: [2]
B13: PCF 2 | C13: Delivery plan update | D13: KPI | E13: X | F13: 15 | G13: No actuals | J13: 0 | M13: 0 | P13: 0 | S13: 0 | T13: X | U13: X | V13: X | X13: [2]
B14: PCF 3 | C14: Delivery plan update | D14: KPI | E14: X | F14: 6 | G14: No actuals | J14: 0 | M14: 0 | P14: 0 | S14: 0 | T14: X | U14: X | V14: X | X14: [2]
B15: PCF 4 | C15: Delivery plan update | D15: KPI | E15: X | F15: 0 | G15: No actuals | J15: 0 | M15: 0 | P15: 0 | S15: 0 | T15: X | U15: X | V15: X | X15: [2]
B16: PCF 5 | C16: Delivery plan update | D16: KPI | E16: X | F16: 0 | G16: No actuals | J16: 0 | M16: 0 | P16: 0 | S16: 0 | T16: X | U16: X | V16: X | X16: [2]
B17: PCF 6 | C17: Delivery plan update | D17: KPI | E17: X | F17: 20 | G17: No actuals | J17: 0 | M17: 0 | P17: 0 | S17: 0 | T17: X | U17: X | V17: X | X17: [2]
B18: PCF 7 | C18: Delivery plan update | D18: KPI | E18: X | F18: 6 | G18: No actuals | J18: 0 | M18: 0 | P18: 0 | S18: 0 | T18: X | U18: X | V18: X | X18: [2]
B19: PCF 8 | C19: Delivery plan update | D19: KPI | E19: X | F19: X | G19: No actuals | J19: 0 | M19: 0 | P19: 0 | S19: 0 | T19: X | U19: X | V19: X | X19: [2]
E21: £m | H21: £m | K21: £m | N21: £m | Q21: £m | T21: £m
B22: PCF 0 | C22: Delivery plan update | D22: KPI | E22: X | F22: X | G22: =IFERROR(E22-F22,"No actuals") -> No actuals | J22: =IFERROR(H22-I22,"No actuals") -> 0 | M22: =IFERROR(K22-L22,"No actuals") -> 0 | P22: =IFERROR(N22-O22,"No actuals") -> 0 | S22: =IFERROR(Q22-R22,"No actuals") -> 0 | T22: X | U22: X | V22: X | X22: [2]
B23: PCF 1 | C23: Delivery plan update | D23: KPI | E23: X | F23: X | G23: No actuals | J23: 0 | M23: 0 | P23: 0 | S23: 0 | T23: X | U23: X | V23: X | X23: [2]
B24: PCF 2 | C24: Delivery plan update | D24: KPI | E24: X | F24: X | G24: No actuals | J24: 0 | M24: 0 | P24: 0 | S24: 0 | T24: X | U24: X | V24: X | X24: [2]
B25: PCF 3 | C25: Delivery plan update | D25: KPI | E25: X | F25: X | G25: No actuals | J25: 0 | M25: 0 | P25: 0 | S25: 0 | T25: X | U25: X | V25: X | X25: [2]
B26: PCF 4 | C26: Delivery plan update | D26: KPI | E26: X | F26: X | G26: No actuals | J26: 0 | M26: 0 | P26: 0 | S26: 0 | T26: X | U26: X | V26: X | X26: [2]
B27: PCF 5 | C27: Delivery plan update | D27: KPI | E27: X | F27: X | G27: No actuals | J27: 0 | M27: 0 | P27: 0 | S27: 0 | T27: X | U27: X | V27: X | X27: [2]
B28: PCF 6 | C28: Delivery plan update | D28: KPI | E28: X | F28: X | G28: No actuals | J28: 0 | M28: 0 | P28: 0 | S28: 0 | T28: X | U28: X | V28: X | X28: [2]
B29: PCF 7 | C29: Delivery plan update | D29: KPI | E29: X | F29: X | G29: No actuals | J29: 0 | M29: 0 | P29: 0 | S29: 0 | T29: X | U29: X | V29: X | X29: [2]
B30: PCF 8 | C30: Delivery plan update | D30: KPI | E30: X | F30: X | G30: No actuals | J30: 0 | M30: 0 | P30: 0 | S30: 0 | T30: X | U30: X | V30: X | X30: [2]
B33: CPI and SPI at PCF 5 and beyond
B34: Suite of performance indicators to demonstrate that the portfolio is being developed and the investment plan is delivered in a timely and efficient manner. These should include CPI and SPI for schemes at Project Control Framework Stage 5 and beyond
B35: PCF 5
B36: CPI - major projects | C36: Delivery plan | D36: PI | E36: X | F36: X | G36: X | H36: X | I36: X | J36: X | K36: X | L36: X | M36: X | N36: X | O36: X | P36: X | Q36: X | R36: X | S36: X | T36: X | U36: X | V36: X | X36: [3]
B37: SPI - major projects | C37: Delivery plan | D37: PI | E37: X | F37: X | G37: X | H37: X | I37: X | J37: X | K37: X | L37: X | M37: X | N37: X | O37: X | P37: X | Q37: X | R37: X | S37: X | T37: X | U37: X | V37: X | X37: [3]
B38: CPI - programmes | C38: Delivery plan | D38: PI | E38: X | F38: X | G38: X | H38: X | I38: X | J38: X | K38: X | L38: X | M38: X | N38: X | O38: X | P38: X | Q38: X | R38: X | S38: X | T38: X | U38: X | V38: X | X38: [3]
B39: SPI - programmes | C39: Delivery plan | D39: PI | E39: X | F39: X | G39: X | H39: X | I39: X | J39: X | K39: X | L39: X | M39: X | N39: X | O39: X | P39: X | Q39: X | R39: X | S39: X | T39: X | U39: X | V39: X | X39: [3]
B40: PCF 6
B41: CPI - major projects | C41: Delivery plan | D41: PI | E41: X | F41: X | G41: X | H41: X | I41: X | J41: X | K41: X | L41: X | M41: X | N41: X | O41: X | P41: X | Q41: X | R41: X | S41: X | T41: X | U41: X | V41: X | X41: [3]
B42: SPI - major projects | C42: Delivery plan | D42: PI | E42: X | F42: X | G42: X | H42: X | I42: X | J42: X | K42: X | L42: X | M42: X | N42: X | O42: X | P42: X | Q42: X | R42: X | S42: X | T42: X | U42: X | V42: X | X42: [3]
B43: CPI - programmes | C43: Delivery plan | D43: PI | E43: X | F43: X | G43: X | H43: X | I43: X | J43: X | K43: X | L43: X | M43: X | N43: X | O43: X | P43: X | Q43: X | R43: X | S43: X | T43: X | U43: X | V43: X | X43: [3]
B44: SPI - programmes | C44: Delivery plan | D44: PI | E44: X | F44: X | G44: X | H44: X | I44: X | J44: X | K44: X | L44: X | M44: X | N44: X | O44: X | P44: X | Q44: X | R44: X | S44: X | T44: X | U44: X | V44: X | X44: [3]
B45: PCF 7
B46: CPI - major projects | C46: Delivery plan | D46: PI | E46: X | F46: X | G46: X | H46: X | I46: X | J46: X | K46: X | L46: X | M46: X | N46: X | O46: X | P46: X | Q46: X | R46: X | S46: X | T46: X | U46: X | V46: X | X46: [3]
B47: SPI - major projects | C47: Delivery plan | D47: PI | E47: X | F47: X | G47: X | H47: X | I47: X | J47: X | K47: X | L47: X | M47: X | N47: X | O47: X | P47: X | Q47: X | R47: X | S47: X | T47: X | U47: X | V47: X | X47: [3]
B48: CPI - programmes | C48: Delivery plan | D48: PI | E48: X | F48: X | G48: X | H48: X | I48: X | J48: X | K48: X | L48: X | M48: X | N48: X | O48: X | P48: X | Q48: X | R48: X | S48: X | T48: X | U48: X | V48: X | X48: [3]
B49: SPI - programmes | C49: Delivery plan | D49: PI | E49: X | F49: X | G49: X | H49: X | I49: X | J49: X | K49: X | L49: X | M49: X | N49: X | O49: X | P49: X | Q49: X | R49: X | S49: X | T49: X | U49: X | V49: X | X49: [3]
B50: PCF 8
B51: CPI - major projects | C51: Delivery plan | D51: PI | E51: X | F51: X | G51: X | H51: X | I51: X | J51: X | K51: X | L51: X | M51: X | N51: X | O51: X | P51: X | Q51: X | R51: X | S51: X | T51: X | U51: X | V51: X | X51: [3]
B52: SPI - major projects | C52: Delivery plan | D52: PI | E52: X | F52: X | G52: X | H52: X | I52: X | J52: X | K52: X | L52: X | M52: X | N52: X | O52: X | P52: X | Q52: X | R52: X | S52: X | T52: X | U52: X | V52: X | X52: [3]
B53: CPI - programmes | C53: Delivery plan | D53: PI | E53: X | F53: X | G53: X | H53: X | I53: X | J53: X | K53: X | L53: X | M53: X | N53: X | O53: X | P53: X | Q53: X | R53: X | S53: X | T53: X | U53: X | V53: X | X53: [3]
B54: SPI - programmes | C54: Delivery plan | D54: PI | E54: X | F54: X | G54: X | H54: X | I54: X | J54: X | K54: X | L54: X | M54: X | N54: X | O54: X | P54: X | Q54: X | R54: X | S54: X | T54: X | U54: X | V54: X | X54: [3]
B55: Total PCF 5-8
B56: CPI - major projects | C56: Delivery plan | D56: PI | E56: X | F56: X | G56: X | H56: X | I56: X | J56: X | K56: X | L56: X | M56: X | N56: X | O56: X | P56: X | Q56: X | R56: X | S56: X | T56: X | U56: X | V56: X | X56: [3]
B57: SPI - major projects | C57: Delivery plan | D57: PI | E57: X | F57: X | G57: X | H57: X | I57: X | J57: X | K57: X | L57: X | M57: X | N57: X | O57: X | P57: X | Q57: X | R57: X | S57: X | T57: X | U57: X | V57: X | X57: [3]
B58: CPI - programmes | C58: Delivery plan | D58: PI | E58: X | F58: X | G58: X | H58: X | I58: X | J58: X | K58: X | L58: X | M58: X | N58: X | O58: X | P58: X | Q58: X | R58: X | S58: X | T58: X | U58: X | V58: X | X58: [3]
B59: SPI - programmes | C59: Delivery plan | D59: PI | E59: X | F59: X | G59: X | H59: X | I59: X | J59: X | K59: X | L59: X | M59: X | N59: X | O59: X | P59: X | Q59: X | R59: X | S59: X | T59: X | U59: X | V59: X | X59: [3]
E62: =E3 -> 2015-16 | H62: =H3 -> 2016-17 | K62: =K3 -> 2017-18 | N62: =N3 -> 2018-19 | Q62: =Q3 -> 2019-20 | T62: =U3 -> Cumulative
B63: Demonstrating efficiencies
B64: Demonstrate on an annual basis how efficiency savings have been achieved | E64: £m | H64: £m | K64: £m | N64: £m | Q64: £m | T64: £m
B65: List efficiencies | X65: [4]
B66: SR13 and prior schemes | X66: [4]
B67: List activities | F67: X | I67: X | L67: X | O67: X | R67: X | U67: X | X67: [4]
B68: RIS 1 schemes | X68: [4]
B69: List activities | F69: X | I69: X | L69: X | O69: X | R69: X | U69: X | X69: [4]
B70: RIS 2 development | X70: [4]
B71: List activities | F71: X | I71: X | L71: X | O71: X | R71: X | U71: X | X71: [4]
B72: Feasibility studies | X72: [4]
B73: List activities | F73: X | I73: X | L73: X | O73: X | R73: X | U73: X | X73: [4]
B74: Resurfacing | X74: [4]
B75: List activities | F75: X | I75: X | L75: X | O75: X | R75: X | U75: X | X75: [4]
B76: Other renewals | X76: [4]
B77: List activities | F77: X | I77: X | L77: X | O77: X | R77: X | U77: X | X77: [4]
F78: X | I78: X | L78: X | O78: X | R78: X | U78: X
B81: Other monitoring requirements
E83: =E3 -> 2015-16 | H83: =H3 -> 2016-17 | K83: =K3 -> 2017-18 | N83: =N3 -> 2018-19 | Q83: =Q3 -> 2019-20 | T83: Cumulative
C84: Source of baseline | E84: Actual | F84: baseline | G84: Difference | H84: Actual | I84: baseline | J84: Difference | K84: Actual | L84: baseline | M84: Difference | N84: Actual | O84: baseline | P84: Difference | Q84: Actual | R84: baseline | S84: Difference | T84: Actual | U84: baseline | V84: Difference | X84: Notes
B86: Cost savings
B87: Total savings of £1.212 billion over RP1 on capital expenditure
B88: SR13 and prior schemes | C88: Efficiency baseline | D88: DPI | E88: X | F88: X | G88: =IFERROR(E88-F88,"No actuals") -> No actuals | H88: X | I88: X | J88: =IFERROR(H88-I88,"No actuals") -> No actuals | K88: X | L88: X | M88: =IFERROR(K88-L88,"No actuals") -> No actuals | N88: X | O88: X | P88: =IFERROR(N88-O88,"No actuals") -> No actuals | Q88: X | R88: X | S88: =IFERROR(Q88-R88,"No actuals") -> No actuals | T88: X | U88: X | V88: =IFERROR(T88-U88,"No actuals") -> No actuals
B89: RIS 1 schemes | C89: Efficiency baseline | D89: DPI | E89: X | F89: X | G89: No actuals | H89: X | I89: X | J89: No actuals | K89: X | L89: X | M89: No actuals | N89: X | O89: X | P89: No actuals | Q89: X | R89: X | S89: No actuals | T89: X | U89: X | V89: No actuals
B90: RIS 2 development | C90: Efficiency baseline | D90: DPI | E90: X | F90: X | G90: No actuals | H90: X | I90: X | J90: No actuals | K90: X | L90: X | M90: No actuals | N90: X | O90: X | P90: No actuals | Q90: X | R90: X | S90: No actuals | T90: X | U90: X | V90: No actuals
B91: Feasibility studies | C91: Efficiency baseline | D91: DPI | E91: X | F91: X | G91: No actuals | H91: X | I91: X | J91: No actuals | K91: X | L91: X | M91: No actuals | N91: X | O91: X | P91: No actuals | Q91: X | R91: X | S91: No actuals | T91: X | U91: X | V91: No actuals
B92: Resurfacing | C92: Efficiency baseline | D92: DPI | E92: X | F92: X | G92: No actuals | H92: X | I92: X | J92: No actuals | K92: X | L92: X | M92: No actuals | N92: X | O92: X | P92: No actuals | Q92: X | R92: X | S92: No actuals | T92: X | U92: X | V92: No actuals
B93: Other renewals | C93: Efficiency baseline | D93: DPI | E93: X | F93: X | G93: No actuals | H93: X | I93: X | J93: No actuals | K93: X | L93: X | M93: No actuals | N93: X | O93: X | P93: No actuals | Q93: X | R93: X | S93: No actuals | T93: X | U93: X | V93: No actuals
E95: =E3 -> 2015-16 | H95: =H3 -> 2016-17 | K95: =K3 -> 2017-18 | N95: =N3 -> 2018-19 | Q95: =Q3 -> 2019-20 | T95: =U3 -> Cumulative
C96: Source of baseline | E96: Actual | F96: Baseline | G96: Difference | H96: Actual | I96: Baseline | J96: Difference | K96: Actual | L96: Baseline | M96: Difference | N96: Actual | O96: Baseline | P96: Difference | Q96: Actual | R96: Baseline | S96: Difference | T96: Actual | U96: Baseline | V96: Difference | X96: Notes
B98: Actual efficiency
B99: As actual efficiency eventuates each year – a re-forecast of the remaining efficiency to be achieved for each year in RP1. If the gap shortfall is widening include what actions are being taken to overcome it and their expected impact. | C99: Efficiency baseline | D99: DPI | E99: X | F99: X | G99: =IFERROR(E99-F99,"No actuals") -> No actuals | H99: X | I99: X | J99: =IFERROR(H99-I99,"No actuals") -> No actuals | K99: X | L99: X | M99: =IFERROR(K99-L99,"No actuals") -> No actuals | N99: X | O99: X | P99: =IFERROR(N99-O99,"No actuals") -> No actuals | Q99: X | R99: X | S99: =IFERROR(Q99-R99,"No actuals") -> No actuals | T99: X | U99: X | V99: =IFERROR(T99-U99,"No actuals") -> No actuals | X99: [6]
B102: Notes and commentary
B103: For each table above - Highways England is to provide to us its view of the data quality [possibly in an alpha numeric value].
B104: The commentaries should also include how the company is managing the risks identified for the delivery of the outputs. This is both in terms of operational risks and risks associated with the data collation for the output or milestone.
B105: [1] Explain external factors that have impacted the actuals and quantify that impact. Explain reasons for the variance.
B106: [2] Explain external factors that have impacted the actuals and quantify that impact. Explain reasons for the variance.
B107: [3] Explain external factors that have impacted the actuals and quantify that impact. Explain reasons for the variance.
B108: [4] Explain significant year on year variances.
B109: [5] Explain external factors that have impacted the actuals and quantify that impact. Explain reasons for the variance.
B110: [6] Explain significant variances.

Sheet PS8 - Network in good condition
A1: Highways England Performance Monitoring Statements Year-end 2019-20
A2: Statement PS8: Keeping the Network in good condition | C2: For a definition of the metric and parameters for measuring and monitoring performance regarding network condition see Highways England’s Operational Metrics Manual
A3: Performance specification
D4: Annual | H4: Cumulative | I4: Cumulative | K4: Cumulative
B5: Source of baseline | C5: Actual | D5: baseline | E5: KPI/PI/ Req | F5: Difference | H5: Actual | I5: baseline | J5: KPI/PI/ Req | K5: Difference | M5: Notes
A6: KPI
A7: Pavement
A8: The percentage of pavement asset that is in a condition that does not require further investigation for possible maintenance to be maintained at 95% or above | H8: The Key performance indicator has remained consistently above the 95% target showing the impact of our ongoing maintenance work. Highways England achieved a year-end performance for 2019-20 of 95.5%, 0.5% above target. We instigated a metric recovery plan in 2016-17 and the collective result was a significantly improved performance. Operational restrictions ultimately limited the amount that could be achieved in a single year, so we ended up just below the performance target, but with a very positive upward trajectory. During 2017-18 we rolled awareness training to the regions to improve data records, with the timely development of a renewal programme to align with meeting the target. Regular communication between directorates to assess and aid with in-year actions helped ensure the target was met. In 2018-19 and 2019-20 we have stayed above the performance target and the process that we have developed in RP1 remains an integral part of our Asset Management Strategy and metric performance plan in RP2. *Additional data was received in May 2016 and subsequently validated in June 2016. resulting in a reduction in the published year-end performance figure (of 95.4%) to 92.3%. For consistency with the 2016-17 Annual Report & Accounts, the original validated figure has been shown with a statement acknowledging the re-baselined figure of 92.3%.
A9: 2011-12 | B9: Historic Data | C9: 0.956
A10: 2012-13 | B10: Historic Data | C10: 0.964
A11: 2013-14 | B11: Historic Data | C11: 0.952
A12: 2014-15 | B12: Historic Data | C12: 0.949
A13: 2015-16 | B13: Corporate management information | C13: *95.40% | D13: 0.95 | E13: KPI | F13: 0.004 | M13: [1]
A14: 2016-17 | B14: Corporate management information | C14: 0.943 | D14: 0.95 | E14: KPI | F14: 0.007 | M14: [1]
A15: 2017-18 | B15: Corporate management information | C15: 0.952 | D15: 0.95 | E15: KPI | F15: 0.002 | M15: [1]
A16: 2018-19 | B16: Corporate management information | C16: 0.955 | D16: 0.95 | E16: KPI | F16: 0.005 | M16: [1]
A17: 2019-20 | B17: Corporate management information | C17: 0.955 | D17: 0.95 | E17: KPI | F17: 0.005 | M17: [1]
A19: PIs
A21: Geotechnical asset inventory & geotechnical asset risk level (condition)
A22: Length of the network for which a geotechnical inventory survey has been completed (km) | H22: Highways England achieved a 2019-20 year-end value of Grade 3 -309,365m, Grade 4 - 24,013 m and Grade 5 - 4,929 m. Our geotechnical asset achieved a 2019-20 year-end value of 12,979km, representing a slight decrease in the length of the SRN that has been surveyed compared to 12,987 km in 2018-19. The performance over the baseline period of 2010-15 is largely stable, with the increase in survey length and length of network keeping pace. The Geotech (HAGDMS) database has seen stabilisation work done at the end of RP1, predominantly in terms of mapping upgrades. System upgrades will continue into RIS2. Our performance for 2019-20 was 97.3% of the asset at or below low risk, showing a stable performance across RP1. These figures exclude DBFO assets. *Better data has been made available post year-end 2017-18 and the figures for length of the network for which a geotechnical inventory survey has been completed (km) have been updated in the 2018-19 reporting to reflect this.
A23: 2010-11 | B23: Historic Data | C23: 12835
A24: 2011-12 | B24: Historic Data | C24: 12816
A25: 2012-13 | B25: Historic Data | C25: 12787
A26: 2013-14 | B26: Historic Data | C26: 12860
A27: 2014-15 | B27: Historic Data, OMM | C27: 12984
A28: 2015-16 | B28: Corporate management information | C28: 12978 | D28: =C27 -> 12984 | E28: PI | M28: [1]
A29: 2016-17 | B29: Corporate management information | C29: 12987 | D29: =C28 -> 12978 | E29: PI | F29: 9 | M29: [1]
A30: 2017-18 | B30: Corporate management information | C30: 13,000* | D30: =C29 -> 12987 | E30: PI | F30: 13 | M30: [1]
A31: 2018-19 | B31: Corporate management information | C31: 12987 | D31: 13,000* | E31: PI | F31: 13 | M31: [1]
A32: 2019-20 | B32: Corporate management information | C32: 12979 | D32: 12987 | E32: PI | F32: 8 | M32: [1]
A33: Length (and percentage) of geotechnical assets with low risk or below
A34: 2010-11 | B34: Historic Data | C34: 0.91
A35: 2011-12 | B35: Historic Data | C35: 0.91
A36: 2012-13 | B36: Historic Data | C36: 0.92
A37: 2013-14 | B37: Historic Data | C37: 0.93
A38: 2014-15 | B38: Historic Data, OMM | C38: 0.964
A39: 2015-16 | B39: Corporate management information | C39: 0.966 | D39: =C38 -> 0.964 | E39: PI | F39: 0.002 | M39: [1]
A40: 2016-17 | B40: Corporate management information | C40: 0.968 | D40: =C39 -> 0.966 | E40: PI | F40: 0.002 | M40: [1]
A41: 2017-18 | B41: Corporate management information | C41: 0.972 | D41: =C40 -> 0.968 | E41: PI | F41: 0.004 | M41: [1]
A42: 2018-19 | B42: Corporate management information | C42: 0.972 | D42: 0.972 | E42: PI | F42: 0 | M42: [1]
A43: 2019-20 | B43: Corporate management information | C43: 0.973 | D43: 0.972 | E43: PI | F43: 0.001 | M43: [1]
A45: Drainage Asset - inventory and condition data coverage
A46: The percentage of the network with drainage inventory data recorded on HADDMS
A47: 2010-11 | B47: Historic Data | C47: 0.69 | H47: Drainage inventory was 90% in March 2020, demonstrating a general positive trend across RP1 when based on the average. At the end of RP1, 36% of the drainage network had condition data likewise showing a general positive trend. Stability and data quality improvements on the drainage database have been delivered throughout this road period with further work scheduled for RIS2.
A48: 2011-12 | B48: Historic Data | C48: 0.77
A49: 2012-13 | B49: Historic Data | C49: 0.84
A50: 2013-14 | B50: Historic Data | C50: 0.87
A51: 2014-15 | B51: Historic Data, OMM | C51: 0.9
A52: 2015-16 | B52: Corporate management information | C52: 0.87 | D52: =C51 -> 0.9 | E52: PI | F52: 0.03 | M52: [1]
A53: 2016-17 | B53: Corporate management information | C53: 0.88 | D53: =C52 -> 0.87 | E53: PI | F53: 0.01 | M53: [1]
A54: 2017-18 | B54: Corporate management information | C54: 0.88 | D54: =C53 -> 0.88 | E54: PI | F54: 0 | M54: [1]
A55: 2018-19 | B55: Corporate management information | C55: 0.91 | D55: 0.88 | E55: PI | F55: 0.03 | M55: [1]
A56: 2019-20 | B56: Corporate management information | C56: 0.9 | D56: 0.91 | E56: PI | F56: 0.01 | M56: [1]
A58: Percentage of the network with drainage condition data
A59: 2010-11 | B59: Historic Data | C59: 0.04
A60: 2011-12 | B60: Historic Data | C60: 0.1
A61: 2012-13 | B61: Historic Data | C61: 0.15
A62: 2013-14 | B62: Historic Data | C62: 0.19
A63: 2014-15 | B63: Historic Data, OMM | C63: 0.23
A64: 2015-16 | B64: Corporate management information | C64: 0.271 | D64: =C63 -> 0.23 | E64: PI | F64: 0.041 | M64: [1]
A65: 2016-17 | B65: Corporate management information | C65: 0.31 | D65: =C64 -> 0.271 | E65: PI | F65: 0.039 | M65: [1]
A66: 2017-18 | B66: Corporate management information | C66: 0.34 | D66: =C65 -> 0.31 | E66: PI | F66: 0.03 | M66: [1]
A67: 2018-19 | B67: Corporate management information | C67: 0.33 | D67: 0.34 | E67: PI | F67: 0.01 | M67: [1]
A68: 2019-20 | B68: Corporate management information | C68: 0.36 | D68: 0.33 | E68: PI | F68: =SUM(C68-D68) -> 0.03 | M68: [1]
A70: Technology Asset Availability
A71: The availability and performance of each technology asset type
A72: RCC technology
A73: 2013-13 | B73: Historic Data, | C73: 0.9993 | H73: Rolling average Regional Control Centre asset availability remained consistent at 99.97% for 2019-20, in line with previous figures in RP1. This metric has consistently performed above our internal performance target of 99.60% throughout RP1, with only small monthly variances. The 2019-20 rolling year performance figure was 99.99% of roadside technology assets functioning correctly, in line with previous years. Performance has therefore remained stable within RP1. 98.21% of roadside telecommunications assets functioned correctly in 2019-20. Performance has remained very stable in RP1 with annual performance continuing to exceed the baseline of 98.20% set in 2014-15. Efficiencies have been delivered throughout this road period on technology reporting with multiple manual processes changing to automated that save handling time and reduce the chance of manual handling error.
A74: 2012-14 | B74: Historic Data, | C74: 0.9995
A75: 2014-15 | B75: Historic Data, OMM | C75: 0.9994 | D75: =C74 -> 0.9995
A76: 2015-16 | B76: Corporate management information | C76: 0.9992 | D76: =C75 -> 0.9994 | E76: PI | F76: 0.0002 | M76: [1]
A77: 2016-17 | B77: Corporate management information | C77: 0.9997 | D77: =C76 -> 0.9992 | E77: PI | F77: 0.0005 | M77: [1]
A78: 2017-18 | B78: Corporate management information | C78: 0.9997 | D78: =C77 -> 0.9997 | E78: PI | F78: 0 | M78: [1]
A79: 2018-19 | B79: Corporate management information | C79: 0.9997 | D79: 0.9997 | E79: PI | F79: 0 | M79: [1]
A80: 2019-20 | B80: Corporate management information | C80: 0.9997 | D80: 0.9997 | E80: PI | F80: =SUM(D80-C80) -> 0 | M80: [1]
A82: Roadside technology
A83: 2012-13 | C83: 0.9813
A84: 2013-14 | B84: Historic Data | C84: 0.9823
A85: 2014-15 | B85: Historic Data, OMM | C85: 0.9998 | D85: =C84 -> 0.9823
A86: 2015-16 | B86: Corporate management information | C86: 0.9867 | D86: =C85 -> 0.9998 | E86: PI | F86: 0.0131 | M86: [1]
A87: 2016-17 | B87: Corporate management information | C87: 0.9879 | D87: =C86 -> 0.9867 | E87: PI | F87: 0.0012 | M87: [1]
A88: 2017-18 | B88: Corporate management information | C88: 0.984 | D88: =C87 -> 0.9879 | E88: PI | F88: 0.0039 | M88: [1]
A89: 2018-19 | B89: Corporate management information | C89: 0.986 | D89: 0.984 | E89: PI | F89: 0.002 | M89: [1]
A90: 2019-20 | B90: Corporate management information | C90: 0.9821 | D90: 0.986 | E90: PI | F90: =SUM(D90-C90) -> 0.0039 | M90: [1]
A92: NRTS
A93: 2012-13 | B93: Historic Data | C93: 0.9996
A94: 2013-14 | B94: Historic Data | C94: 0.9998
A95: 2014-15 | B95: OMM | C95: 0.982 | D95: =C94 -> 0.9998
A96: 2015-16 | B96: Corporate management information | C96: 0.9999 | D96: =C95 -> 0.982 | E96: PI | F96: 0.0179 | M96: [1]
A97: 2016-17 | B97: Corporate management information | C97: 0.9999 | D97: =C96 -> 0.9999 | E97: PI | F97: 0 | M97: [1]
A98: 2017-18 | B98: Corporate management information | C98: 0.9999 | D98: =C97 -> 0.9999 | E98: PI | F98: 0 | M98: [1]
A99: 2018-19 | B99: Corporate management information | C99: 0.9999 | D99: 0.9999 | E99: PI | F99: 0 | M99: [1]
A100: 2019-20 | B100: Corporate management information | C100: 0.9999 | D100: 0.9999 | E100: PI | F100: =SUM(D100-C100) -> 0 | M100: [1]
A102: Performance specification
D103: Annual | H103: Cumulative | I103: Cumulative | K103: Cumulative
B104: Source of baseline | C104: Actual | D104: baseline | E104: KPI/PI/ Req | F104: Difference | H104: Actual | I104: baseline | J104: KPI/PI/ Req | K104: Difference | M104: Notes
A105: Structure Asset - inventory and condition
A107: Percentage of structures that have basic inventory information
A108: 2014-15 | B108: OMM | C108: X | H108: The structure team have delivered an increased inspection regime this year that reveals the asset in a stronger position than last year. The percentage of structures with basic inventory data is 98.57%. The average structural condition (SCav) for 2019-20 is 85.16%. The critical element condition (SCrit) for 2019-20 is 63.23%. The percentage of structures with a ‘good’ structural condition index (SCI) for 2019-20 is 80.49%. Ongoing maintenance activities have been necessary in RP1 to keep pace with deterioration of structures stock, a large proportion of which were constructed in the 1960s and 1970s. The inspectors have been responsible for a significant number of inspections to reduce the reporting backlog down to the target of zero whilst maintaining current inspection deadlines.
A109: 2015-16 | B109: Corporate management information | C109: 0.978 | D109: 0.978 | E109: PI | F109: 0 | M109: [1]
A110: 2016-17 | B110: Corporate management information | C110: 0.981 | D110: 0.978 | E110: PI | F110: 0.003 | M110: [1]
A111: 2017-18 | B111: Corporate management information | C111: 0.982 | D111: 0.978 | E111: PI | F111: 0.004 | M111: [1]
A112: 2018-19 | B112: Corporate management information | C112: 0.983 | D112: 0.978 | E112: PI | F112: 0.005 | M112: [1]
A113: 2019-20 | B113: Corporate management information | C113: 0.9857 | D113: 0.983 | E113: PI | F113: 0.0027 | M113: [1]
A115: Condition indicator - Average Structural Condition (Scav)
A116: 2014-15 | B116: OMM | C116: X
A117: 2015-16 | B117: Corporate management information | C117: 0.8432 | D117: 0.843 | E117: PI | F117: 0.001 | M117: [1]
A118: 2016-17 | B118: Corporate management information | C118: 0.8479 | D118: 0.843 | E118: PI | F118: 0.0049 | M118: [1]
A119: 2017-18 | B119: Corporate management information | C119: 0.8456 | D119: 0.843 | E119: PI | F119: 0.0026 | M119: [1]
A120: 2018-19 | B120: Corporate management information | C120: 0.8535 | D120: 0.843 | E120: PI | F120: 0.0105 | M120: [1]
A121: 2019-20 | B121: Corporate management information | C121: X | D121: 0.843 | E121: PI | F121: X | M121: [1]
C122: 0.8516 | D122: 0.843 | E122: PI | F122: 0.0086
A123: Condition indicator - Critical Element Condition (SCcrit)
A124: 2014-15 | B124: OMM | C124: X
A125: 2015-16 | B125: Corporate management information | C125: 0.6101 | D125: 0.61 | E125: PI | F125: 0.001 | M125: [1]
A126: 2016-17 | B126: Corporate management information | C126: 0.6328 | D126: 0.61 | E126: PI | F126: 0.0228 | M126: [1]
A127: 2017-18 | B127: Corporate management information | C127: 0.6276 | D127: 0.61 | E127: PI | F127: 0.0176 | M127: [1]
A128: 2018-19 | B128: Corporate management information | C128: 0.6338 | D128: 0.61 | E128: PI | F128: 0.0238 | M128: [1]
A129: 2019-20 | B129: Corporate management information | C129: 0.6323 | D129: 0.61 | E129: PI | F129: 0.0223 | M129: [1]
A131: Condition indicator - Structural Condition Index (SCI)
A132: 2014-15 | B132: OMM | C132: X
A133: 2015-16 | B133: Corporate management information | C133: 0.791 | D133: 0.782 | E133: PI | F133: 0.009 | M133: [1]
A134: 2016-17 | B134: Corporate management information | C134: 0.792 | D134: 0.782 | E134: PI | F134: 0.01 | M134: [1]
A135: 2017-18 | B135: Corporate management information | C135: 0.798 | D135: 0.782 | E135: PI | F135: 0.016 | M135: [1]
A136: 2018-19 | B136: Corporate management information | C136: 0.798 | D136: 0.782 | E136: PI | F136: 0.016 | M136: [1]
A137: 2019-20 | B137: Corporate management information | C137: 0.8049 | D137: 0.782 | E137: PI | F137: 0.0229 | M137: [1]
A140: Requirements
A142: Asset information quality plan
A143: Produce an implementation plan, by 31 March 2016, to show how the Company will improve asset information quality over RP1 | B143: The Asset Information Plan was the first companywide plan to improve our data and information and it created a real focus to identify and deliver the activities required to create and maintain the information and data we require to better inform our asset investment decisions. The plan is under the governance of the Information Leadership Group. Highways England has continued to improve the quality of its asset data and its data maturity throughout RP1. Highlighted below are key achievements: • Updated versions of the Asset Data Management Manual have been produced, with the ninth version released in April 2019. This brings improved documented data requirements across all data classes, leading to improved data consistency • The third version of the AVIS (Asset Visualisation Information Service) was released in May 2019. This provides our Operations team with better asset visualisation from their desktop, improving workforce safety by removing the need for manual network surveys as data now provided through desktop and improved customer safety by removing the related lane restrictions for surveys. • The release in May 2019 of our Provision of Asset Information (POAI) product which provides a single source of the truth for our asset inventory at a national regional and area level. Since establishment of the Asset Plan, the company’s Information Vision & Strategy (IVS) has been produced developed through a comprehensive engagement across the company to identify all the improvements required to realise real value from our information. The IVS replaces the Asset Plan and is now the company’s single central improvement plan for our data and information.
C145: Milestone achieved Y/N | D145: Actual | E145: Annual baseline | F145: KPI/PI/ Req | H145: Difference
B146: Source of baseline
A147: New condition measures indicator
A148: Pavements (DP p35)
A149: Milestones
A150: 2015-16 | B150: N/A | I150: Highways England has trialled an improved pavement condition measure in Road Period 1 (RP1) which captures all lanes (rather than the RIS1 measure where the condition survey was restricted to the inside lane), analyses performance based on outturn condition, and is linked more closely to maintenance requirements. Because of the different datasets used in the new metric, the need to capture a full data baseline and then understand how the datasets behave, it is not currently possible to identify the target which would maintain performance at a level consistent with RIS1. Highways England are contining to target performance of 95% against the RIS1 pavement metric until March 2022, when additional data should allow an unambiguous assessment of the necessary target for a new metric.
A151: 2016-17 | B151: Agreement by 31 March 17 | C151: N | D151: X | E151: X | F151: Req | H151: X | M151: [2]
A152: 2017-18 | B152: Delivery plan update | C152: X | D152: X | E152: X | F152: Req | H152: X | M152: [2]
A153: 2018-19 | B153: Delivery plan update / Complete validation | C153: N | D153: X | E153: X | F153: Req | H153: X | M153: [2]
A154: 2019-20 | B154: Delivery plan update | C154: Y | D154: X | E154: X | F154: Req | H154: X | M154: [2]
A156: Structures (DP p35)
A157: Milestones
A158: 2015-16 | B158: N/A | C158: N/A | I158: Average and Critical scores have been calculated for many years through the RP1 structures metric and are also used by local authorities as objective measures of condition. Collecting the relevant data for this metric via inspections is well embedded into the organisation. Procedural improvements have taken place during RP1 that aim to improve timely uploading of inspection data and specific competence requirements have been introduced for inspectors to improve the quality and consistency of reporting. The reporting methodology and metric definition have remained the same.
A159: 2016-17 | B159: Agreement by 31 March 17 | C159: N | D159: X | E159: X | F159: Req | H159: X | M159: [2]
A160: 2017-18 | B160: Delivery plan update | C160: X | D160: X | E160: X | F160: Req | H160: X | M160: [2]
A161: 2018-19 | B161: Delivery plan update / Complete validation | C161: Y | D161: X | E161: X | F161: Req | H161: X | M161: [2]
A162: 2019-20 | B162: Delivery plan update | C162: Y | D162: X | E162: X | F162: Req | H162: X | M162: [2]
A164: Drainage (DP p350
A165: Milestones
A166: 2015-16 | B166: N/A | C166: N/A | I166: For RP1 we reported the number of flooding hotspots and culverts mitigated. For RP2 we will report the percentage length of carriageway that does not have an observed significant susceptibility to flooding, based on flood events within the last 5 years. From 2024/25, this metric will be weather normalised.
A167: 2016-17 | B167: N/A | C167: N/A | H167: X
A168: 2017-18 | B168: Agreement by 31 March 18 | C168: Y | D168: X | E168: X | F168: Req | H168: X | M168: [2]
A169: 2018-19 | B169: Delivery plan update | C169: X | D169: X | E169: X | F169: Req | H169: X | M169: [2]
A170: 2019-20 | B170: Delivery plan update / Complete validation | C170: Y | D170: X | E170: X | F170: Req | H170: X | M170: [2]
A172: Technology (DP p35)
A173: Milestones
A174: 2015-16 | B174: N/A | C174: N/A | I174: This metric is an improvement of the RP1 technology availability PI. It now includes downtime caused by third party activity and the availability scores for MIDAS loops now better reflect actual network wide availability of this asset. Highways England are also removing high performing assets which are covered in other contractual performance regimes (NRTS availability and Regional Control Centre technology availability).
A175: 2016-17 | B175: N/A | C175: N/A | H175: X
A176: 2017-18 | B176: Agreement by 31 March 18 | C176: N | D176: X | E176: X | F176: Req | H176: X | M176: [2]
A177: 2018-19 | B177: Delivery plan update | C177: X | D177: X | E177: X | F177: Req | H177: X | M177: [2]
A178: 2019-20 | B178: Delivery plan update / Complete validation | C178: Y | D178: X | E178: X | F178: Req | H178: X | M178: [2]
A180: Geotechnical works (DP p35)
A181: Milestones
A182: 2015-16 | B182: N/A | C182: N/A | I182: To simplify this metric and make it clearer for road users, for RP2 we move to a single metric that demonstrates the percentage length of our geotechnical assets that are in good condition. The new metric uses data that has been collected for many years in a different way.
A183: 2016-17 | B183: N/A | C183: N/A | H183: X
A184: 2017-18 | B184: Agreement by 31 March 18 | C184: Y | D184: X | E184: X | F184: Req | H184: X | M184: [2]
A185: 2018-19 | B185: Delivery plan update | C185: X | D185: X | E185: X | F185: Req | H185: X | M185: [2]
A186: 2019-20 | B186: Delivery plan update / Complete validation | C186: Y | D186: X | E186: X | F186: Req | H186: X | M186: [2]
A188: Other monitoring requirements
C189: 2015-16 | D189: 2016-17 | E189: 2017-18 | F189: 2018-19 | H189: 2019-20
A190: Asset pavement condition measure for motorways and APTR
A191: Motorways | B191: Corporate management information | C191: 98.3 | D191: 98 | E191: 97.9 | F191: 98 | H191: 97.8 | I191: DPI | M191: [3]
A192: APTR | B192: Corporate management information | C192: 93.5 | D192: 91.7 | E192: 93.3 | F192: 93.7 | H192: 93.8 | I192: DPI | M192: [3]
A194: For the entire network, provide proportion of pavement for which condition data is collected in each year
A195: Physical km monitored | B195: Corporate management information | C195: 11694 | D195: 11688 | E195: 11658 | F195: 11655 | H195: 11689 | I195: DPI | M195: [4]
A197: Notes and commentary
A198: [1] Explain what actions and activities have been taken by management to achieve trajectory and explain whether they were successful. Explain external factors that have impacted the actuals and quantify that impact. Explain reasons for the variance.
A199: [2] Explain what actions and activities have been taken by management to achieve trajectory and explain whether they were successful. Explain external factors that have impacted the actuals and quantify that impact. Explain reasons for the variance.
A200: [3] Explain reasons for movements year on year and reasons for variance in APTR and Motorway.
A201: [4] Explain reasons for movements year on year.
A202: [X] HE and ORR to consider reporting this data once appropriate strategies and/or reporting has been developed.

Sheet IP1
A1: Statement IP1: Detailed analysis of enhancement monitoring milestones dates and lane miles delivered
A2: Highways England Delivery Plan - Major Improvements
A3: Milestone Definitions and key:
A4: CONSTRUCTION PHASE - START OF WORKS - the date when the start of works is declared which typically will be when the construction budget has been agreed, a contract has been established, notice to proceed issued and physical works will start on site.
A5: CONSTRUCTION PHASE - OPEN FOR TRAFFIC - the date when the public will benefit from the improvements, in some instances residual works on the verges and off site will continue including some potential over night closures to finalise certain elements.
A6: 2015-20 DELIVERY PLAN COMMITMENT - the date committed to in Highways England's 2015-20 Delivery Plan.
A7: 2019/20 DELIVERY PLAN COMMITMENT - the previous committed date or revised date (through external change control - as approved by Ministers) in Highways England's Delivery Plan update for the reported financial year.
A8: CURRENT FORECAST POSITION / ACTUAL ACHIEVED - the latest Highways England forecast position where committed dates have not yet been achieved / the actual date that has been achieved.
A9: VfM = Scheme paused on the grounds that it provides poor/low value for money and therefore removed from RIS1 (to be considered for future RIS planning).
A10: * = Scheme commitment under review as reflected in the Highways England Delivery Plan update 2019/20.
A11: ** = Scheme to be delivered by third-party. Highways England has met commitment to allocate funding and provide support.
C12: Map Ref | D12: Scheme Name | E12: Construction Phase
E13: Start of Works | H13: Open for Traffic
E14: 2015-20 Delivery Plan Commitment | F14: 2019/20 Delivery Plan Commitment | G14: Actual Achieved | H14: 2015-20 Delivery Plan Commitment | I14: 2019/20 Delivery Plan Commitment | J14: Actual Achieved | K14: Lane miles delivered (actual)
A15: Schemes Already in Construction (SR10) | C15: 1 | D15: A556 Knutsford to Bowden | E15: N/A | F15: Pre RP1 | G15: 2014-11-10 | H15: 2017-03-31 | I15: 2017-03-31 | J15: 2017-03-06 | K15: 0
C16: 2 | D16: A1 Coal House to Metro Centre | E16: N/A | F16: Pre RP1 | G16: 2014-08-26 | H16: 2016-06-30 | I16: 2016-06-30 | J16: 2016-07-04 | K16: 8.7
C17: 3 | D17: A1 Leeming to Barton | E17: N/A | F17: Pre RP1 | G17: 2014-03-03 | H17: 2017-06-30 | I17: 2017-06-30 | J17: 2018-03-28 | K17: 23.612098
C18: 4 | D18: M1 J28-J31 | E18: N/A | F18: Pre RP1 | G18: 2014-08-01 | H18: 2016-03-31 | I18: 2016-03-31 | J18: 2016-03-31 | K18: 37.8
C19: 5 | D19: A453 Widening | E19: N/A | F19: Pre RP1 | G19: 2013-01-07 | H19: 2015-09-30 | I19: 2015-09-30 | J19: 2015-07-01 | K19: 14.291533
C20: 6 | D20: A14 Kettering bypass widening | E20: N/A | F20: Pre RP1 | G20: 2013-11-01 | H20: 2015-06-30 | I20: 2015-06-30 | J20: 2015-04-30 | K20: 5.7166132
C21: 7 | D21: M1 Junction 19/M6 | E21: N/A | F21: Pre RP1 | G21: 2014-01-01 | H21: 2016-12-31 | I21: 2016-12-31 | J21: 2016-12-22 | K21: 0
C22: 8 | D22: A45/A46 Tollbar End | E22: N/A | F22: Pre RP1 | G22: 2014-01-31 | H22: 2016-12-31 | I22: 2016-12-31 | J22: 2016-12-15 | K22: 3.728226
C23: 9 | D23: A5/M1 J11a Link | E23: N/A | F23: Pre RP1 | G23: 2015-02-27 | H23: 2017-06-30 | I23: 2017-06-30 | J23: 2017-05-11 | K23: 11.184678
C24: 10 | D24: M25 J30 | E24: N/A | F24: Pre RP1 | G24: 2015-02-27 | H24: 2017-06-30 | I24: 2017-06-30 | J24: 2016-12-09 | K24: 0
C25: 11 | D25: M6 J10A-J13 | E25: N/A | F25: Pre RP1 | G25: 2013-09-17 | H25: 2015-12-31 | I25: 2015-12-31 | J25: 2016-02-07 | K25: 16
C26: 12 | D26: A30 Temple to Carblake | E26: N/A | F26: Pre RP1 | G26: 2015-03-01 | H26: 2016-12-31 | I26: 2016-12-31 | J26: 2017-07-12 | K26: 7.8292746
C27: 13 | D27: M1 J32-J35A | E27: N/A | F27: Pre RP1 | G27: 2014-03-01 | H27: 2017-03-31 | I27: 2017-03-31 | J27: 2017-03-29 | K27: 17.8954848
C28: 14 | D28: M1 J39-J42 | E28: N/A | F28: Pre RP1 | G28: 2013-11-25 | H28: 2015-12-31 | I28: 2015-12-31 | J28: 2015-12-14 | K28: 13.048791
C29: 15 | D29: M60 J8 to M62 J20 (Manchester Smart Motorway) | E29: N/A | F29: Pre RP1 | G29: 2014-07-01 | H29: 2017-09-30 | I29: 2017-09-30 | J29: 2018-07-31 | K29: 9
C30: 16 | D30: M3 J2-J4A | E30: N/A | F30: Pre RP1 | G30: 2014-11-03 | H30: 2017-06-30 | I30: 2017-06-30 | J30: 2017-06-30 | K30: 26.8432272
A31: Schemes Announced in June 2013 and due to start construction by end 2019/20 (SR13) | C31: 17 | D31: A160/A180 Immingham | E31: 2015-06-30 | F31: 2015-06-30 | G31: 2015-03-27 | H31: 2017-03-31 | I31: 2017-03-31 | J31: 2017-03-27 | K31: 2.485484
C32: 18 | D32: A21 Tonbridge to Pembury | E32: 2015-06-30 | F32: 2015-06-30 | G32: 2015-04-01 | H32: 2017-03-31 | I32: 2017-03-31 | J32: 2017-09-21 | K32: 5.0952422
C33: 19 | D33: M1 J13 - J19 Smart Motorway | E33: 2015-12-31 | F33: 2015-12-31 | G33: 2015-11-30 | H33: 2022-03-31 | I33: 2022-03-31 | K33: (29 of 74 Completed on M1 J16-19)
C34: 20 | D34: M5 J4a - J6 Smart Motorway | E34: 2015-12-31 | F34: 2015-12-31 | G34: 2015-11-30 | H34: 2018-03-31 | I34: 2017-09-30 | J34: 2017-05-25 | K34: 17.6469364
C35: 21 | D35: M6 J16 - J19 Smart Motorway | E35: 2015-12-31 | F35: 2015-12-31 | G35: 2015-11-30 | H35: 2019-03-31 | I35: 2019-03-31 | J35: 2019-03-20 | K35: 36.4123406
C36: 22 | D36: A14 Cambridge to Huntingdon | E36: 2017-03-31 | F36: 2016-12-31 | G36: 2016-10-14 | H36: 2021-03-31 | I36: 2021-03-31
C37: 23 | D37: M20 Junction 10a | E37: 2018-03-31 | F37: 2018-03-31 | G37: 2018-03-01 | H37: 2019-03-31 | I37: 2019-03-31 | J37: 2019-12-20 | K37: 0
C38: 24 | D38: A19 / A1058 Coast Road | E38: 2017-03-31 | F38: 2016-09-30 | G38: 2016-06-27 | H38: 2019-03-31 | I38: 2019-03-31 | J38: 2019-03-31 | K38: 0
C39: 25 | D39: M4 J3 - J12 Smart Motorway | E39: 2017-03-31 | F39: 2017-03-31 | G39: 2017-03-27 | H39: 2022-03-31 | I39: 2022-03-31
C40: 26 | D40: A63 Castle Street | E40: 2017-03-31 | F40: 2020-03-31 | G40: 2020-03-31 | H40: 2021-03-31 | I40: 2025-03-31
C41: 27 | D41: M1 J24 - J25 Smart Motorway | E41: 2017-03-31 | F41: 2017-03-31 | G41: 2017-03-30 | H41: 2018-03-31 | I41: 2018-12-31 | J41: 2018-12-21 | K41: 10.4390328
C42: 28 | D42: M6 J2 - J4 Smart Motorway | E42: 2018-03-31 | F42: 2018-03-31 | G42: 2018-03-12 | H42: 2020-03-31 | I42: 2020-03-31 | J42: 2020-03-12 | K42: 23.612098
C43: 29 | D43: M6 J13 - J15 Smart Motorway | E43: 2018-03-31 | F43: 2018-03-31 | G43: 2018-03-20 | H43: 2022-03-31 | I43: 2022-03-31
C44: 30 | D44: M20 J3 - J5 Smart Motorway | E44: 2018-03-31 | F44: 2018-03-31 | G44: 2018-03-29 | H44: 2020-03-31 | I44: 2020-03-31 | J44: 2020-03-31 | K44: 11.184678
C45: 31 | D45: M23 J8 - J10 Smart Motorway | E45: 2018-03-31 | F45: 2018-03-31 | G45: 2018-03-29 | H45: 2020-03-31 | I45: 2020-03-31 | J45: 2020-03-31 | K45: 20.7537914
C46: 32 | D46: M27 J4 - J11 Smart Motorway | E46: 2018-03-31 | F46: 2018-12-31 | G46: 2018-04-03 | H46: 2021-03-31 | I46: 2021-03-31
C47: 33 | D47: M6 J21a - J26 Smart Motorway | E47: 2019-03-31 | F47: RP2 | H47: 2020-03-31
C48: 34 | D48: M60 J24 - J27 & J1 - 4 Smart Motorway | E48: 2019-03-31 | F48: RP2 | G48: Scheme moved to RIS3 pipeline | H48: 2020-03-31
C49: 35 | D49: A19 Testos | E49: 2019-03-31 | F49: 2019-03-31 | G49: 2019-03-21 | H49: 2021-03-31 | I49: 2021-03-31
C50: 36 | D50: M54 to M6 | E50: 2019-03-31 | F50: RP2 | H50: 2022-03-31
C51: 37 | D51: A27 Chichester Bypass | E51: 2019-03-31 | F51: Scheme stopped | G51: Scheme stopped | H51: 2021-03-31 | I51: Scheme stopped | J51: Scheme stopped
C52: 38 | D52: A38 Derby Junctions | E52: 2020-03-31 | F52: RP2 | H52: 2023-03-31
C53: 39 | D53: A2 Bean & Ebbsfleet | E53: 2020-03-31 | F53: 2020-03-31 | G53: 2020-03-30 | H53: 2023-03-31 | I53: 2023-03-31
C54: 40 | D54: M62 J10 - J12 Smart Motorway | E54: 2020-03-31 | F54: 2018-03-31 | G54: 2018-03-29 | H54: 2023-03-31 | I54: 2020-03-31 | J54: 2020-03-31 | K54: 16.9012912
C55: 41 | D55: M56 J6 - J8 Smart Motorway | E55: 2020-03-31 | F55: 2020-03-31 | G55: 2020-03-30 | H55: 2022-03-31 | I55: 2022-03-31
C56: 42 | D56: M3 J9 - J14 Smart Motorway | E56: 2020-03-31 | F56: 2020-03-31 | G56: 2020-01-13 | H56: 2022-03-31 | I56: 2022-03-31
A57: Schemes announced in December 2014 and due to start construction by end 2019/20 (AS14) | C57: 43 | D57: A19 Down Hill Lane junction improvement | E57: 2020-03-31 | F57: RP2 | H57: N/A
C58: 44 | D58: A19 Norton to Wynyard | E58: 2020-03-31 | F58: 2020-03-31 | G58: 2020-03-27 | H58: N/A | I58: 2023-03-31
C59: 45 | D59: A1 & A19 Technology enhancements | E59: 2020-03-31 | F59: VfM | G59: VfM | H59: VfM | I59: VfM | J59: VfM
C60: 46 | D60: M1 Junction 45 Improvement | E60: 2020-03-31 | F60: 2020-03-31 | G60: 2017-01-31 | H60: N/A | I60: 2018-03-31 | J60: 2018-03-29 | K60: 0
C61: 47 | D61: M621 Junctions 1-7 improvements | E61: 2020-03-31 | F61: 2019-12-31 | G61: 2019-11-18 | H61: N/A | I61: 2022-03-31
C62: 48 | D62: M62/M606 Chain Bar | E62: 2020-03-31 | F62: VfM | G62: VfM | H62: VfM | I62: VfM | J62: VfM
C63: 49 | D63: M62 Junctions 20-25 | E63: 2020-03-31 | F63: 2019-12-31 | G63: 2019-09-30 | H63: N/A | I63: 2025-03-31
C64: 50 | D64: A585 Windy Harbour - Skippool | E64: 2020-03-31 | F64: 2020-03-31 | G64: 2020-03-27 | H64: N/A | I64: 2023-03-31
C65: 51 | D65: A5036 Princess Way - Access to Port of Liverpool | E65: 2020-03-31 | F65: RP2 | H65: N/A
C66: 52 | D66: M6 Junction 22 upgrade | E66: 2020-03-31 | F66: *Mar-20 | G66: Scheme moved to RIS3 pipeline | H66: N/A
C67: 53 | D67: M53 Junctions 5-11 | E67: 2020-03-31 | F67: VfM | G67: VfM | H67: VfM | I67: VfM | J67: VfM
C68: 54 | D68: M56 new Junction 11A | E68: 2020-03-31 | F68: *Mar-20 | G68: Scheme stopped | H68: N/A | J68: Scheme stopped
C69: 55 | D69: M6 Junction 19 Improvements | E69: 2020-03-31 | F69: 2020-03-31 | G69: 2020-03-25 | H69: N/A | I69: 2022-03-31
C70: 56 | D70: A500 Etruria widening | E70: 2020-03-31 | F70: 2019-03-31 | G70: 2019-02-04 | H70: N/A | I70: 2021-03-31
C71: 57 | D71: M1 Junctions 23A-24 | E71: 2020-03-31 | F71: 2020-03-31 | G71: 2017-03-30 | H71: N/A | I71: 2018-12-31 | J71: 2018-12-13 | K71: 2.983219391
C72: 58 | D72: M6 Junction 10 improvement | E72: 2020-03-31 | F72: 2020-03-31 | G72: 2020-01-31 | H72: N/A | I72: 2023-03-31
C73: 59 | D73: A5 Dodwells to Longshoot Widening | E73: 2020-03-31 | F73: RP2 | H73: N/A
C74: 60 | D74: M42 Junction 6 | E74: 2020-03-31 | F74: 2020-03-31 | G74: 2020-03-16 | H74: N/A
C75: 61 | D75: A46 Coventry junction upgrades | E75: 2020-03-31 | F75: 2020-03-31 | G75: 2020-03-25 | H75: N/A
C76: 62 | D76: M40/M42 interchange Smart Motorways | E76: 2020-03-31 | F76: 2020-03-31 | G76: 2020-02-24 | H76: N/A | I76: 2022-03-31
C77: 63 | D77: A45/A6 Chowns Mill junction improvement | E77: 2020-03-31 | F77: 2020-03-31 | G77: 2019-11-25 | H77: N/A | I77: 2022-03-31
C78: 64 | D78: M5 Junctions 5, 6 & 7 junction upgrades | E78: 2020-03-31 | F78: 2020-03-31 | G78: 2015-07-01 | H78: N/A | I78: 2019-03-31 | J78: 2019-03-31 | K78: 0
C79: 65 | D79: A43 Abthorpe Junction | E79: 2020-03-31 | F79: 2020-03-31 | G79: 2015-06-01 | H79: N/A | I79: 2017-06-30 | J79: 2017-04-12 | K79: 0
C80: 66 | D80: A428 Black Cat to Caxton Gibbet | E80: 2020-03-31 | F80: RP2 | H80: N/A
C81: 67 | D81: M11 Junctions 8 to 14 - technology upgrade | E81: 2020-03-31 | F81: VfM | G81: VfM | H81: VfM | I81: VfM | J81: VfM
C82: 68 | D82: A12 Chelmsford to A120 widening | E82: 2020-03-31 | F82: RP2 | H82: N/A
C83: 69 | D83: A12 whole-route technology upgrade | E83: 2020-03-31 | F83: VfM | G83: VfM | H83: VfM | I83: VfM | J83: VfM
C84: 70 | D84: A1(M) Junctions 6-8 Smart Motorway | E84: 2020-03-31 | F84: 2020-03-31 | G84: 2020-03-16 | H84: N/A | I84: 2022-03-31
C85: 71 | D85: M11 Junction 7a junction upgrade | E85: 2020-03-31 | F85: 2020-03-31 | G85: **3rd Party Delivery | H85: N/A | I85: 2023-03-31
C86: 72 | D86: A34 Oxford Junctions | E86: 2020-03-31 | F86: 2019-09-30 | G86: 2019-08-12 | H86: N/A | I86: 2022-03-31
C87: 73 | D87: A34 Technology enhancements | E87: 2020-03-31 | F87: 2019-09-30 | G87: 2019-08-12 | H87: N/A | I87: 2022-03-31
C88: 74 | D88: M25 Junction 25 improvement | E88: 2020-03-31 | F88: RP2 | H88: N/A
C89: 75 | D89: M25 Junction 28 improvement | E89: 2020-03-31 | F89: RP2 | H89: N/A
C90: 76 | D90: M4 Heathrow Slip Road | E90: 2020-03-31 | F90: 2017-09-30 | G90: 2017-09-05 | H90: N/A | I90: 2018-03-31 | J90: 2018-03-13 | K90: 0
C91: 77 | D91: M2 Junction 5 improvements | E91: 2020-03-31 | F91: 2020-03-31 | G91: Deferred to RP2 | H91: N/A | I91: 2022-03-31
C92: 78 | D92: M25 Junctions 10-16 | E92: 2020-03-31 | F92: RP2 | H92: N/A
C93: 79 | D93: M25 Junction 10/A3 Wisley interchange | E93: 2020-03-31 | F93: RP2 | H93: N/A
C94: 80 | D94: M3 Junction 9 improvement | E94: 2020-03-31 | F94: RP2 | H94: N/A
C95: 81 | D95: M3 Junction 10-11 improved slip roads | E95: 2020-03-31 | F95: 2020-03-31 | G95: 2020-01-13 | H95: N/A | I95: 2022-03-31
C96: 82 | D96: M3 Junctions 12-14 improved slip roads | E96: 2020-03-31 | F96: 2020-03-31 | G96: 2020-01-13 | H96: N/A | I96: 2022-03-31
C97: 83 | D97: M27 Southampton Junctions | E97: 2020-03-31 | F97: RP2 | H97: N/A
C98: 84 | D98: M271 / A35 Redbridge Roundabout Upgrade | E98: 2020-03-31 | F98: 2019-06-30 | G98: 2019-05-01 | H98: N/A | I98: 2020-03-31
C99: 85 | D99: A31 Ringwood | E99: 2020-03-31 | F99: RP2 | H99: N/A
C100: 86 | D100: M49 Avonmouth Junction | E100: 2020-03-31 | F100: 2020-03-31 | G100: 2017-12-11 | H100: N/A | I100: 2020-03-31 | J100: 2019-12-18 | K100: 0
C101: 87 | D101: M5 Bridgwater Junctions | E101: 2020-03-31 | F101: RP2 | G101: Scheme stopped | H101: N/A | J101: Scheme stopped
C102: 88 | D102: A52 Nottingham Junctions | E102: 2020-03-31 | F102: 2020-03-31 | G102: 2017-01-16 | H102: N/A | I102: 2024-03-31
C103: 89 | D103: A14 Junction 10a | E103: 2020-03-31 | F103: VfM | G103: VfM | H103: VfM | I103: VfM | J103: VfM
C104: 90 | D104: A5 Towcester Relief Road | E104: 2020-03-31 | F104: 2020-03-31 | G104: **3rd Party Delivery | H104: N/A
C105: 91 | D105: A30 Chiverton to Carland Cross | E105: 2020-03-31 | F105: 2020-03-31 | G105: 2020-03-31 | H105: N/A | I105: 2024-03-31
A106: Schemes identified following the outcomes of six feasibility studies | B106: A1 North of Newcastle | C106: 92 | D106: A1 North of Ellingham | E106: 2020-03-31 | F106: 2020-03-31 | G106: 2018-12-17 | H106: N/A | I106: 2020-03-31 | J106: 2020-03-31 | K106: 0
C107: 93 | D107: A1 Morpeth to Ellingham dualling | E107: 2020-03-31 | F107: RP2 | H107: N/A
B108: A1 NGWB | C108: 94 | D108: A1 Scotswood to North Brunton | E108: 2020-03-31 | F108: 2020-03-31 | G108: 2020-03-11 | H108: N/A | I108: 2023-03-31
C109: 95 | D109: A1 Birtley to Coal House widening | E109: 2020-03-31 | F109: RP2 | H109: N/A
B110: Trans-Pennine Routes | C110: 96 | D110: A628 Climbing Lanes | E110: 2020-03-01 | F110: Scheme stopped | G110: Scheme stopped | H110: N/A | I110: Scheme stopped | J110: Scheme stopped
C111: 97 | D111: A61 Westwood Roundabout | E111: 2020-03-31 | F111: 2020-03-31 | G111: 2020-03-27 | H111: N/A | I111: 2022-03-31
C112: 98 | D112: Mottram Moor link road | E112: 2020-03-31 | F112: RP2 | H112: N/A
C113: 99 | D113: A57(T) to A57 Link Road | E113: 2020-03-31 | F113: RP2 | H113: N/A
B114: The A47/A12 Corridor | C114: 100 | D114: A47 North Tuddenham to Easton | E114: 2020-03-31 | F114: RP2 | H114: N/A
C115: 101 | D115: A47 Blofield to North Burlingham dualling | E115: 2020-03-31 | F115: RP2 | H115: N/A
C116: 102 | D116: A47 Acle Straight | E116: 2020-03-31 | F116: 2020-03-31 | G116: 2017-02-20 | H116: N/A | I116: 2018-03-31 | J116: 2018-03-11 | K116: 0
C117: 103 | D117: A47 Great Yarmouth Junctions | E117: 2020-03-31 | F117: *Mar-19 | G117: Deferred to RP2 | H117: N/A
C118: 104 | D118: A47/A11 Thickthorn Junction | E118: 2020-03-31 | F118: RP2 | H118: N/A
C119: 105 | D119: A47 Guyhirn Junction | E119: 2020-03-31 | F119: RP2 | H119: N/A
C120: 106 | D120: A47 Wansford to Sutton | E120: 2020-03-31 | F120: RP2 | H120: N/A
B121: The A27 Corridor | C121: 107 | D121: A27 Arundel Bypass | E121: 2020-03-31 | F121: RP2 | H121: N/A
C122: 108 | D122: A27 Worthing and Lancing improvements | E122: 2020-03-31 | F122: *Mar-20 | G122: Deferred to RP2 | H122: N/A
B123: The A303/A30/A358 Corridor | C123: 109 | D123: A303 Amesbury to Berwick Down | E123: 2020-03-31 | F123: RP2 | H123: N/A
C124: 110 | D124: A303 Sparkford - Ilchester dualling | E124: 2020-03-31 | F124: 2020-03-31 | G124: Deferred to RP2 | H124: N/A | I124: 2023-03-31
C125: 111 | D125: A358 Taunton to Southfields | E125: 2020-03-31 | F125: RP2 | H125: N/A
A126: Schemes contributing to investment with local authorities | C126: 112 | D126: A50 Uttoxeter | E126: 2015-12-31 | F126: 2015-12-31 | G126: 2015-12-01 | H126: N/A | I126: 2019-03-31 | J126: 2018-12-20 | K126: 0

Sheet IP2
A1: Highways England Performance Monitoring Statements Year end 2019-20
A2: Statement IP2: Strategic studies deliverables
C4: Date for completion of study
A5: Strategic studies (IP page 49) | B5: Source of baseline date | C5: Baseline date | D5: Latest forecast date | E5: Actual date | F5: Notes
A6: ="Total f"&RIGHT(#REF!,4) -> 
A7: Northern Trans-Pennine | B7: Corporate management information | C7: 2016-10-31 | D7: 2016-10-31 | E7: 2016-10-31 | F7: This study has completed and published on 28th November 2016. https://www.gov.uk/government/publications/northern-trans-pennine-strategic-study-stage-3-report Highways England has continued development work for consideration in future RIS periods.
A8: Trans-Pennine Tunnel | B8: Corporate management information | C8: 2016-10-31 | D8: 2016-10-31 | E8: 2016-10-31 | F8: This study has completed and published on 28th November 2016. https://www.gov.uk/government/publications/trans-pennine-tunnel-strategic-study-stage-3-report Highways England has continued development work for consideration in future RIS periods.
A9: Manchester Northwest Quadrant | B9: Corporate management information | C9: 2016-10-31 | D9: 2016-10-31 | E9: 2016-10-31 | F9: This study has completed and published on 28th November 2016. https://www.gov.uk/government/publications/manchester-north-west-quadrant-strategic-study-stage-3-report Highways England has continued development work for consideration in future RIS periods.
A10: A1 East of England | B10: Corporate management information | C10: 2016-10-31 | D10: 2016-10-31 | E10: 2016-10-31 | F10: This study has completed and published on 28th November 2016. https://www.gov.uk/government/publications/a1-east-of-england-strategic-study-stage-3-report Highways England has continued development work for consideration in future RIS periods.
A11: Oxford to Cambridge Expressway | B11: Corporate management information | C11: 2016-11-30 | D11: 2016-11-30 | E11: 2016-11-30 | F11: Study completed, stage 3 report published 28th November 2016. https://www.gov.uk/government/publications/oxford-to-cambridge-expressway-strategic-study-stage-3-report Highways England has continued development work for consideration in future RIS periods.
A12: M25 South-west Quadrant | B12: Corporate management information | C12: n/a | D12: 2017-02-28 | E12: 2017-03-06 | F12: Highways England were commissioned by DfT to procure and project manage this study. The study has completed and published 16th March 2017. https://www.gov.uk/government/publications/m25-south-west-quadrant-strategic-study-stage-3-report Highways England has continued development work for consideration in future RIS periods.
A14: Other studies
A15: Severn Crossing | B15: n/a | C15: This study is being led by DfT with input and support from Highways England. | D15: n/a | E15: n/a | F15: n/a

Sheet F2b (hidden)
A1: Statement F2b: Summary analysis of operations general headcount (FTE)
B4: 2015-16 | C4: 2016-17 | D4: 2017-18 | E4: 2018-19 | F4: 2019-20
A6: Activity breakdown | B6: X | C6: X | D6: X | E6: X | F6: X
B7: X | C7: X | D7: X | E7: X | F7: X
B8: X | C8: X | D8: X | E8: X | F8: X
A9: Total operations general headcount | B9: X | C9: X | D9: X | E9: X | F9: X
A10: Baseline assumed | B10: X | C10: X | D10: X | E10: X | F10: X
A11: Variance | B11: X | C11: X | D11: X | E11: X | F11: X
A13: Commentary:Explanation of changes in NDD staff numbers during the year and the impact this had on operations-general costs.
A16: Note:

Sheet IP3
A1: Highways England Performance Monitoring Statements Year end 2019-20
A2: Statement IP3: Ring-fenced investment funds
A4: Element | B4: Deliverable | D4: Comments
B5: 2019-20
B6: Developed | C6: Delivered
A7: Environment
A8: Water | B8: 31 | C8: Flooding 17 Water Quality 5 | D8: Through the Environment Fund, we have mitigated and validated 17 flooding hotspots, improving the safety of the network and making it more resilient – as well as removing flood risk to the adjacent community. We have improved water quality at 5 outfall locations to reduce the level of pollution to within acceptable thresholds. There are specific performance indicators within the Delivery Plan for both these initiatives. We have also completed detailed design on 31 projects which will lead to further outputs.
A9: Noise | B9: 3 | C9: 185 Insulation Assured 2 barriers assured | D9: 185 NIAs have been mitigated by the insulation programme this year. 2 further NIAs were mitigated with barriers. These works contributed to the Company exceeding its noise KPI of mitigating 1150 NIAs
A10: Carbon | B10: 4 | C10: 8 | D10: 8 projects have led to 3621 lighting units and 36 traffic signals being converted to LED which will reduce our carbon footprint and improve the environmental performance of the SRN. 4 further projects have completed detailed design and once these have been delivered they will further improve our environmental performance.
A11: Landscape | B11: 26 | C11: 16 | D11: 16 landscape improvements have enhanced the quality of the landscape on the SRN and improved visual screening, reducing the visual intrusion to adjacent residents and communities. A further 26 locations have now completed detailed design and can be taken forward for delivery in future years.
A12: Biodiversity | B12: 31 | C12: 41 | D12: 41 biodiversity projects have created an additional 170.3 ha of species rich grassland and improved connectivity for species across the landscape. This also includes work carried out at 2 SSSI sites which will improve the quality of those sites in our ownership. 31 further biodiversity projects have completed their detailed design phase and these projects are being reviewed in the light of the new biodiversity metric for RP2
A13: Cultural Heritage | B13: 6 | C13: 2 | D13: As a result of the feasibility work done in previous years, 2 projects were identified for delivery and have been delivered. This includes improvements to Hull Minster to mitigate the effect of major works carried out on the A63 in Hull and encourage more visitors. 6 further projects have completed their detailed design.
A14: Legacy | B14: 1 | C14: 2 | D14: 2 projects were delivered including landmark bridges on the A14 for pedestrians, cyclists and equestrians. Legacy funding for detailed design was awarded to Northstowe museum which will enable exhibits found during excavations of the A14 to be properly displayed once construction works are completed in 2020/21.
A15: Total | B15: 102 | C15: 93 | D15: The numbers stated within this report are only those projects which have been validated by the SES Programme Office using a methodology agreed with our internal audit team. Other projects have been delivered but as yet have not been validated.
A17: Cycling, Safety & Integration | D17: 59 cycling mprovements were delivered in 2019/20, taking to the overall total to 160; ensuring that we have exceeded the Company’s Business Pan target to deliver at least 150 by the end of RP1. A further 24 cycle routes and crossings have now completed detailed design and can be taken forward for delivery in future years. These schemes will improve safety and increase provision for cyclists on and near the SRN, and enhance access for a variety of users. We have worked in partnership with The Lake District National Park to bring a key walking and cycling route back to life, following destruction caused by Storm Desmond in 2015, around half of the Keswick to Threlkeld Railway Path Multi User Trail (MUT) has been out of action, impacting on thousands of local people and visitors who use the route every year. We have now completed the first section of Multi User Trail, between Penrith Road (A5271) and The Forge. In collaboration with the cycling charity Sustrans we have delivered over 10 kilometres of new and improved cycleway, helping cyclists and walkers navigate the SRN and providing safer crossings, to connected cycle schemes on England’s busiest roads with the charity’s 16,505 mile National Cycle Network.
A18: Cycling | B18: 24 | C18: 59
A19: Safety | B19: 23 | C19: 23 | D19: 23 safety schemes that address the higher accident rates on our single carriageway corridors, and have delivered targeted improvements at locations identified for suicide prevention measures. A further 23 safety schemes have now completed detailed design that will deliver a range of safety measures that will result in noticeable improvements for our customers and provide a safe and serviceable network. We have contributed to the Highways England’s safety objective to achieve a 40% reduction of Killed and Serious Injury (KSI) casualties on the trunk road network by 2020, by addressing priority sites, including a section of the A1 all-purpose trunk road between Sandy and Buckden roundabouts. This section is just over 11 miles (18,321m) in length and had 123 recorded Personal Injury Collisions, resulting in 222 casualties in the 5-year study period. A route treatment based approach has been adopted to provide consistency, highlight the road layout to drivers, particularly during the hours of darkness and wet road conditions, and improved warning signs to improve driver awareness of hazards. Since the launch of Highways England Suicide Prevention Strategy we have completed feasibility studies within each of our 6 regions and Designated Funds have been used to develop schemes at those locations identified as frequently used by vulnerable persons to attempt taking their own lives. We have completed works on the A19 Leven Valley Bridge, near Stockton-on-Tees and work is underway to deliver an improvement at a high-profile site on the M62 at Scammonden which has had a high number of incidents over recent years.
A20: Integration | B20: 10 | C20: 12 | D20: 23 accessibility and integration schemes were delivered in 2019/20. These schemes now provide new or enhanced pedestrian crossings, improved underpasses, along with modal integration and better links to bus stops, park and ride sites and public transport interchanges. A further 10 schemes have now completed detailed design and can be taken forward to ensure the SRN has better integration with the bus & coach and passenger rail to increase choice and take vehicles off the road. Completed works at M2/A2 Brenley Corner roundabout, which leads to the Sandwich Enterprise Zone where the number of people travelling to the site is expected to rise significantly. We invested £1.3m to introduce new traffic signals and Toucan crossings in order to create safe, attractive routes for cycling and walking around this busy junction. Works have started on the M621 Junction 7 Improvements that will help facilitate the new Park & Ride site in south Leeds. The £1.9m scheme facilitates improved modal integration with public transport and ties in to the Leeds City Council plans for a Park & Ride site to the south of the junction, This scheme addresses congestion and improve connectivity through enhancing reliability and the accessibility of bus services routed across the M621 from the south of the city. The works complete in early 2020.
A21: Total | B21: =SUM(B18:B20) -> 57 | C21: =SUM(C18:C20) -> 94
A22: Innovation | D22: The Innovation Programme has funded 175 projects to date of which almost 90 were active during 2019/20, including 12 awarded through the Innovation and Air quality competition. The Innovation and Air Quality competition projects started in September 2019, 4 projects were awarded full phase development directly, 8 projects were awarded an initial feasibility stage, 2 of which have now proceeded to full development. The projects from the Innovation and Air Quality competition are not accounted among the categories below as they were considered as pertaining to all the themes. During RIS1 a number projects were withdrawn, deferred or not prioritised as they were not delivering the expected benefits or could not demonstrate alignment with HE strategic objectives. As the purpose of Innovation is to fund medium/high-risk activities, failing outcomes are not unexpected but the lessons are captured to ensure learning is fed into the development of our long term strategy.
A23: Safety | B23: 8 | C23: 5 | D23: Development phase complete on 8 projects and delivery completed on 5 projects. Projects delivered include the Stopped Vehicle Detection M25 J23 – 27 scheme. The scheme trialled the retro-fit of the SVD system in response to concerns around safety of All Lane Running schemes, particularly around live lane breakdowns, raised by the Transport Select Committee following their review of smart motorways. As well as delivering a live SVD solution for M25 J23-27 this project also informed on business case developed by Smart Motorways Programme for full retro-fit and roll-out and operational procedures (and associated KPI’s) for RCCs.
A24: Improving Infrastructure | B24: 6 | C24: 8 | D24: 8 projects have completed their development phases, among these the Low noise surfacing. This project explored the development of a Low Noise Micro surfacing often known as a Cold Applied Ultra-Thin surfacing (CAUTS). Part of the innovation, was not only to test the sustainable products, incorporating recycled materials, produced nationally, reducing the transport and CO2 emissions, but also as being a cold applied product. From Northampton trials and Shrewsbury trial noise reduction/ low noise microsurfacing was clearly demonstrated, however different materials were trialled in Northampton and Shrewsbury with different results in terms of texture depth and durability.
A25: Data & Information | B25: 3 | C25: 23 | D25: Development phase complete on 3 projects and 23 projects delivered the ending phase. The Trimble Mixed Reality project, has now completed testing for use on site. This virtual reality system allows Building Information Modelling (BIM) to be viewable by showing digital artefacts superimposed on the real-world location. This is a suitable tool for construction and task planning as the system attempts to overcome either the lack of technical drawing comprehension or ability to visualise the design or drawings in the field.
A26: New Technologies | B26: 7 | C26: 4 | D26: 7 projects have been through the development phase and 4 projects have concluded. The Hyperspectral Remote Sensing project has completed a collaborative task with Network Rail to investigate the uses of Hyperspectral Remote Sensing (HRS) in relation to network asset condition and performance. Hyperspectral Remote Sensing offers the opportunity for enhanced detection and identification of asset condition, vegetation, and man-made materials and backgrounds.
A27: Support to Sustainable Operation | B27: 6 | C27: 6 | D27: 6 projects completed development this financial year and 6 projects completed delivery. Part of this phase of Power Generation from Structures project has been the development of an off-network plan for testing in conjunction with SES which undertaken at the Smart Motorways Development Centre (SMDC), developed the Fire Service College at Moreton-in-Marsh. This phase included the identification of a portfolio of trial ready technologies and the potential supply chain for these products.
A28: Total | B28: 30 | C28: 46 | D28: For all the completed projects numerous case studies have already been produced and published on the innovation hub. The collection of close out material and a benefit capture exercise are currently ongoing.
A29: Air Quality | B29: 52 | C29: 21 | D29: The Air Quality Designated Fund has funded 66 projects to date, of which 52 were active this financial year. 19/20 saw a deliberate broadening of our activity, acknowledging that 'hard' infrastructure interventions are unlikely to provide significantly improve air quality in the short term nor leave a lasting long term benefit to communities. In particular we have worked with local authority partners to collaboratively develop potential solutions to air quality issues. In 19/20 we provided over £7m in funding to local authorities in Nottingham, Sheffield, Coventry and Kent to deliver electric van centres of excellence. These schemes are intended to support local businesses in trialling, free of charge, an electric van for a period of time to understand how they perform and how much they cost to run. Our expectation is that a significant proportion of businesses will go on to buy an electric vehicle in due course. These schemes are intended both the compliment Clean Air Zone proposals and to mitigate areas of our network where air quality doesn't yet comply with legal limits. Whilst these schemes are only in the planning phase at present, we will continue to work with the local authorities throughout RP 2 to assess the effectiveness of these schemes in delivering long term community benefit. Another example of our collaborative approach to tackling air quality has been our work to support Solent Transport and a range of local stakeholders in developing a package of travel demand management measures to mitigate the anticipated congestion impact of the M27 smart motorway scheme. Whilst again this scheme is currently in the planning phase we hope to see this deliver long-term community benefit in assist the business in developing travel demand management as part of our 'business as usual' processes. In continuing to search for effective solutions we invested over £3m in RIS 1 in successful Innovate UK competition applicants. These projects are currently in progress and we hope to be able to assess their effectiveness in the second half of 2020. We invested over £3m in 19/20 to achieve our RIS 1 commitment of ensuring 95% of our network was within 20 miles of a rapid electric vehicle charge point. By 31 March 2020 we had installed 55 charge points, and 96.3% of the network was covered through the scheme.
A31: Total | B31: 52 | C31: 21
A33: Growth & Development | B33: 28 | C33: 8 | D33: The Growth and Housing Fund has committed circa £93m towards the appraisal and delivery of 28 approved schemes, which are expected to attract up to £129 million in other public contributions and £102 million in private match funding. Thereby allowing stalled developments around the country to be unlocked that will eventually deliver up to 1.74 million m2 of commercial floor space, 44,000 homes and 45,000 jobs. 8 schemes are already open to traffic, 9 are on site with the remaining projects due to commence on site during the current financial year.
A34: Total | B34: 28 | C34: 8

Sheet IP4
A1: Highways England Performance Monitoring Statements Year end 2019-20
A2: Statement IP4: Renewal volume reporting | N2: =LEFT(A2,13) -> Statement IP4 | O2: =RIGHT(A2,LEN(A2)-FIND(" ",A2)) -> IP4: Renewal volume reporting | P2: =N2 -> Statement IP4
A4: Renewals Type | B4: Asset Type | C4: unit | D4: 2015-16 | L4: 2016-17 | T4: 2017-18 | AB4: 2018-19 | AJ4: 2019-20
D5: Actual | L5: Actual | Q5: Full year actual | T5: Actual | Y5: Full year actual | AB5: Actual | AG5: Full year actual | AJ5: Actual | AO5: Full year actual
D6: Q1 | E6: Q2 | F6: Q3 | G6: Q4 | H6: Total | I6: Baseline | J6: Variance | K6: Reasons for variance from baseline (e.g Revised asset policy or information, Change in usage, Delivery of efficiency or inefficiency, re-programming, Slippage , etc) | L6: Q1 | M6: Q2 | N6: Q3 | O6: Q4 | P6: Total | Q6: Baseline | R6: Variance | S6: Reasons for variance from baseline (e.g Revised asset policy or information, Change in usage, Delivery of efficiency or inefficiency, re-programming, Slippage , etc) | T6: Q1 | U6: Q2 | V6: Q3 | W6: Q4 | X6: Total | Y6: Baseline | Z6: Variance | AA6: Reasons for variance from baseline (e.g Revised asset policy or information, Change in usage, Delivery of efficiency or inefficiency, re-programming, Slippage , etc) | AB6: Q1 | AC6: Q2 | AD6: Q3 | AE6: Q4 | AF6: Total | AG6: Baseline | AH6: Variance | AI6: Reasons for variance from baseline (e.g Revised asset policy or information, Change in usage, Delivery of efficiency or inefficiency, re-programming, Slippage , etc) | AJ6: Q1 | AK6: Q2 | AL6: Q3 | AM6: Q4 | AN6: Total | AO6: Baseline | AP6: Variance | AQ6: Reasons for variance from baseline (e.g Revised asset policy or information, Change in usage, Delivery of efficiency or inefficiency, re-programming, Slippage , etc)
A7: RoR Pavement | B7: Pavement | C7: lane miles | D7: 354.8 | E7: 431.5 | F7: 378.7 | G7: 302.9 | H7: 1468 | I7: 1200 | J7: =SUM(H7-I7) -> 268 | K7: Overachieved due to additional resurfacing associated with pinch point schemes and carry over schemes from 14/15. | L7: 204.1717982 | M7: 179.3248185 | N7: 257.0810044 | O7: 747.6809854 | P7: =SUM(L7:O7) -> 1388.258606 | Q7: 746 | R7: =P7-Q7 -> 642.2586065 | S7: Delivered more lane miles than targeted to help improve KPI8 performance. | T7: 331 | U7: 281 | V7: 342 | W7: 609 | X7: 1563 | Y7: 994 | Z7: =SUM(X7-Y7) -> 569 | AA7: Delivered more lane miles than targeted to help improve KPI8 performance. | AB7: 332 | AC7: 273 | AD7: 270 | AE7: 330 | AF7: =SUM(AB7:AE7) -> 1205 | AG7: 1118 | AH7: =SUM(AF7-AG7) -> 87 | AI7: Delivered more lane miles than targeted to help maintain and improve KPI8 performance. | AJ7: 166.8 | AK7: 356 | AL7: 266.2 | AM7: 235.6 | AN7: =SUM(AJ7:AM7) -> 1024.6 | AO7: 901 | AP7: =SUM(AN7-AO7) -> 123.6 | AQ7: Delivered more lane miles than targeted to help maintain and improve KPI8 performance. Also delivered more through efficient delivery | AZ7: =AB7 -> 332 | BA7: =AC7-AB7 -> -59 | BB7: =AD7-AC7 -> -3 | BC7: =AE7-AD7 -> 60
A8: Renewal of Roads (RoR) Others | B8: Road Marking | C8: linear metre | D8: 1150027 | E8: 1318252 | F8: 790753 | G8: 1204771 | H8: 4463803 | I8: 2304000 | J8: 2159803 | K8: Original target did not take into account resurfacing. Overachieved due to resurfacing as well as carry over schemes from 14/15. | L8: 465627.6 | M8: 745078.491 | N8: 1179294.556 | O8: 1991957.126 | P8: 4381957.773 | Q8: 1952868 | R8: 2429089.773 | S8: Delivered above target due to additional resurfacing to improve KPI8 performance. In addition there were still some residual issues associated with target setting where the target did not take into account resurfacing. | T8: 707157.0667 | U8: 1227787.236 | V8: 909722.2369 | W8: 1444342.129 | X8: 4289008.669 | Y8: 2965500 | Z8: =SUM(X8-Y8) -> 1323508.669 | AA8: Delivered above target due to additional resurfacing to improve KPI8 performance. In addition there were still some residual issues associated with target setting where the target did not take into account resurfacing although this has improved from the prior year. | AB8: 1212232 | AC8: 1170214 | AD8: 685233 | AE8: 626784 | AF8: 3694463 | AG8: 2850000 | AH8: =SUM(AF8-AG8) -> 844463 | AI8: Delivered above target due to additional resurfacing to improve KPI8 performance. In addition there were still some residual issues associated with target setting where the target did not take into account resurfacing although this has improved from the prior year again. | AJ8: 798010 | AK8: 2193669 | AL8: 778738 | AM8: 696432 | AN8: 4466849 | AO8: 3300000 | AP8: =SUM(AN8-AO8) -> 1166849 | AQ8: Delivered above target due to additional resurfacing to improve KPI8 performance. There were some residual issues associated with target setting in which the road marking target did not take into account resurfacing although this has improved from the previous years. | AZ8: 1212232 | BA8: -42018 | BB8: -484981 | BC8: -58449
B9: Kerbs | C9: linear metre | D9: 5623 | E9: 12951 | F9: 5579 | G9: 8916 | H9: 33069 | I9: 13000 | J9: 20069 | K9: Overachieved due to kerbs being associated with resurfacing schemes on all purpose trunk roads, as an efficient way of renewing assets. | L9: 1508.5 | M9: 7482 | N9: 615 | O9: 11545.8 | P9: 21151.3 | Q9: 8088 | R9: 13063.3 | S9: Delivered above target due to additional kerbs being associated with resurfacing schemes on all purpose trunk roads, as an efficient way of renewing assets as part of improving the performance of KPI8. | T9: 2723 | U9: 640.41 | V9: 7808.02 | W9: 9981.03 | X9: 21151.64 | Y9: 1300 | Z9: =SUM(X9-Y9) -> 19851.64 | AA9: Delivered above target due to additional kerbs being associated with resurfacing schemes on all purpose trunk roads, as an efficient way of renewing assets as part of improving the performance of KPI8. | AB9: 5944 | AC9: 4327 | AD9: 4453 | AE9: 25059 | AF9: 39783 | AG9: 26800 | AH9: =SUM(AF9-AG9) -> 12983 | AI9: Delivered above target due to additional kerbs being associated with resurfacing schemes on all purpose trunk roads, as an efficient way of renewing assets as part of improving the performance of KPI8. In addition there were still some residual issues associated with target setting where the target did not take into account resurfacing although this has improved from the prior year again. | AJ9: 5904 | AK9: 5096 | AL9: 16173 | AM9: 15824 | AN9: 42997 | AO9: 11600 | AP9: =SUM(AN9-AO9) -> 31397 | AQ9: Delivered above target due to additional kerbs being associated with resurfacing schemes on all purpose trunk roads as an efficient way of renewing assets and improving the performance of KPI8. There were some residual issues associated with target setting in which the kerbs target did not take into account resurfacing although this has improved from previous years | AZ9: 5944 | BA9: -1617 | BB9: 126 | BC9: 20606
B10: Vehicle Restraint System (VRS) - Concrete | C10: linear miles* | D10: 13446 | E10: 8321 | F10: 11989 | G10: 10423 | H10: 34576 | I10: 59000 | J10: -24424 | K10: The regions delivered a prioritised programme based on allocation. Future prioritisation and programming of schemes will be based on the development of asset plans, so these schemes will be targeted on safety and asset needs. | L10: 0 | M10: 6 | N10: 1 | O10: 0 | P10: 7 | Q10: 6 | R10: 1 | S10: Delivered above target. The regions planned a prioritised programme based on assumptions of delivery according to agreed standards and value for money considerations. The actual programme delivered was based on the agreement of changed standards which resulted in significant additional delivery, particularly in the NW region. | T10: 11 | U10: 7 | V10: 26 | W10: 41 | X10: 86 | Y10: 57 | Z10: =SUM(X10-Y10) -> 29 | AA10: Concrete and Non Concrete VRS are now captured as one output. Delivered above target. The regions planned a prioritised programme based on assumptions of delivery according to agreed standards and value for money considerations. The actual programme delivered was based on the agreement of changed standards which resulted in significant additional delivery, particularly in the NW region. | AB10: 16.6 | AC10: 18.7 | AD10: 36.4 | AE10: 55.4 | AF10: 127.1 | AG10: 116.8 | AH10: =SUM(AF10-AG10) -> 10.3 | AI10: Concrete and Non Concrete VRS are captured as one output. Delivered above target. The regions planned a prioritised programme based on assumptions of delivery according to agreed standards and value for money considerations. The actual programme delivered was based on the agreement of changed standards which resulted in significant additional delivery, particularly in the NW region. | AJ10: 5.4 | AK10: 20.5 | AL10: 15 | AM10: 31.9 | AN10: 72.8 | AO10: 70.8 | AP10: =SUM(AN10-AO10) -> 2 | AQ10: Concrete and Non Concrete VRS are captured as one output. Delivered above target. The regions planned a prioritised programme based on assumptions of delivery according to agreed standards and value for money considerations. The actual programme delivered was based on the agreement of changed standards which resulted in additional delivery, particularly in the NW region | AZ10: 16.6 | BA10: 2.1 | BB10: 17.7 | BC10: 19 | BD10: 26747 | BE10: 30035 | BF10: 58530 | BG10: 89184
B11: Vehicle Restraint System (VRS) - Non-Concrete | C11: linear miles* | D11: 4 | E11: 66401 | F11: 10799 | G11: 27728 | H11: 104932 | I11: 119000 | J11: -14068 | K11: Prioritisation and programming of schemes was based on best available information at the time. The development of asset plans will in future provide more targeted outputs. Programme planning ensures that the right schemes are put forward to deliver required outputs based on asset needs | L11: 13 | M11: 8 | N11: 5 | O11: 47 | P11: 73 | Q11: 53 | R11: 20 | AB11: X | AC11: X | AD11: X | AE11: X | AF11: 0 | AG11: X | AJ11: X | AK11: X | AL11: X | AM11: X | AN11: 0 | AO11: X | AZ11: X | BD11: X
B12: Drainage | C12: linear miles* | D12: 57866 | E12: 116814 | F12: 38483 | G12: 64142 | H12: 277305 | I12: 231000 | J12: 46305 | K12: Overdelivered due to drains being associated with resurfacing schemes on all purpose trunk roads, as an efficient way of renewing assets. Safety consideration determined additional needs for drainage improvements. | L12: 18 | M12: 51 | N12: 25 | O12: 107 | P12: 201 | Q12: 110 | R12: 91 | S12: Delivered above target due to additional drainage being associated with resurfacing schemes on all purpose trunk roads, as an efficient way of renewing assets as part of the recovery of KPI8. | T12: 32 | U12: 10 | V12: 40 | W12: 115 | X12: 199 | Y12: 87 | Z12: =SUM(X12-Y12) -> 112 | AA12: Delivered above target due to additional drainage being associated with resurfacing schemes on all purpose trunk roads, as an efficient way of renewing assets as part of the recovery of KPI8. | AB12: 40 | AC12: 27.9 | AD12: 17.5 | AE12: 23 | AF12: 108.4 | AG12: 102.5 | AH12: =SUM(AF12-AG12) -> 5.9 | AI12: Delivered above target due to additional drainage being associated with resurfacing schemes on all purpose trunk roads, as an efficient way of renewing assets as part of the recovery of KPI8. | AJ12: 19.5 | AK12: 6.4 | AL12: 45.7 | AM12: 18 | AN12: 89.6 | AO12: 71.5 | AP12: =SUM(AN12-AO12) -> 18.1 | AQ12: Delivered above target due to additional drainage being associated with resurfacing schemes on all purpose trunk roads, as an efficient way of renewing assets as part of the recovery of KPI8. | AZ12: 40 | BA12: -12.1 | BB12: -10.4 | BC12: 5.5
B13: Drainage - other | C13: number | D13: 15 | E13: 24 | F13: 24 | G13: 1369 | H13: 1432 | I13: 1435 | J13: -3 | K13: Delivered close to target. | L13: not in delivery plan | M13: not in delivery plan | N13: not in delivery plan | O13: not in delivery plan | P13: not in delivery plan | Q13: not in delivery plan | S13: No Delivery Plan target | T13: Not in Delivery Plan | U13: Not in Delivery Plan | V13: Not in Delivery Plan | W13: Not in Delivery Plan | X13: Not in Delivery Plan | Y13: Not in Delivery Plan | Z13: Not in Delivery Plan | AA13: No Delivery Plan target | AB13: Not in Delivery Plan | AC13: Not in Delivery Plan | AD13: Not in Delivery Plan | AE13: Not in Delivery Plan | AF13: Not in Delivery Plan | AG13: Not in Delivery Plan | AH13: Not in Delivery Plan | AI13: No Delivery Plan target | AJ13: Not in Delivery Plan | AK13: Not in Delivery Plan | AL13: Not in Delivery Plan | AM13: Not in Delivery Plan | AN13: Not in Delivery Plan | AO13: Not in Delivery Plan | AP13: Not in Delivery Plan | AQ13: No Delivery Plan target | AZ13: Not in Delivery Plan
B14: Geotech | C14: linear metre | D14: 37539 | E14: 995 | F14: 648 | G14: 1111 | H14: 40293 | I14: 46000 | J14: -5707 | K14: Prioritisation and programming of schemes was based on best available information at the time. The development of asset plans will in future provide more targeted outputs. Programme planning ensures that the right schemes are put forward to deliver required outputs based on asset needs. | L14: 440 | M14: 249 | N14: 4655 | O14: 4868 | P14: =SUM(L14:O14) -> 10212 | Q14: 11884 | R14: =P14-Q14 -> -1672 | S14: Missed target by 1,672 (16%). 25 schemes were planned for 16/17, however, 15 of these were unable to be progressed and, although replacement schemes were delivered it is not possible to find like-for-like replacements due to the diverse nature of this measure. The replacement schemes delivered fewer outcomes as the potential issues such as slope stabilisation works are not always required once further investigation of the site are undertaken. The measure also does not always lend itself to good comparison between schemes on a linear metre basis where more activity is actually devoted to cubic metre works. | T14: 2797 | U14: 1043.41 | V14: 12381.48 | W14: 4079.5 | X14: 20301.39 | Y14: 5700 | Z14: =SUM(X14-Y14) -> 14601.39 | AA14: Delivered above target due to additional geotech being associated with resurfacing schemes on all purpose trunk roads, as an efficient way of renewing assets as part of the recovery of KPI8. | AB14: 285 | AC14: 84 | AD14: 970 | AE14: 1868 | AF14: =SUM(AB14:AE14) -> 3207 | AG14: 3000 | AH14: =SUM(AF14-AG14) -> 207 | AI14: Delivered above target due to additional geotech being associated with resurfacing schemes on all purpose trunk roads, as an efficient way of renewing assets as part of the recovery of KPI8. | AJ14: 80 | AK14: 1054 | AL14: 1316 | AM14: 5114 | AN14: =SUM(AJ14:AM14) -> 7564 | AO14: 7200 | AP14: =SUM(AN14-AO14) -> 364 | AQ14: Delivered above target due to additional geotech being associated with resurfacing schemes on all purpose trunk roads, as an efficient way of renewing assets as part of the recovery of KPI8. | AZ14: 285 | BA14: -201 | BB14: 886 | BC14: 898
B15: Traffic Sign (non-electric) | C15: number | D15: 236 | E15: 324 | F15: 414 | G15: 622 | H15: 1596 | I15: 1525 | J15: 71 | K15: Delivered close to target | L15: 237 | M15: 530 | N15: 281 | O15: 452 | P15: 1500 | Q15: 1140 | R15: 360 | S15: Over-delivered target by 360 (24%). 35 schemes were planned for 16/17 of which 28 were delivered in conjunction with Pavement schemes. Additional delivery was added as part of the Renewals programme as part of efficient scheme delivery. | T15: 592 | U15: 19 | V15: 270 | W15: 819 | X15: 1700 | Y15: 2000 | Z15: =SUM(X15-Y15) -> -300 | AA15: Underdelivered as one region had set its target incorrectly. This was set on the basis of multiple sign heads instead of one insulation. Following a contract change, a number of traffic sign schemes were reassessed. The original target set was a total of traffic signs (non-elec) in various locations and did not reflect the work required. These schemes have now been reviewed and will be prioritised for future year programmes accordingly. | AB15: 257 | AC15: 600 | AD15: 304 | AE15: 668 | AF15: =SUM(AB15:AE15) -> 1829 | AG15: 1000 | AH15: =SUM(AF15-AG15) -> 829 | AI15: Delivered above target due to some residual issues associated with target setting where the target did not take into account secondary outputs as part of efficient scheme delivery or the delivery of multiple sign renewals in a single location. | AJ15: 98 | AK15: 301 | AL15: 172 | AM15: 459 | AN15: =SUM(AJ15:AM15) -> 1030 | AO15: 400 | AP15: =SUM(AN15-AO15) -> 630 | AQ15: Delivered above target due to residual issues associated with target setting in which the original traffic sign target did not take into account secondary outputs as part of efficient scheme delivery or the delivery of multiple sign renewals in a single location. | AZ15: 257 | BA15: 343 | BB15: -296 | BC15: 364
B16: Guardrail | C16: linear metre | D16: 490 | E16: 188 | F16: 118 | G16: 36 | H16: 832 | I16: 1000 | J16: -168 | K16: Prioritisation and programming of schemes was based on best available information at the time. The development of asset plans will in future provide more targeted outputs. Programme planning ensures that the right schemes are put forward to deliver required outputs based on asset needs. | L16: 60 | M16: 28 | N16: 0 | O16: 838 | P16: 926 | Q16: 147 | R16: 779 | S16: Delivered above target partly due to the completion of improvement schemes and delivery of additional works as part of an efficient way of renewing the asset. | T16: 53 | U16: 430 | V16: 116 | W16: 707 | X16: 1306 | Y16: 800 | Z16: =SUM(X16-Y16) -> 506 | AA16: Delivered above target partly due to the completion of improvement schemes and delivery of additional works as part of an efficient way of renewing the asset. | AB16: 54 | AC16: 160 | AD16: 241 | AE16: 533 | AF16: =SUM(AB16:AE16) -> 988 | AG16: 625 | AH16: =SUM(AF16-AG16) -> 363 | AI16: Delivered above target partly due to the completion of improvement schemes and delivery of additional works as part of an efficient way of renewing the asset. | AJ16: 140 | AK16: 202 | AL16: 355 | AM16: 630 | AN16: =SUM(AJ16:AM16) -> 1327 | AO16: 350 | AP16: =SUM(AN16-AO16) -> 977 | AQ16: Delivered above target partly due to the completion of improvement schemes and delivery of additional works as part of an efficient way of renewing the asset. | AZ16: 54 | BA16: 106 | BB16: 81 | BC16: 292
B17: Boundary Fencing | C17: linear metre | D17: 6184 | E17: 9379 | F17: 6980 | G17: 18124 | H17: 40667 | I17: 58000 | J17: -17333 | K17: Prioritisation and programming of schemes was based on best available information at the time. The development of asset plans will in future provide more targeted outputs. Programme planning ensures that the right schemes are put forward to deliver required outputs based on asset needs. | L17: 9373.6 | M17: 2808 | N17: 5774 | O17: 22315 | P17: 40270.6 | Q17: 28544 | R17: 11726.6 | S17: Delivered above target due to some residual issues associated with target setting where the target did not take into account secondary outputs as part of efficient scheme delivery. | T17: 2180 | U17: 4411.49 | V17: 28402.27 | W17: 42146.8 | X17: 77140.56 | Y17: 33900 | Z17: =SUM(X17-Y17) -> 43240.56 | AA17: Delivered above target due to some residual issues associated with target setting where the target did not take into account secondary outputs as part of efficient scheme delivery. | AB17: 12139 | AC17: 9433 | AD17: 12943 | AE17: 13705 | AF17: =SUM(AB17:AE17) -> 48220 | AG17: 35800 | AH17: =SUM(AF17-AG17) -> 12420 | AI17: Delivered above target due to some residual issues associated with target setting where the target did not take into account secondary outputs as part of efficient scheme delivery (mainly in the NW). | AJ17: 1976 | AK17: 4966 | AL17: 7441 | AM17: 12754 | AN17: =SUM(AJ17:AM17) -> 27137 | AO17: 24500 | AP17: =SUM(AN17-AO17) -> 2637 | AQ17: Delivered above target due to residual issues associated with target setting in which the target did not take into account secondary outputs as part of efficient scheme delivery (mainly in the NW). | AZ17: 12139 | BA17: -2706 | BB17: 3510 | BC17: 762
B18: Footway | C18: linear metre | D18: 0 | E18: 0 | F18: 1 | G18: 1358 | H18: 1359 | I18: 13000 | J18: -11641 | K18: Prioritisation and programming of schemes was based on best available information at the time. The development of asset plans will in future provide more targeted outputs. Programme planning ensures that the right schemes are put forward to deliver required outputs based on asset needs. | L18: 1492 | M18: 0 | N18: 2103.495 | O18: 21637.36 | P18: 25232.855 | Q18: 2015 | R18: 23217.855 | S18: Over achieved due to the Target being incorrectly set. Only two schemes had been set a target whereas the target should have included the delivery from more than 30 schemes. The majority of the over-delivery came from 10 schemes delivering more than 20,000 linear metres of footways. | T18: Not in Delivery Plan | U18: Not in Delivery Plan | V18: Not in Delivery Plan | W18: Not in Delivery Plan | X18: Not in Delivery Plan | Y18: Not in Delivery Plan | Z18: Not in Delivery Plan | AA18: No Delivery Plan target | AB18: Not in Delivery Plan | AC18: Not in Delivery Plan | AD18: Not in Delivery Plan | AE18: Not in Delivery Plan | AF18: Not in Delivery Plan | AG18: Not in Delivery Plan | AH18: Not in Delivery Plan | AI18: No Delivery Plan target | AJ18: Not in Delivery Plan | AK18: Not in Delivery Plan | AL18: Not in Delivery Plan | AM18: Not in Delivery Plan | AN18: Not in Delivery Plan | AO18: Not in Delivery Plan | AP18: Not in Delivery Plan | AQ18: No Delivery Plan target | AZ18: Not in Delivery Plan
B19: Lighting | C19: number | D19: 197 | E19: 696 | F19: 276 | G19: 10082 | H19: 11251 | I19: 3649 | J19: 7602 | K19: Additional lighting columns delivered in line with safety and asset needs | L19: 123 | M19: 1401 | N19: 2616 | O19: 2334 | P19: 6474 | Q19: 2332 | R19: 4142 | S19: Additional lighting delivered in line Philips Luma 2 & 3 Lighting Luminaires replaced in accordance with the Chief Highways Engineer safety instruction. | T19: 923 | U19: 1245 | V19: 598 | W19: 1327 | X19: 1327 | Y19: 1500 | Z19: =SUM(X19-Y19) -> -173 | AA19: Target not achivieved due to safety issues with Philips Luminaires as per Lighting CHE memo 418/18-420/18. (There were also errors in claiming outputs which were corrected in Q4. One of the reasons our lighting delivery was lower than the target was due to safety issues identified with Phillips Luminaires (as per CHE 418/18 – 421/18). As examples, one scheme was delayed due to having to return to the design stage to identify an alternative lantern appropriate for the columns used. Another was delayed whilst the safeguarding fix was identified, however temporary lighting remained in place. | AB19: 198 | AC19: 207 | AD19: 456 | AE19: 1286 | AF19: =SUM(AB19:AE19) -> 2147 | AG19: 1720 | AH19: =SUM(AF19-AG19) -> 427 | AI19: Delivered above target partly due to the completion of improvement schemes and delivery of additional works as part of an efficient way of renewing the asset (mainly in Y&NE). | AJ19: 127 | AK19: 10 | AL19: 276 | AM19: 447 | AN19: =SUM(AJ19:AM19) -> 860 | AO19: 750 | AP19: =SUM(AN19-AO19) -> 110 | AQ19: Delivered above target partly due to the completion of improvement schemes and delivery of additional works as part of an efficient way of renewing the asset (mainly in Midlands and NW). | AZ19: 198 | BA19: 9 | BB19: 249 | BC19: 830
B20: Roads - Other | C20: number | D20: 1 | E20: 3 | F20: 9 | G20: 30 | H20: 43 | I20: 0 | J20: 43 | K20: No target. Bespoke road schemes being delivered for required maintenance and asset needs | L20: not in delivery plan | M20: X | N20: X | O20: X | P20: 0 | Q20: not in delivery plan | S20: No Delivery Plan target | T20: Not in Delivery Plan | U20: Not in Delivery Plan | V20: Not in Delivery Plan | W20: Not in Delivery Plan | X20: Not in Delivery Plan | Y20: Not in Delivery Plan | Z20: Not in Delivery Plan | AA20: No Delivery Plan target | AB20: Not in Delivery Plan | AC20: Not in Delivery Plan | AD20: Not in Delivery Plan | AE20: Not in Delivery Plan | AF20: Not in Delivery Plan | AG20: Not in Delivery Plan | AH20: Not in Delivery Plan | AI20: No Delivery Plan target | AJ20: Not in Delivery Plan | AK20: Not in Delivery Plan | AL20: Not in Delivery Plan | AM20: Not in Delivery Plan | AN20: Not in Delivery Plan | AO20: Not in Delivery Plan | AP20: Not in Delivery Plan | AQ20: No Delivery Plan target | AZ20: Not in Delivery Plan
B21: Soft Estate | C21: number | D21: 0 | E21: 1 | F21: 3 | G21: 7 | H21: 11 | I21: 7 | J21: 4 | K21: Delivered close to target | L21: 0 | M21: 0 | N21: 2 | O21: 14 | P21: 16 | Q21: 6 | R21: =P21-Q21 -> 10 | S21: Delivered above target. This is because this target only contains a small number of schemes and additional 10 outputs were achieved against the target of 6 | T21: Not in Delivery Plan | U21: Not in Delivery Plan | V21: Not in Delivery Plan | W21: Not in Delivery Plan | X21: Not in Delivery Plan | Y21: Not in Delivery Plan | Z21: Not in Delivery Plan | AA21: No Delivery Plan target | AB21: Not in Delivery Plan | AC21: Not in Delivery Plan | AD21: Not in Delivery Plan | AE21: Not in Delivery Plan | AF21: Not in Delivery Plan | AG21: Not in Delivery Plan | AH21: Not in Delivery Plan | AI21: No Delivery Plan target | AJ21: Not in Delivery Plan | AK21: Not in Delivery Plan | AL21: Not in Delivery Plan | AM21: Not in Delivery Plan | AN21: Not in Delivery Plan | AO21: Not in Delivery Plan | AP21: Not in Delivery Plan | AQ21: No Delivery Plan target | AZ21: Not in Delivery Plan
A22: Renewal of Structures (RoS) | B22: Bridge Joint | C22: number | D22: 48 | E22: 83 | F22: 164 | G22: 238 | H22: 533 | I22: 222 | J22: 311 | K22: Overachieved linked to some schemes delivering waterproofing | L22: 63 | M22: 91 | N22: 95 | O22: 534 | P22: 783 | Q22: 231 | R22: =P22-Q22 -> 552 | S22: Delivered above target due to some schemes delivering waterproofing in the North West and Midlands including the Birmingham Box. The target of 231 was comprised of 69 schemes. In common with the remainder of the Renewals programme, it is not always possible to go ahead with the schemes planned and valid replacements are sought in order to deliver the target within managing the asset condition on a VFM basis. This may include the extension of some schemes which may, in turn, necessarily delay other planned activity to a later date. When the numbers of schemes in the plan are small the likelihood of finding exact replacements diminish and large variations in the achievement of the target can occur. In the case of works on the M5 (Oldbury) and M6 (Bromford – ‘Spaghetti Junction’) some works were brought forward but the nature of these waterproofing schemes are continuing and large adding almost 400 joints over the target. To a lesser extent this also happened on the M66 in the North West where 32 joints were delivered ahead of schedule. | T22: 79 | U22: 79 | V22: 148 | W22: 192.5 | X22: 498.5 | Y22: 153 | Z22: =SUM(X22-Y22) -> 345.5 | AA22: Delivered above target partly due to the completion of improvement schemes and delivery of additional works as part of an efficient way of renewing the asset. | AB22: 86 | AC22: 257 | AD22: 90 | AE22: 201 | AF22: =SUM(AB22:AE22) -> 634 | AG22: 355 | AH22: =SUM(AF22-AG22) -> 279 | AI22: Delivered above target partly due to the completion of improvement schemes and delivery of additional works as part of an efficient way of renewing the asset. In particular in NW 121 joints were renewed as part of the surface renewal following the Manchest Smart Motorways improvements that was not planned at the beginning of the year. | AJ22: 96 | AK22: 91 | AL22: 93 | AM22: 164 | AN22: =SUM(AJ22:AM22) -> 444 | AO22: 320 | AP22: =SUM(AN22-AO22) -> 124 | AQ22: Delivered above target partly due to the completion of improvement schemes and delivery of additional works as part of an efficient way of renewing the asset. | AZ22: 86 | BA22: 171 | BB22: -167 | BC22: 111
B23: Bridge Bearing | C23: number | D23: 4 | E23: 16 | F23: 6 | G23: 51 | H23: 77 | I23: 214 | J23: -137 | K23: Small number of schemes deliver this output. | L23: 0 | M23: 78 | N23: 28 | O23: 85 | P23: 191 | Q23: 159 | R23: =P23-Q23 -> 32 | S23: There are only a small number of schemes in this target which was exceeded due to one additonal scheme in the North West. | T23: 16 | U23: 0 | V23: 24 | W23: 146 | X23: 186 | Y23: 110 | Z23: =SUM(X23-Y23) -> 76 | AA23: There are only a small number of schemes in this target which was exceeded due to additonal bearing refurbishments works in the East. | AB23: 10 | AC23: 18 | AD23: 10 | AE23: 60 | AF23: =SUM(AB23:AE23) -> 98 | AG23: 192 | AH23: =SUM(AF23-AG23) -> -94 | AI23: We reported after mid-year that the Bridge Bearings target would not be achieved this year. This was because there were only seven schemes in the original target of 192 with 138 planned from the Ouse Bridge scheme alone which was unable to deliver the number planned due to bespoke solutions that needed to be developed on this complex structure. | AJ23: 0 | AK23: 76 | AL23: 62 | AM23: 140 | AN23: =SUM(AJ23:AM23) -> 278 | AO23: 180 | AP23: =SUM(AN23-AO23) -> 98 | AQ23: There were only seven schemes in this target and four of those made up 85% of the delivery. The Ouse Bridge scheme achieved a far better delivery than planned as the bespoke solutions that needed to be developed on this complex structure came to fruition this year and strong progress continued as part of efficient delivery. | AZ23: 10 | BA23: 8 | BB23: -8 | BC23: 50
B24: Parapet | C24: linear metre | D24: 114 | E24: 214 | F24: 271 | G24: 872 | H24: 1471 | I24: 1000 | J24: 471 | K24: Overachieved linked to some schemes delivering waterproofing | L24: 360.5 | M24: 2259 | N24: 694 | O24: 907.6 | P24: 4221.1 | Q24: 2202 | R24: =P24-Q24 -> 2019.1 | S24: Delivered above target mainly due to additional schemes delivered on the M6 and M1 in the the Midlands. | T24: 710.1 | U24: 489.5 | V24: 1012 | W24: 701.4 | X24: 2913 | Y24: 1900 | Z24: =SUM(X24-Y24) -> 1013 | AA24: Delivered above target mainly due to additional schemes delivered on the M6 and M1 in the the Midlands. | AB24: 135 | AC24: 76 | AD24: 713 | AE24: 754 | AF24: =SUM(AB24:AE24) -> 1678 | AG24: 1300 | AH24: =SUM(AF24-AG24) -> 378 | AI24: Delivered above target mainly due to additional deliverey to take advantage of efficient schem delivery. In addition, more on the Oldbury Viaduct in the Midlands and M60 in the North West | AJ24: 15 | AK24: 0 | AL24: 1963 | AM24: 3136 | AN24: =SUM(AJ24:AM24) -> 5114 | AO24: 3400 | AP24: =SUM(AN24-AO24) -> 1714 | AQ24: Delivered above target mainly due to additional deliverey to take advantage of efficient scheme delivery particualy the Blaydon-Haugh bridge in YNE. | AZ24: 135 | BA24: -59 | BB24: 637 | BC24: 41
B25: Waterproofing | C25: square meters | D25: 15773 | E25: 15633 | F25: 5280 | G25: 18951 | H25: 55637 | I25: 20000 | J25: 35637 | K25: Overachieved due to carry over of schemes which delivered large waterproofing outputs | L25: 1471.4 | M25: 10867 | N25: 8163.2 | O25: 14086 | P25: 34587.6 | Q25: 27067 | R25: =P25-Q25 -> 7520.6 | S25: Delivered above target mainly due to significant additional waterproofing outputs on one key Midlands structure M6 Gravelly Hill which takes the majority of traffic into Birmingham Centre or around the Birmingham Box. | T25: 8066 | U25: 4868 | V25: 6757.75 | W25: 18705.17 | X25: 38396.92 | Y25: 29400 | Z25: =SUM(X25-Y25) -> 8996.92 | AA25: Delivered above target mainly due to significant additional waterproofing outputs on one key Midlands structure M5 Oldbury which takes the majority of traffic around the Birmingham Box. | AB25: 33306 | AC25: 27169 | AD25: 12496 | AE25: 39792 | AF25: =SUM(AB25:AE25) -> 112763 | AG25: 118100 | AH25: =SUM(AF25-AG25) -> -5337 | AI25: The Waterproofing target of 118,031 included 31 schemes. Oldbury Viaduct was planned to contribute 79,031 which was more than two-thirds of the target. Waterproofing delivery was impacted by the reprioritising of the Oldbury Viaduct scheme and the weather was such in the final three months of the year work could not be completed as planned leading to the overall shortfall against this target. | AJ25: 38953 | AK25: 27751 | AL25: 21410 | AM25: 1677 | AN25: =SUM(AJ25:AM25) -> 89791 | AO25: 69000 | AP25: =SUM(AN25-AO25) -> 20791 | AQ25: The Oldbury Viaduct delivered more than 60% of the total ouptut and 16k of the total resulted from works delivered in April as part of unplanned carry-over from the prior year. | AZ25: 33306 | BA25: -6137 | BB25: -14673 | BC25: 27296
B26: Vehicle Restraint System - Non Concrete | C26: linear metre | D26: 0 | E26: 0 | F26: 1474 | G26: 3548 | H26: 5022 | I26: 0 | J26: 5022 | K26: No target. Delivered as part of structure schemes | L26: not in delivery plan | M26: not in delivery plan | N26: not in delivery plan | O26: not in delivery plan | P26: not in delivery plan | Q26: not in delivery plan | S26: No Delivery Plan target | T26: Not in Delivery Plan | U26: Not in Delivery Plan | V26: Not in Delivery Plan | W26: Not in Delivery Plan | X26: Not in Delivery Plan | Y26: Not in Delivery Plan | Z26: Not in Delivery Plan | AA26: No Delivery Plan target | AB26: Not in Delivery Plan | AC26: Not in Delivery Plan | AD26: Not in Delivery Plan | AE26: Not in Delivery Plan | AF26: Not in Delivery Plan | AG26: Not in Delivery Plan | AH26: Not in Delivery Plan | AI26: No Delivery Plan target | AJ26: Not in Delivery Plan | AK26: Not in Delivery Plan | AL26: Not in Delivery Plan | AM26: Not in Delivery Plan | AN26: Not in Delivery Plan | AO26: Not in Delivery Plan | AP26: Not in Delivery Plan | AQ26: No Delivery Plan target | AZ26: Not in Delivery Plan
B27: Drainage | C27: linear metre | D27: 177 | E27: 0 | F27: 1076 | G27: 12361 | H27: 13614 | I27: 0 | J27: 13614 | K27: No target. Delivered as part of structure schemes and linked to some schemes delivering waterproofing | L27: not in delivery plan | M27: not in delivery plan | N27: not in delivery plan | O27: not in delivery plan | P27: not in delivery plan | Q27: not in delivery plan | S27: No Delivery Plan target | T27: Not in Delivery Plan | U27: Not in Delivery Plan | V27: Not in Delivery Plan | W27: Not in Delivery Plan | X27: Not in Delivery Plan | Y27: Not in Delivery Plan | Z27: Not in Delivery Plan | AA27: No Delivery Plan target | AB27: Not in Delivery Plan | AC27: Not in Delivery Plan | AD27: Not in Delivery Plan | AE27: Not in Delivery Plan | AF27: Not in Delivery Plan | AG27: Not in Delivery Plan | AH27: Not in Delivery Plan | AI27: No Delivery Plan target | AJ27: Not in Delivery Plan | AK27: Not in Delivery Plan | AL27: Not in Delivery Plan | AM27: Not in Delivery Plan | AN27: Not in Delivery Plan | AO27: Not in Delivery Plan | AP27: Not in Delivery Plan | AQ27: No Delivery Plan target | AZ27: Not in Delivery Plan
B28: Structures - Edge protection | C28: number | D28: 0 | E28: 0 | F28: 1 | G28: 0 | H28: 1 | I28: 0 | J28: 1 | K28: No target | L28: not in delivery plan | M28: not in delivery plan | N28: not in delivery plan | O28: not in delivery plan | P28: not in delivery plan | Q28: not in delivery plan | S28: No Delivery Plan target | T28: Not in Delivery Plan | U28: Not in Delivery Plan | V28: Not in Delivery Plan | W28: Not in Delivery Plan | X28: Not in Delivery Plan | Y28: Not in Delivery Plan | Z28: Not in Delivery Plan | AA28: No Delivery Plan target | AB28: Not in Delivery Plan | AC28: Not in Delivery Plan | AD28: Not in Delivery Plan | AE28: Not in Delivery Plan | AF28: Not in Delivery Plan | AG28: Not in Delivery Plan | AH28: Not in Delivery Plan | AI28: No Delivery Plan target | AJ28: Not in Delivery Plan | AK28: Not in Delivery Plan | AL28: Not in Delivery Plan | AM28: Not in Delivery Plan | AN28: Not in Delivery Plan | AO28: Not in Delivery Plan | AP28: Not in Delivery Plan | AQ28: No Delivery Plan target | AZ28: Not in Delivery Plan
B29: Structures - Other | C29: number | D29: 7 | E29: 25 | F29: 27 | G29: 117 | H29: 176 | I29: 58 | J29: 118 | K29: Overachieved due to bespoke structure schemes being delivered for required maintenance and asset needs | L29: not in delivery plan | M29: not in delivery plan | N29: not in delivery plan | O29: not in delivery plan | P29: not in delivery plan | Q29: not in delivery plan | S29: No Delivery Plan target | T29: Not in Delivery Plan | U29: Not in Delivery Plan | V29: Not in Delivery Plan | W29: Not in Delivery Plan | X29: Not in Delivery Plan | Y29: Not in Delivery Plan | Z29: Not in Delivery Plan | AA29: No Delivery Plan target | AB29: Not in Delivery Plan | AC29: Not in Delivery Plan | AD29: Not in Delivery Plan | AE29: Not in Delivery Plan | AF29: Not in Delivery Plan | AG29: Not in Delivery Plan | AH29: Not in Delivery Plan | AI29: No Delivery Plan target | AJ29: Not in Delivery Plan | AK29: Not in Delivery Plan | AL29: Not in Delivery Plan | AM29: Not in Delivery Plan | AN29: Not in Delivery Plan | AO29: Not in Delivery Plan | AP29: Not in Delivery Plan | AQ29: No Delivery Plan target | AZ29: Not in Delivery Plan
A30: Renewal of Technology (RoT) | B30: Motorway coms equipment | C30: number | D30: 10 | E30: 33 | F30: 43 | G30: 38 | H30: 124 | I30: 100 | J30: 24 | K30: Overdelivery of motorway comms equipment required within the year and response to asset and customer needs | L30: 128 | M30: 184 | N30: 16 | O30: 79 | P30: =SUM(L30:O30) -> 407 | Q30: 96 | R30: =P30-Q30 -> 311 | S30: Motorways comms equipment include treatment of individual control equipment and as such are subject to potential large variation in delivery. | T30: 5 | U30: 109 | V30: 110 | W30: 493 | X30: 717 | Y30: 190 | Z30: =SUM(X30-Y30) -> 527 | AA30: Motorways comms equipment include treatment of individual control equipment and as such are subject to potential large variation in delivery. | AB30: 6 | AC30: 205 | AD30: -103 | AE30: 69 | AF30: =SUM(AB30:AE30) -> 177 | AG30: 157 | AH30: =SUM(AF30-AG30) -> 20 | AI30: Motorways comms equipment include treatment of individual control equipment and as such are subject to potential large variation in delivery. However, we have delivered close to target in 2018/19. | AJ30: 157 | AK30: 48 | AL30: 34 | AM30: 67 | AN30: =SUM(AJ30:AM30) -> 306 | AO30: 160 | AP30: =SUM(AN30-AO30) -> 146 | AQ30: Motorways comms equipment include treatment of individual control equipment and as such are subject to potential large variation in delivery. However, we have delivered close to target in 2019/20. | AZ30: 6 | BA30: 199 | BB30: -308 | BC30: 172
B31: Technology renewals & improvements | C31: number | D31: 8 | E31: 28 | F31: 82 | G31: 227 | H31: 345 | I31: 0 | J31: 345 | K31: No target. Delivery of technology required within the year and response to asset and customer needs | L31: 60 | M31: 323 | N31: 36 | O31: 391 | P31: =SUM(L31:O31) -> 810 | Q31: 256 | R31: =P31-Q31 -> 554 | S31: Technology renewals and improvements include treatment of individual control equipment and as such are subject to potential large variation in delivery. | T31: 35 | U31: 86 | V31: 42 | W31: 207 | X31: 370 | Y31: 160 | Z31: =SUM(X31-Y31) -> 210 | AA31: Technology renewals and improvements include treatment of individual control equipment and as such are subject to potential large variation in delivery. | AB31: 83 | AC31: 151 | AD31: 105 | AE31: 90 | AF31: =SUM(AB31:AE31) -> 429 | AG31: 343 | AH31: =SUM(AF31-AG31) -> 86 | AI31: Technology renewals and improvements include treatment of individual control equipment and as such are subject to potential large variation in delivery. | AJ31: 46 | AK31: 108 | AL31: 199 | AM31: 303 | AN31: =SUM(AJ31:AM31) -> 656 | AO31: 550 | AP31: =SUM(AN31-AO31) -> 106 | AQ31: Technology renewals and improvements include treatment of individual control equipment and as such are subject to potential large variation in delivery. | AZ31: 83 | BA31: 68 | BB31: -46 | BC31: -15
B32: Technology Projects - Economy | C32: number | D32: 0 | E32: 0 | F32: 1 | G32: 35 | H32: 36 | I32: 0 | J32: 36 | K32: No target, delivery of remaining carry over schemes from 14/15 and pinch point schemes | L32: not in delivery plan | M32: not in delivery plan | N32: not in delivery plan | O32: not in delivery plan | P32: not in delivery plan | Q32: not in delivery plan | S32: No Delivery Plan target | T32: Not in Delivery Plan | U32: Not in Delivery Plan | V32: Not in Delivery Plan | W32: Not in Delivery Plan | X32: Not in Delivery Plan | Y32: Not in Delivery Plan | Z32: Not in Delivery Plan | AA32: No Delivery Plan target | AB32: Not in Delivery Plan | AC32: Not in Delivery Plan | AD32: Not in Delivery Plan | AE32: Not in Delivery Plan | AF32: Not in Delivery Plan | AG32: Not in Delivery Plan | AH32: Not in Delivery Plan | AI32: No Delivery Plan target | AJ32: Not in Delivery Plan | AK32: Not in Delivery Plan | AL32: Not in Delivery Plan | AM32: Not in Delivery Plan | AN32: Not in Delivery Plan | AO32: Not in Delivery Plan | AP32: Not in Delivery Plan | AQ32: No Delivery Plan target
B33: Technology Projects -Safety | C33: number | D33: 0 | E33: 0 | F33: 0 | G33: 0 | H33: 0 | I33: 0 | J33: 0 | K33: No target | L33: not in delivery plan | M33: not in delivery plan | N33: not in delivery plan | O33: not in delivery plan | P33: not in delivery plan | Q33: not in delivery plan | S33: No Delivery Plan target | T33: Not in Delivery Plan | U33: Not in Delivery Plan | V33: Not in Delivery Plan | W33: Not in Delivery Plan | X33: Not in Delivery Plan | Y33: Not in Delivery Plan | Z33: Not in Delivery Plan | AA33: No Delivery Plan target | AB33: Not in Delivery Plan | AC33: Not in Delivery Plan | AD33: Not in Delivery Plan | AE33: Not in Delivery Plan | AF33: Not in Delivery Plan | AG33: Not in Delivery Plan | AH33: Not in Delivery Plan | AI33: No Delivery Plan target | AJ33: Not in Delivery Plan | AK33: Not in Delivery Plan | AL33: Not in Delivery Plan | AM33: Not in Delivery Plan | AN33: Not in Delivery Plan | AO33: Not in Delivery Plan | AP33: Not in Delivery Plan | AQ33: No Delivery Plan target
A36: RoR Pavement | B36: Resurfacing | C36: lane miles
B37: Reconstruction | C37: lane miles
A38: Renewal of Roads (RoR) Others | B38: Road Marking | C38: linear metre
B39: Kerbs | C39: linear metre
B40: Vehicle Restraint System (VRS) - Concrete | C40: linear metre
B41: Vehicle Restraint System (VRS) - Non-Concrete | C41: linear metre
B42: Drainage | C42: linear metre
B43: Drainage - other | C43: number
B44: Geotech | C44: linear metre
B45: Traffic Sign (non-electric) | C45: number
B46: Guardrail | C46: linear metre
B47: Boundary Fencing | C47: linear metre
B48: Footway | C48: linear metre
B49: Lighting | C49: number
B50: Roads - Other | C50: number
B51: Soft Estate | C51: number
A52: Renewal of Structures (RoS) | B52: Bridge Joint | C52: number
B53: Bridge Bearing | C53: number
B54: Parapet | C54: linear metre
B55: Waterproofing | C55: square meters
B56: Vehicle Restraint System - Non Concrete | C56: linear metre
B57: Drainage | C57: linear metre
B58: Structures - Edge protection | C58: number
B59: Structures - Other | C59: number
A60: Renewal of Technology (RoT) | B60: Motorway coms equipment | C60: number
B61: Technology renewals & improvements | C61: number
B62: Technology Projects - Economy | C62: number
B63: Technology Projects -Safety | C63: number
A64: * Converted to linear miles ton align with Annual Report

Sheet IP5
A1: IP5: Maintenance Delivery Reporting
A2: Activity | B2: Type | C2: % Completed 24 Hour Priority Defects within the required timescale | D2: % Completed within the required timescale | E2: Commentary
A3: Defects | B3: Paved area defects | C3: 0.906 | D3: 0.8560182173 | E3: There is on-going activity in regions to improve both the quantitative and qualitive aspects of this data. We continue to undertake deep dives, which help us drive change, into regional data and recording of data in our IT systems. *Note - South East and East region data excluded from 24 hour defects data as they transition from ASC to AD contracts
B4: Road Markings and Road Studs defects | C4: 0.935 | D4: 0.773512476
B5: Vehicle Restraint Systems defects | C5: 0.95 | D5: 0.7767071638
B6: Lighting defects | C6: 0.811 | D6: 0.843
B7: Sign defects | C7: 0.89 | D7: 0.8170302604
B8: Soft estate defects (AD Areas) | C8: 0.903 | D8: 0.7577479339
B9: Reactive sweeping and cleaning actions (excluding graffiti) are completed (AD Areas) | C9: 0.969 | D9: 0.9002913564
B10: Sweeping and Cleaning - offensive graffiti | C10: 1 | D10: 0.7833827893
B11: Fences - defects identified related to safety | C11: 0.912 | D11: 0.7935185185
B12: Drainage asset defects (AD Areas) | C12: 0.911 | D12: 0.6949786325
B13: Geotechnical asset defects (AD Areas) | C13: 0.833 | D13: 0.7727272727
B14: Structures defects (AD Areas) | C14: 0.8510638298 | D14: 0.7526427061
A15: Activity | B15: Type | C15: % completed | E15: Commentary
A17: Winter Service | B17: The percentage of precautionary salting delivered within the precautionary salting and turnaround time as stated within the Severe Weather Plan | C17: 0.999 | E17: This represents all areas
B18: Percentage of instances where running lanes were available in accordance with the Service Provider Severe Weather Plan in relation to snow clearance. | C18: 1 | E18: This represents our performance during a mild winter.
A19: Activity | B19: Type | C19: % of total catchment length with a low risk status | E19: Commentary
A21: Drainage | B21: Drainage Performance Indicator | C21: 0.87 | E21: Increased rainfall has resulted in higher numbers of flooding events reported
A22: Activity | B22: Type | C22: % of planned litter clearance completed | E22: Commentary
A24: Litter | B24: Percentage of planned litter clearance activities undertaken in accordance with ASC requirements or the accepted programme set out in ADAMr (AD) | C24: 0.89 | E24: Improvement activity continues to be undertaken in this area
A25: Activity | B25: Type | C25: % of cyclic works completed | E25: Commentary
A27: Cyclical Maintenance (AD Areas only) | B27: Percentage of Cyclic works that are completed within the required timescales | C27: 0.814 | E27: Improvement activity continues to be undertaken in this area
A28: Activity | B28: Type | C28: % of <24hr reactive works completed | E28: Commentary
A30: Reactive Maintenance (AD Areas only) | B30: Percentage of Reactive <24hr works that are completed within the required timescales | C30: 0.88 | E30: Improvement work is continuing in AD areas.
A31: Activity | B31: Type | C31: Total No of claims | E31: Commentary
A33: Red Claims | B33: Total number of claims | C33: 1751 | E33: Highways England have implemented changes to the red claims process, which has seen an increase in the number of red claims reported.
C34: Total No of settled claims
B35: Total number of settled claims | C35: 394
A36: Green Claims | B36: Total number of claims | C36: 3906 | E36: Commentary
C37: Total No of settled claims | E37: Improvement work continues in green claims.
B38: Total number of settled claims | C38: 706
A39: Activity | B39: Type | C39: % of programme completed | E39: Commentary
A41: Planned Asset Condition Inspections | B41: Structures | C41: 0.922 | E41: Represents 9731 inspections carried out against ambitious programme of 10,556 planned inspections. Of these at the end of March 235 were genuinely overdue (outside the 9 month tolerence level) with the majority having been physically completed and awaiting input to the new IAMIS system.
B42: VRS | C42: 0.794 | E42: Improvement work continues in this area. There is pro-active work to ensure all physical inspections undertaken are recorded accurately in the relevant data system.
B43: Lighting | C43: 0.663
B44: Geotech | C44: 0.828
B45: Traffic Signs & Technology | C45: 0.923

Sheet F1
A1: Highways England Performance Monitoring Statements Year end 2019-20
A2: F1: Total income and expenditure
B4: 2014-15 | C4: 2015-16 | D4: 2016-17 | E4: 2017-18 | F4: 2018-19 | G4: 2019-20 | K4: 2015-16 | L4: 2016-17 | M4: 2017-18 | N4: 2018-19 | O4: 2019-20 | P4: Total
B5: Actual | C5: Actual | D5: Actual | E5: Actual | F5: Actual | G5: Actual | H5: Budget | I5: Budget Difference | K5: Baseline | L5: Baseline | M5: Baseline | N5: Baseline | O5: Baseline | P5: Baseline
A6: Resource expenditure
A7: Maintenance (B3) | B7: 233.7153224 | C7: 266.1578113 | D7: 259.6288704 | E7: 259.0133585 | F7: 274.7481216 | G7: 267.075924 | H7: 240.0729395 | I7: -27.00298447 | K7: 255.4189633 | L7: 232.1658198 | M7: 245.1 | N7: 243.3 | O7: 240.0729395 | P7: 1216.057723
A8: Renewals (B4) | B8: 41.685 | C8: 25.03097836 | D8: 10.13038891 | E8: 10.74283556 | F8: 10.74632192 | G8: 12.64752 | H8: 13.5113417 | I8: 0.8638217 | K8: 24.02103666 | L8: 21.83418019 | M8: 16.9 | N8: 13.3 | O8: 13.5113417 | P8: 89.56655855
A9: General operations (B1) | B9: 65.70331336 | C9: 73.78019337 | D9: 67.71785762 | E9: 60.4724612 | F9: 81.40901532 | G9: 121.9341111 | H9: 115.3598767 | I9: -6.57423445 | K9: 73.88343933 | L9: 56.94573387 | M9: 60.5 | N9: 92.9 | O9: 145.3598767 | P9: 429.5890499
A10: Traffic management (B2) | B10: 159.2726661 | C10: 178.8662602 | D10: 108.7816051 | E10: 108.6686115 | F10: 110.7487403 | G10: 95.07363216 | H10: 101.8387066 | I10: 6.76507449 | K10: 179.1165607 | L10: 138.0542661 | M10: 110.3 | N10: 110.3 | O10: 101.8387066 | P10: 639.6095334
A11: Private Finance Initiative (PFI) payments (B5) | B11: 390.647 | C11: 393.51165 | D11: 412.9115325 | E11: 421.4021454 | F11: 383.9373927 | G11: 523.8779727 | H11: 417.9394765 | I11: -105.9384963 | K11: 393.51165 | L11: 416 | M11: 428.5 | N11: 406.3 | O11: 471.4394765 | P11: 2115.751126
A12: Support costs (C1) | B12: 117.2510348 | C12: 131.692522 | D12: 134.572583 | E12: 163.3875949 | F12: 171.5912504 | G12: 198.138098 | H12: 166.0744746 | I12: -32.06362343 | K12: 107 | L12: 142.5 | M12: 158.2 | N12: 149.4 | O12: 173.0744746 | P12: 730.1744746
A13: Other project activities (including Protocols) | B13: 0 | C13: 0.14846766 | D13: 48.7427487 | E13: 57.7965031 | F13: 67.41480651 | G13: 66.29463353 | H13: 70.70318554 | I13: 4.40855201 | K13: 39 | L13: 40 | M13: 62.1 | N13: 80.5 | O13: 70.70318554 | P13: 292.3031855
A14: Total resource expenditure | B14: 1008.274337 | C14: 1069.187883 | D14: 1042.485586 | E14: 1081.48351 | F14: 1100.595649 | G14: 1285.041892 | H14: 1125.500001 | I14: -159.5418904 | K14: 1071.95165 | L14: 1047.5 | M14: 1081.6 | N14: 1096 | O14: 1216.000001 | P14: 5513.051651
A16: Capital expenditure
A17: Renewals | B17: 705.1793397 | C17: 683.8382138 | D17: 626.1529541 | E17: 776.0543313 | F17: 674.1638837 | G17: 733.7606253 | H17: 734.6646601 | I17: 0.90403483 | K17: 642.7843628 | L17: 588.9972811 | M17: 800.6535143 | N17: 744.5610944 | O17: 859.7083537 | P17: 3636.704606
A18: Other Capital Expenditure | B18: 288.4041548 | C18: 267.6992577 | D18: 96.85512486 | E18: 125.7117021 | F18: 186.3586399 | G18: 235.0118239 | H18: 246.4803237 | I18: 11.46849975 | K18: 292.3156372 | L18: -101.6972811 | M18: 225.0464857 | N18: 120.6389056 | O18: 92.99164627 | P18: 629.2953937
A19: SR10 & SR13 Schemes | B19: 864.9089494 | C19: 926.0293343 | D19: 1141.178842 | E19: 1070.130459 | F19: 1236.968507 | G19: 1471.430449 | H19: 1333.326458 | I19: -138.1039911 | K19: 910.8 | L19: 1006.1 | M19: 963 | N19: 1221.1 | O19: 1114.7 | P19: 5215.7
A20: RIS Schemes | B20: 0 | C20: 23.46640172 | D20: 79.15755147 | E20: 173.5790253 | F20: 267.3681529 | G20: 409.3361224 | H20: 417.7871887 | I20: 8.451066288 | K20: 48 | L20: 214 | M20: 163.7 | N20: 416.6 | O20: 809.1 | P20: 1651.4
A21: Feasibility Studies | B21: 0 | C21: 8.1167333 | D21: 28.48528857 | E21: 57.34186944 | F21: 76.69741741 | G21: 90.25326617 | H21: 122.4047139 | I21: 32.1514477 | K21: 6.5 | L21: 39.4 | M21: 52.7 | N21: 69.2 | O21: 113.8 | P21: 281.6
A22: Major Projects Pipeline Schemes | B22: 0 | C22: 0 | D22: 10.98900362 | E22: 4.36867264 | F22: 27.05504321 | G22: 0.39796462 | H22: 11.99898203 | I22: 11.60101741 | K22: 3.6 | L22: 226 | M22: -76 | N22: -120 | O22: 19 | P22: 52.6
A23: Air quality | B23: 0 | C23: 0 | D23: 1.97308452 | E23: 0.68943995 | F23: 6.82831481 | G23: 29.21581364 | H23: 65.46327608 | I23: 36.24746244 | K23: 0 | L23: 5.105574929 | M23: 18.125357 | N23: 18.55517122 | O23: 33.21389685 | P23: 75
A24: Cycling, Safety & Integration | B24: 0 | C24: 16.50595383 | D24: 18.1350974 | E24: 28.87748902 | F24: 48.84303626 | G24: 67.77758691 | H24: 63.71502765 | I24: -4.06255926 | K24: 16.959577 | L24: 16.33783977 | M24: 50.32645818 | N24: 31.55166401 | O24: 59.82446103 | P24: 175
A25: Environment | B25: 0 | C25: 2.60671431 | D25: 13.67458627 | E25: 40.88842442 | F25: 75.36415933 | G25: 97.72753817 | H25: 91.67312859 | I25: -6.05440958 | K25: 6.38904 | L25: 11.74282234 | M25: 69.12964397 | N25: 42.16823144 | O25: 95.57026225 | P25: 225
A26: Innovation Fund | B26: 0 | C26: 2.6840453 | D26: 8.76880654 | E26: 26.814696 | F26: 39.43915263 | G26: 46.0519791 | H26: 42.1944025 | I26: -3.857576596 | K26: 3.801 | L26: 20.01385372 | M26: 28.34795482 | N26: 25.2005016 | O26: 42.63668986 | P26: 120
A27: Supporting Growth Schemes | B27: 0 | C27: 0.06048564 | D27: 5.2168818 | E27: 14.53470937 | F27: 10.41408707 | G27: 49.3134469 | H27: 49.8 | I27: 0.4865531 | K27: 0 | L27: 5.105574929 | M27: 22.64834618 | N27: 18.55517122 | O27: 33.69090767 | P27: 80
A28: Total capital expenditure | B28: 1858.492444 | C28: 1931.008649 | D28: 2030.587221 | E28: 2318.990819 | F28: 2649.500394 | G28: 3230.276617 | H28: 3179.508162 | I28: -50.76845502 | K28: 1931.149617 | L28: 2031.105666 | M28: 2317.67776 | N28: 2588.130739 | O28: 3274.236218 | P28: 12142.3
A29: Total expenditure | B29: 2866.766781 | C29: 3000.196532 | D29: 3073.072807 | E29: 3400.474329 | F29: 3750.096043 | G29: 4515.318508 | H29: 4305.008163 | I29: -210.3103455 | K29: 3003.101267 | L29: 3078.605666 | M29: 3399.27776 | N29: 3684.130739 | O29: 4490.236219 | P29: 17655.35165
A31: Resource Expenditure by Type
A32: Income | B32: -29.98703408 | C32: -31.79866066 | D32: -27.95263899 | E32: -49.47100272 | F32: -41.34736496 | G32: -31.67781855 | H32: -74.14977868 | I32: -42.47196013 | K32: -31.37712234 | L32: -28.125456 | M32: -26.55 | N32: -91.1 | O32: -74.14977868 | P32: -251.302357
A33: Pay | B33: 106.4252008 | C33: 112.854737 | D33: 120.4575388 | E33: 130.2132296 | F33: 149.2320511 | G33: 156.1863043 | H33: 153.3731169 | I33: -2.81318735 | K33: 105.6834011 | L33: 131.1827405 | M33: 136.675 | N33: 143.1 | O33: 153.3731169 | P33: 670.0142585
A34: Non-Pay | B34: 72.27648527 | C34: 76.64297251 | D34: 85.3580269 | E34: -16.48668187 | F34: -29.70570304 | G34: -33.7253815 | H34: -37.83188305 | I34: -4.106501553 | K34: 65.80131842 | L34: 82.5275 | M34: -15 | N34: -37.4 | O34: -37.83188305 | P34: 58.09693536
A35: Projects | B35: 859.5596847 | C35: 911.488834 | D35: 864.6226595 | E35: 1017.231049 | F35: 1022.507987 | G35: 1194.223787 | H35: 1084.108546 | I35: -110.1152414 | K35: 931.8440528 | L35: 861.915 | M35: 986.475 | N35: 1081.4 | O35: 1174.608546 | P35: 5036.242599
A36: Total resource expenditure | B36: 1008.274337 | C36: 1069.187883 | D36: 1042.485586 | E36: 1081.486594 | F36: 1100.68697 | G36: 1285.006892 | H36: 1125.500001 | I36: -159.5068904 | K36: 1071.95165 | L36: 1047.499785 | M36: 1081.6 | N36: 1096 | O36: 1216.000001 | P36: 5513.051436
A38: Commentary:
A39: 15/16 figures restated to remove the impact of provisions creation and utilisation, this increases the renewals expenditure and reduces major projects spend

Sheet F2
A1: Highways England Performance Monitoring Statements Year end 2019-20
A2: Statement F2: Resource income and expenditure
A4: in £m nominal prices unless stated | C4: 2014-15 | D4: 2015-16 | E4: 2016-17 | F4: 2017-18 | G4: 2018-19 | H4: 2019-20 | L4: 2015-16 | M4: 2016-17 | N4: 2017-18 | O4: 2018-19 | P4: 2019-20 | Q4: Total
C5: Actual | D5: Actual | E5: Actual | F5: Actual | G5: Actual | H5: Actual | I5: Budget | J5: Budget Difference | L5: Baseline | M5: Baseline | N5: Baseline | O5: Baseline | P5: Baseline | Q5: Baseline
A6: Maintenance (B3)
A7: Income | B7: Maintenance (B3)Income | C7: -9.986116481 | D7: -11.37230918 | E7: -6.53780292 | F7: -10.22096641 | G7: -9.5859459 | H7: -7.43338084 | I7: -21 | J7: -13.56661916 | L7: -10.91378374 | M7: -8.8600579 | N7: -10.5 | O7: -15.017109 | P7: -21 | Q7: -66.29095064
A8: Pay | B8: Maintenance (B3)Pay | C8: 0 | D8: 0 | E8: 0 | F8: 0 | G8: 0 | H8: 0 | I8: 0 | J8: 0 | L8: 0 | M8: 0 | N8: 0 | O8: 0 | P8: 0 | Q8: 0
A9: Non-Pay | B9: Maintenance (B3)Non-Pay | C9: -8.781080714e-08 | D9: -1e-07 | E9: 0.41152526 | F9: 0.93120296 | G9: 0.27231687 | H9: 0.65845298 | I9: 0 | J9: -0.65845298 | L9: -9.596805333e-08 | M9: 0 | N9: 0 | O9: 0 | P9: 0 | Q9: -9.596805333e-08
A10: Projects | B10: Maintenance (B3)Projects | C10: 243.701439 | D10: 277.5301206 | E10: 265.7551481 | F10: 268.303122 | G10: 284.1530818 | H10: 273.8508518 | I10: 261.0729395 | J10: -12.77791233 | L10: 266.3402542 | M10: 241.1 | N10: 255.5637164 | O10: 258.3040406 | P10: 261.0829395 | Q10: 1282.390951
A11: Subtotal | C11: 233.7153224 | D11: 266.1578113 | E11: 259.6288704 | F11: 259.0133585 | G11: 274.8394528 | H11: 267.075924 | I11: 240.0729395 | J11: -27.00298447 | L11: 255.4264703 | M11: 232.2399421 | N11: 245.0637164 | O11: 243.2869316 | P11: 240.0829395 | Q11: 1216.06
A12: Renewals (B4)
A13: Income | B13: Renewals (B4)Income | C13: 0 | D13: 0 | E13: 0 | F13: 0 | G13: 0 | H13: 0 | I13: 0 | J13: 0 | L13: 0 | M13: 0 | N13: 0 | O13: 0 | P13: 0 | Q13: 0
A14: Pay | B14: Renewals (B4)Pay | C14: 0 | D14: 0 | E14: 0 | F14: 0 | G14: 0 | H14: 0 | I14: 0 | J14: 0 | L14: 0 | M14: 0 | N14: 0 | O14: 0 | P14: 0 | Q14: 0
A15: Non-Pay | B15: Renewals (B4)Non-Pay | C15: 0 | D15: 0 | E15: 0 | F15: 0 | G15: 0 | H15: 0 | I15: 0 | J15: 0 | L15: 0 | M15: 0 | N15: 0 | O15: 0 | P15: 0 | Q15: 0
A16: Projects | B16: Renewals (B4)Projects | C16: 41.685 | D16: 25.03097836 | E16: 10.13038891 | F16: 10.74283556 | G16: 10.74627544 | H16: 12.6482805 | I16: 13.5113417 | J16: 0.8630612 | L16: 24.04626247 | M16: 21.79 | N16: 16.94414862 | O16: 13.29824721 | P16: 13.5213417 | Q16: 89.6
A17: Subtotal | C17: 41.685 | D17: 25.03097836 | E17: 10.13038891 | F17: 10.74283556 | G17: 10.74627544 | H17: 12.6482805 | I17: 13.5113417 | J17: 0.8630612 | L17: 24.04626247 | M17: 21.79 | N17: 16.94414862 | O17: 13.29824721 | P17: 13.5213417 | Q17: 89.57
A18: General operations (B1)
A19: Income | B19: General operations (B1)Income | C19: -7.372191343 | D19: -8.27845165 | E19: -11.67896316 | F19: -26.29368157 | G19: -18.3451079 | H19: -10.34308859 | I19: -41.34603 | J19: -31.00294141 | L19: -8.293707573 | M19: -10 | N19: -5 | O19: -75.359354 | P19: -41.34603 | Q19: -139.9990916
A20: Pay | B20: General operations (B1)Pay | C20: 9.507971472 | D20: 10.67678231 | E20: 15.04978383 | F20: 14.2298971 | G20: 16.18432136 | H20: 18.69979423 | I20: 21.16759454 | J20: 2.46780031 | L20: 10.69645799 | M20: 14.11248492 | N20: 13.742891 | O20: 18.109406 | P20: 21.16759454 | Q20: 77.82883445
A21: Non-Pay | B21: General operations (B1)Non-Pay | C21: 2.301276029 | D21: 2.5841709 | E21: 7.08871198 | F21: 6.78375775 | G21: 6.76884568 | H21: 8.67068881 | I21: 3.80440741 | J21: -4.8662814 | L21: 2.588933133 | M21: 6.555112 | N21: 7.805555363 | O21: -2.94181445 | P21: 3.80040741 | Q21: 17.80819346
A22: Projects | B22: General operations (B1)Projects | C22: 61.2662572 | D22: 68.79769181 | E22: 57.25832497 | F22: 65.75248792 | G22: 76.80095618 | H22: 104.9067167 | I22: 131.7339047 | J22: 26.82718805 | L22: 68.92447546 | M22: 46.24 | N22: 43.98516615 | O22: 153.0785173 | P22: 161.7339047 | Q22: 473.9620637
A23: Subtotal | C23: 65.70331336 | D23: 73.78019337 | E23: 67.71785762 | F23: 60.4724612 | G23: 81.40901532 | H23: 121.9341112 | I23: 115.3598767 | J23: -6.57423445 | L23: 73.91615901 | M23: 56.90759692 | N23: 60.53361251 | O23: 92.88675486 | P23: 145.3558767 | Q23: 429.59
A24: Traffic management (B2)
A25: Income | B25: Traffic management (B2)Income | C25: -4.531043828 | D25: -5.08844916 | E25: -3.36281765 | F25: -5.02971445 | G25: -5.76354725 | H25: -5.88050823 | I25: -5.33120912 | J25: 0.54929911 | L25: -5.09411518 | M25: -4.005093 | N25: -4.963893892 | O25: -4.75337196 | P25: -5.34120912 | Q25: -24.15768315
A26: Pay | B26: Traffic management (B2)Pay | C26: 56.4357286 | D26: 63.3784061 | E26: 60.9082033 | F26: 60.72574627 | G26: 64.96544671 | H26: 67.68598796 | I26: 66.7622117 | J26: -0.92377626 | L26: 63.44897835 | M26: 62.4044677 | N26: 61.939538 | O26: 61.548979 | P26: 66.7522117 | Q26: 316.0941747
A27: Non-Pay | B27: Traffic management (B2)Non-Pay | C27: 14.33424041 | D27: 16.09762702 | E27: 12.58450099 | F27: 11.03053698 | G27: 14.36909786 | H27: 0.69219306 | I27: 11.38744792 | J27: 10.69525486 | L27: 16.11555183 | M27: 16.84547376 | N27: 8.575979542 | O27: 12.78684439 | P27: 11.38744792 | Q27: 65.71129744
A28: Projects | B28: Traffic management (B2)Projects | C28: 93.03374095 | D28: 104.4786762 | E28: 38.65171844 | F28: 41.94204273 | G28: 37.17774294 | H28: 32.57595937 | I28: 29.02025615 | J28: -3.55570322 | L28: 104.5950139 | M28: 62.84522304 | N28: 44.78609496 | O28: 40.71562294 | P28: 29.01025615 | Q28: 281.952211
A29: Subtotal | C29: 159.2726661 | D29: 178.8662602 | E29: 108.7816051 | F29: 108.6686115 | G29: 110.7487403 | H29: 95.07363216 | I29: 101.8387067 | J29: 6.76507449 | L29: 179.0654289 | M29: 138.0900715 | N29: 110.3377186 | O29: 110.2980744 | P29: 101.8087067 | Q29: 639.61
A30: Private Finance Initiative (PFI) payments (B5)
A31: Income | B31: Private Finance Initiative (PFI) payments (B5)Income | C31: 0 | D31: 0 | E31: 0 | F31: 0 | G31: 0 | H31: 0 | I31: 0 | J31: 0 | L31: 0 | M31: 0 | N31: 0 | O31: 0 | P31: 0 | Q31: 0
A32: Pay | B32: Private Finance Initiative (PFI) payments (B5)Pay | C32: 0 | D32: 0 | E32: 0 | F32: 0 | G32: 0 | H32: 0 | I32: 0 | J32: 0 | L32: 0 | M32: 0 | N32: 0 | O32: 0 | P32: 0 | Q32: 0
A33: Non-Pay | B33: Private Finance Initiative (PFI) payments (B5)Non-Pay | C33: 0 | D33: 0 | E33: 0 | F33: 0 | G33: 0 | H33: 0 | I33: 0 | J33: 0 | L33: 0 | M33: 0 | N33: 0 | O33: 0 | P33: 0 | Q33: 0
A34: Projects | B34: Private Finance Initiative (PFI) payments (B5)Projects | C34: 390.647 | D34: 393.51165 | E34: 412.9115325 | F34: 421.4021454 | G34: 383.9373927 | H34: 523.87 | I34: 417.9394764 | J34: -105.9305236 | L34: 393.501034 | M34: 416.04 | N34: 428.5 | O34: 406.2994895 | P34: 471.4594764 | Q34: 2115.8
A35: Subtotal | C35: 390.647 | D35: 393.51165 | E35: 412.9115325 | F35: 421.4021454 | G35: 383.9373927 | H35: 523.87 | I35: 417.9394764 | J35: -105.9305236 | L35: 393.501034 | M35: 416.04 | N35: 428.5 | O35: 406.2994895 | P35: 471.4594764 | Q35: 2115.75
A36: Support costs (C1)
A37: Income | B37: Support costs (C1)Income | C37: -6.280743174 | D37: -7.05432502 | E37: -5.93483881 | F37: -7.12177817 | G37: -6.67466645 | H37: -7.54695758 | I37: -6.18193956 | J37: 1.36501802 | L37: -5.732361559 | M37: -4.89 | N37: -6.151481704 | O37: -4.59096252 | P37: -6.18193956 | Q37: -27.54674534
A38: Pay | B38: Support costs (C1)Pay | C38: 34.54476498 | D38: 38.79954858 | E38: 39.61045575 | F38: 50.38987764 | G38: 57.92806978 | H38: 61.08091259 | I38: 58.13225741 | J38: -2.94865518 | L38: 31.52860694 | M38: 51.64688354 | N38: 55.96422123 | O38: 52.421145 | P38: 58.12225741 | Q38: 249.6831141
A39: Non-Pay | B39: Support costs (C1)Non-Pay | C39: 51.60511477 | D39: 57.96117469 | E39: 65.04380049 | F39: 33.79674372 | G39: 27.80444304 | H39: 38.7298403 | I39: 25.47448663 | J39: -13.25535367 | L39: 47.09939062 | M39: 58.86232741 | N39: 37.29480379 | O39: 25.64147743 | P39: 25.47448663 | Q39: 194.3724859
A40: Projects | B40: Support costs (C1)Projects | C40: 37.38189824 | D40: 41.98612374 | E40: 35.85316557 | F40: 86.3227517 | G40: 92.53340026 | H40: 105.8893027 | I40: 88.64967008 | J40: -17.2396326 | L40: 34.11802562 | M40: 36.84 | N40: 71.10185237 | O40: 75.98159728 | P40: 95.64967008 | Q40: 313.6911453
A41: Subtotal | C41: 117.2510348 | D41: 131.692522 | E41: 134.572583 | F41: 163.3875949 | G41: 171.5912466 | H41: 198.153098 | I41: 166.0744746 | J41: -32.07862343 | L41: 107.0136616 | M41: 142.459211 | N41: 158.2093957 | O41: 149.4532572 | P41: 173.0644746 | Q41: 730.17
A42: Other project activities (including Protocols)
A43: Income | B43: Other project activities (including Protocols)Income | C43: 0 | D43: -0.00512565 | E43: -0.43821645 | F43: -0.80486212 | G43: -0.97809746 | H43: -0.47310781 | I43: -0.2906 | J43: 0.18250781 | L43: -1.347639178 | M43: -0.293256 | N43: 0 | O43: -0.359 | P43: -0.2906 | Q43: -2.290495178
A44: Pay | B44: Other project activities (including Protocols)Pay | C44: 0 | D44: 0 | E44: 4.8890959 | F44: 4.86770856 | G44: 10.15421321 | H44: 8.71960947 | I44: 7.31105325 | J44: -1.40855622 | L44: 0 | M44: 3.01190436 | N44: 5.030952 | O44: 11.019173 | P44: 7.30105325 | Q44: 26.36308261
A45: Non-Pay | B45: Other project activities (including Protocols)Non-Pay | C45: 0 | D45: 0 | E45: 0.22948818 | F45: 0.21682979 | G45: 1.52224663 | H45: 0.29320081 | I45: 1.34109508 | J45: 1.04789427 | L45: 0 | M45: 0.234709 | N45: 0.5116039941 | O45: 0.86657351 | P45: 1.34109508 | Q45: 2.953981584
A46: Projects | B46: Other project activities (including Protocols)Projects | C46: 0 | D46: 0.15359331 | E46: 44.06238107 | F46: 53.51682687 | G46: 56.71644413 | H46: 57.75493106 | I46: 62.34163721 | J46: 4.58670615 | L46: 40.38285135 | M46: 37.04 | N46: 56.517444 | O46: 68.99149842 | P46: 62.34163721 | Q46: 265.273431
A47: Subtotal | C47: 0 | D47: 0.14846766 | E47: 48.7427487 | F47: 57.7965031 | G47: 67.41480651 | H47: 66.29463353 | I47: 70.70318554 | J47: 4.40855201 | L47: 39.03521217 | M47: 39.99335736 | N47: 62.06 | O47: 80.51824493 | P47: 70.69318554 | Q47: 292.3032
A48: Total | C48: 1008.274337 | D48: 1069.187883 | E48: 1042.485586 | F48: 1081.48351 | G48: 1100.68693 | H48: 1285.049679 | I48: 1125.500001 | J48: -159.5496782 | L48: 1072.004228 | M48: 1047.520179 | N48: 1081.648592 | O48: 1096.041 | P48: 1215.986001 | Q48: 5513.0532
A50: Commentary:
A51: The detail in the 15/16 baseline is an apportionment of the total, split in the same proportions as the 15/16 actuals.

Sheet F2.1
A1: Highways England Performance Monitoring Statements Year end 2019-20
A2: Statement F2.1: Regional resource income and expenditure
A4: in £m nominal prices unless stated | C4: 2014-15 | D4: 2015-16 | E4: 2016-17 | F4: 2017-18 | G4: 2018-19 | H4: 2019-20 | L4: 2015-16 | M4: 2016-17 | N4: 2017-18 | O4: 2018-19 | P4: 2019-20 | Q4: Total
C5: Actual | D5: Actual | E5: Actual | F5: Actual | G5: Actual | H5: Actual | I5: Budget | J5: Budget Difference | L5: Baseline | M5: Baseline | N5: Baseline | O5: Baseline | P5: Baseline | Q5: Baseline
A6: Maintenance (B3)
A7: Centrally managed | B7: Maintenance (B3)Centrally managed | C7: X | D7: 44.22497491 | E7: 43.24710415 | F7: 43.12527673 | G7: 47.62608929 | H7: 53.14924024 | I7: 44.573759 | J7: -8.57548124 | L7: 42.44631372 | M7: 35.5979481 | N7: 43.45944342 | O7: 37.25809293 | P7: 44.573759 | Q7: 203.3355572
A8: East | B8: Maintenance (B3)East | C8: X | D8: 28.34334361 | E8: 31.59017578 | F8: 41.63046249 | G8: 33.62274227 | H8: 30.1531367 | I8: 29.25387993 | J8: -0.89925677 | L8: 27.20341746 | M8: 24.58999943 | N8: 28.27278456 | O8: 32.1091161 | P8: 29.25387993 | Q8: 141.4291975
A9: Midlands | B9: Maintenance (B3)Midlands | C9: X | D9: 62.98732041 | E9: 45.76215783 | F9: 54.61670901 | G9: 65.85369581 | H9: 63.07107753 | I9: 50.93461309 | J9: -12.13646444 | L9: 60.45406624 | M9: 47.32162302 | N9: 50.61990241 | O9: 52.47551835 | P9: 50.93461309 | Q9: 261.8057231
A10: North West | B10: Maintenance (B3)North West | C10: X | D10: 29.95142796 | E10: 41.26149098 | F10: 40.97683725 | G10: 36.1164873 | H10: 36.72179627 | I10: 32.28380663 | J10: -4.437989644 | L10: 28.74682711 | M10: 30.21956411 | N10: 34.78141485 | O10: 35.47320874 | P10: 32.28380663 | Q10: 161.5048214
A11: South East | B11: Maintenance (B3)South East | C11: X | D11: 42.25118985 | E11: 35.77233974 | F11: 30.50959203 | G11: 37.9963713 | H11: 36.25602033 | I11: 34.57743696 | J11: -1.67858337 | L11: 40.55191129 | M11: 34.60537527 | N11: 33.49033111 | O11: 37.17174156 | P11: 34.57743696 | Q11: 180.3967962
A12: South West | B12: Maintenance (B3)South West | C12: X | D12: 28.38501638 | E12: 33.66442746 | F12: 24.18242092 | G12: 23.08842731 | H12: 20.91591682 | I12: 20.296384 | J12: -0.61953282 | L12: 27.24341422 | M12: 26.65416592 | N12: 25.23013749 | O12: 19.76814096 | P12: 20.296384 | Q12: 119.1922426
A13: Yorkshire & North East | B13: Maintenance (B3)Yorkshire & North East | C13: X | D13: 30.01453822 | E13: 28.33117447 | F13: 23.97206008 | G13: 30.44430829 | H13: 26.82988094 | I13: 28.15305988 | J13: 1.32317894 | L13: 28.80739917 | M13: 33.21438736 | N13: 29.22970261 | O13: 29.031113 | P13: 28.15305988 | Q13: 148.435662
A14: Subtotal | C14: X | D14: 266.1578113 | E14: 259.6288704 | F14: 259.0133585 | G14: 274.7481216 | H14: 267.0970688 | I14: 240.0729395 | J14: -27.02412934 | L14: 255.4533492 | M14: 232.2030632 | N14: 245.0837165 | O14: 243.2869316 | P14: 240.0729395 | Q14: 1216.06
A15: Renewals (B4)
A16: Centrally managed | B16: Renewals (B4)Centrally managed | C16: X | D16: 0.01961152 | E16: -1e-08 | F16: 0 | G16: 0.08304648 | H16: 0 | I16: 0 | J16: 0 | L16: 0.01881336639 | M16: 4.867639 | N16: 0 | O16: 0 | P16: 0 | Q16: 4.886452366
A17: East | B17: Renewals (B4)East | C17: X | D17: 2.55025737 | E17: 0.87109622 | F17: 0.28607173 | G17: 0.41298789 | H17: 2.28516235 | I17: 1.5405 | J17: -0.74466235 | L17: 2.44646648 | M17: 2.56600018 | N17: 3.3 | O17: 0.105 | P17: 1.5405 | Q17: 9.95796666
A18: Midlands | B18: Renewals (B4)Midlands | C18: X | D18: 6.11980911 | E18: 0.7854234 | F18: 0.23814071 | G18: 0.21045502 | H18: 0.22823036 | I18: 0.425 | J18: 0.19676964 | L18: 5.870743881 | M18: 5.45556008 | N18: 0.35 | O18: 0.35 | P18: 0.425 | Q18: 12.45130396
A19: North West | B19: Renewals (B4)North West | C19: X | D19: 0.88525906 | E19: 0.58371821 | F19: 2.42919562 | G19: 1.50067098 | H19: 1.54000483 | I19: 2.16120108 | J19: 0.62119625 | L19: 0.8492306077 | M19: 0.06 | N19: 2.58729893 | O19: 2.84778341 | P19: 2.16120108 | Q19: 8.505514028
A20: South East | B20: Renewals (B4)South East | C20: X | D20: 1.1395787 | E20: 1.96554712 | F20: 1.73742594 | G20: 2.54432825 | H20: 3.20874037 | I20: 3.2647966 | J20: 0.05605623 | L20: 1.093199896 | M20: 3.5 | N20: 4.59990869 | O20: 3.3382638 | P20: 3.2647966 | Q20: 15.79616899
A21: South West | B21: Renewals (B4)South West | C21: X | D21: 2.88200904 | E21: 2.67412243 | F21: 0.73634714 | G21: 0.82779878 | H21: 2.56731915 | I21: 3.35 | J21: 0.78268085 | L21: 2.764716453 | M21: 2.3 | N21: 0.766941 | O21: 2.5 | P21: 3.35 | Q21: 11.68165745
A22: Yorkshire & North East | B22: Renewals (B4)Yorkshire & North East | C22: X | D22: 11.43445356 | E22: 3.25048154 | F22: 5.31565442 | G22: 5.16703452 | H22: 2.81806294 | I22: 2.76984402 | J22: -0.04821892 | L22: 10.96909186 | M22: 3.09280067 | N22: 5.3 | O22: 4.1892 | P22: 2.76984402 | Q22: 26.32093655
A23: Subtotal | C23: X | D23: 25.03097836 | E23: 10.13038891 | F23: 10.74283556 | G23: 10.74632192 | H23: 12.64752 | I23: 13.5113417 | J23: 0.8638217 | L23: 24.01226254 | M23: 21.84199993 | N23: 16.90414862 | O23: 13.33024721 | P23: 13.5113417 | Q23: 89.57
A24: General operations (B1)
A25: Centrally managed | B25: General operations (B1)Centrally managed | C25: X | D25: 16.68978506 | E25: 14.67501011 | F25: -1.65784186 | G25: 18.08252849 | H25: 46.37616267 | I25: 29.81655317 | J25: -16.5596095 | L25: 16.72362839 | M25: 1.14179046 | N25: -5.275711757 | O25: 25.64714426 | P25: 59.81655317 | Q25: 98.05340452
A26: East | B26: General operations (B1)East | C26: X | D26: 7.41169475 | E26: 7.04101001 | F26: 6.87400556 | G26: 6.57004411 | H26: 9.47810112 | I26: 11.35699072 | J26: 1.8788896 | L26: 7.426724087 | M26: 7.091932583 | N26: 6.250332 | O26: 7.07446 | P26: 11.35699072 | Q26: 39.20043939
A27: Midlands | B27: General operations (B1)Midlands | C27: X | D27: 14.60467332 | E27: 16.81286833 | F27: 15.95304621 | G27: 15.98646433 | H27: 17.57563848 | I27: 22.03846912 | J27: 4.46283064 | L27: 14.63428848 | M27: 20.51414709 | N27: 16.09188 | O27: 17.178194 | P27: 22.03846912 | Q27: 90.4569787
A28: North | D28: 0 | E28: 0 | F28: 0 | G28: 0 | H28: 0.00128528 | I28: 0 | J28: -0.00128528 | L28: 0 | M28: 0 | N28: 0 | O28: 0 | P28: 0 | Q28: 0
A29: South | D29: 0 | E29: 0 | F29: 0 | G29: 0 | H29: 0.14569042 | I29: 0 | J29: -0.14569042 | L29: 0 | M29: 0 | N29: 0 | O29: 0 | P29: 0 | Q29: 0
A30: North West | B30: General operations (B1)North West | C30: X | D30: 7.60666911 | E30: 4.9989547 | F30: 8.01350668 | G30: 8.87744 | H30: 13.40621183 | I30: 14.14180864 | J30: 0.73559681 | L30: 7.622093813 | M30: 4.933441187 | N30: 8.72766592 | O30: 9.18370672 | P30: 14.14180864 | Q30: 44.60871628
A31: South East | B31: General operations (B1)South East | C31: X | D31: 11.86142124 | E31: 9.64635138 | F31: 9.63557757 | G31: 10.24924257 | H31: 11.38509734 | I31: 12.432573 | J31: 1.04747566 | L31: 11.88547367 | M31: 12.06238189 | N31: 9.38423696 | O31: 10.03187688 | P31: 12.432573 | Q31: 55.7965424
A32: South West | B32: General operations (B1)South West | C32: X | D32: 4.45205394 | E32: 5.55084603 | F32: 11.02379563 | G32: 11.72526446 | H32: 13.61881653 | I32: 14.99520072 | J32: 1.37638419 | L32: 4.461081756 | M32: 4.539307013 | N32: 12.77861543 | O32: 13.205496 | P32: 14.99520072 | Q32: 49.97970092
A33: Yorkshire & North East | B33: General operations (B1)Yorkshire & North East | C33: X | D33: 11.15389595 | E33: 8.99281706 | F33: 10.63037141 | G33: 9.91757916 | H33: 9.97813431 | I33: 10.57828133 | J33: 0.60014702 | L33: 11.17651367 | M33: 6.637951831 | N33: 12.57659396 | O33: 10.534877 | P33: 10.57828133 | Q33: 51.50421779
A34: Subtotal | C34: X | D34: 73.78019337 | E34: 67.71785762 | F34: 60.4724612 | G34: 81.40856312 | H34: 121.965138 | I34: 115.3598767 | J34: -6.60526128 | L34: 73.92980387 | M34: 56.92095205 | N34: 60.53361251 | O34: 92.85575486 | P34: 145.3598767 | Q34: 429.59
A35: Traffic management (B2)
A36: Centrally managed | B36: Traffic management (B2)Centrally managed | C36: X | D36: 178.8662602 | E36: 55.7887513 | F36: 53.17867463 | G36: 49.97548079 | H36: 28.93317528 | I36: 39.57771189 | J36: 10.64453661 | L36: 179.0604289 | M36: 85.49061978 | N36: 53.26069761 | O36: 53.34618937 | P36: 39.57771189 | Q36: 410.7356475
A37: East | B37: Traffic management (B2)East | C37: X | D37: 0 | E37: 10.04830476 | F37: 9.94844708 | G37: 10.81520156 | H37: 11.96167304 | I37: 11.16309204 | J37: -0.798581 | L37: 0 | M37: 9.814177995 | N37: 10.49267 | O37: 10.48502 | P37: 11.16309204 | Q37: 41.95496003
A38: Midlands | B38: Traffic management (B2)Midlands | C38: X | D38: 0 | E38: 11.51989152 | F38: 12.92020229 | G38: 13.95950862 | H38: 14.88841866 | I38: 14.24274272 | J38: -0.64567594 | L38: 0 | M38: 11.00640743 | N38: 13.19049 | O38: 13.305943 | P38: 14.24274272 | Q38: 51.74558315
A39: North | D39: 0 | E39: 0 | F39: 0 | G39: 0 | H39: 0.00545259 | I39: 0 | J39: -0.00545259 | L39: 0 | M39: 0 | N39: 0 | O39: 0 | P39: 0 | Q39: 0
A40: North West | B40: Traffic management (B2)North West | C40: X | D40: 0 | E40: 9.35545983 | F40: 9.78152367 | G40: 11.64446181 | H40: 13.6983986 | I40: 11.76120256 | J40: -1.93719604 | L40: 0 | M40: 9.270945249 | N40: 9.845395 | O40: 10.609395 | P40: 11.77120256 | Q40: 41.49693781
A41: South East | B41: Traffic management (B2)South East | C41: X | D41: 0 | E41: 10.75452493 | F41: 11.04598332 | G41: 11.62187709 | H41: 11.7210356 | I41: 12.01493988 | J41: 0.29390428 | L41: 0 | M41: 11.01986152 | N41: 10.9899 | O41: 10.416552 | P41: 12.01493988 | Q41: 44.4412534
A42: South West | B42: Traffic management (B2)South West | C42: X | D42: 0 | E42: 5.26623986 | F42: 5.3023563 | G42: 5.63256312 | H42: 5.74036723 | I42: 5.97792328 | J42: 0.23755605 | L42: 0 | M42: 5.301297962 | N42: 5.538033 | O42: 5.432509 | P42: 5.97792328 | Q42: 22.24976324
A43: Yorkshire & North East | B43: Traffic management (B2)Yorkshire & North East | C43: X | D43: 0 | E43: 6.04843288 | F43: 6.49142424 | G43: 7.09964727 | H43: 8.12511116 | I43: 7.10109428 | J43: -1.02401688 | L43: 0 | M43: 6.17676156 | N43: 7.020533 | O43: 6.677466 | P43: 7.10109428 | Q43: 26.97585484
A44: Subtotal | C44: X | D44: 178.8662602 | E44: 108.7816051 | F44: 108.6686115 | G44: 110.7487403 | H44: 95.07363216 | I44: 101.8387067 | J44: 6.76507449 | L44: 179.0604289 | M44: 138.0800715 | N44: 110.3377186 | O44: 110.2730744 | P44: 101.8487067 | Q44: 639.61
A45: Private Finance Initiative (PFI) payments (B5)
A46: Centrally managed | B46: Private Finance Initiative (PFI) payments (B5)Centrally managed | C46: X | D46: -60.56412366 | E46: -65.03018462 | F46: -69.2326596 | G46: -83.21150928 | H46: -21.52196792 | I46: -80.4915524 | J46: -58.96958448 | L46: -66.57952287 | M46: -63.159956 | N46: -69.23235371 | O46: -80.213144 | P46: -26.9915524 | Q46: -306.176529
A47: East | B47: Private Finance Initiative (PFI) payments (B5)East | C47: X | D47: 56.80448812 | E47: 58.01787374 | F47: 61.17998574 | G47: 60.8399854 | H47: 96.18655754 | I47: 65.34964468 | J47: -30.83691286 | L47: 62.44646974 | M47: 56.75009 | N47: 60.3078784 | O47: 63.708664 | P47: 65.34964468 | Q47: 308.5627468
A48: Midlands | B48: Private Finance Initiative (PFI) payments (B5)Midlands | C48: X | D48: 4.720584182 | E48: 9.20172838 | F48: 9.11748435 | G48: 9.66162701 | H48: 13.02298417 | I48: 10.240827 | J48: -2.78215717 | L48: 5.189445888 | M48: 9.95195796 | N48: 9.20939304 | O48: 9.55537 | P48: 10.250827 | Q48: 44.15699389
A49: North West | B49: Private Finance Initiative (PFI) payments (B5)North West | C49: X | D49: 0 | E49: 0 | F49: 0 | G49: 0 | H49: 0 | I49: 0 | J49: 0 | L49: 0 | M49: 0 | N49: 0 | O49: 0 | P49: 0 | Q49: 0
A50: South East | B50: Private Finance Initiative (PFI) payments (B5)South East | C50: X | D50: 275.4431891 | E50: 282.062502 | F50: 284.4067794 | G50: 281.7951923 | H50: 297.6933074 | I50: 307.285131 | J50: 9.59182359 | L50: 302.8009818 | M50: 281.4558939 | N50: 286.822606 | O50: 300.4382625 | P50: 307.285131 | Q50: 1478.802875
A51: South West | B51: Private Finance Initiative (PFI) payments (B5)South West | C51: X | D51: 27.08232024 | E51: 24.94235346 | F51: 25.9878574 | G51: 25.38376147 | H51: 38.203218 | I51: 27.376764 | J51: -10.826454 | L51: 29.7722125 | M51: 27.851 | N51: 25.52414084 | O51: 26.499713 | P51: 27.366764 | Q51: 137.0138303
A52: Yorkshire & North East | B52: Private Finance Initiative (PFI) payments (B5)Yorkshire & North East | C52: X | D52: 54.49794925 | E52: 103.7172595 | F52: 109.9426981 | G52: 84.01835675 | H52: 100.2938735 | I52: 88.17866217 | J52: -12.11521136 | L52: 59.91083894 | M52: 103.20101 | N52: 115.8697436 | O52: 86.279624 | P52: 88.17886622 | Q52: 453.4400827
A53: Subtotal | C53: X | D53: 357.9844072 | E53: 412.9115325 | F53: 421.4021454 | G53: 378.4874137 | H53: 523.8779727 | I53: 417.9394764 | J53: -105.9384963 | L53: 393.540426 | M53: 416.0499959 | N53: 428.5014081 | O53: 406.2684895 | P53: 471.4396805 | Q53: 2115.75
A54: Support costs (C1)
A55: Centrally managed | B55: Support costs (C1)Centrally managed | C55: X | D55: 131.692522 | E55: 134.7675961 | F55: 161.4000969 | G55: 171.218941 | H55: 178.8689588 | I55: 155.211068 | J55: -23.6578908 | L55: 107.0028726 | M55: 142.46 | N55: 158.2093957 | O55: 149.4332572 | P55: 162.211068 | Q55: 719.3165934
A56: East | B56: Support costs (C1)East | C56: X | D56: 0 | E56: -0.05294839 | F56: 0.00396293 | G56: 0.00104517 | H56: 2.402e-05 | I56: 0 | J56: -2.402e-05 | L56: 0 | M56: 0 | N56: 0 | O56: 0 | P56: 0 | Q56: 0
A57: Midlands | B57: Support costs (C1)Midlands | C57: X | D57: 0 | E57: 0.34447099 | F57: 1.76819405 | G57: 0.15955471 | H57: -0.08942801 | I57: 0 | J57: 0.08942801 | L57: 0 | M57: 0 | N57: 0 | O57: 0 | P57: 0 | Q57: 0
A58: North West | B58: Support costs (C1)North West | C58: X | D58: 0 | E58: -0.47721089 | F58: 0.00188001 | G58: 0.14027742 | H58: 0.38982284 | I58: 0.52125353 | J58: 0.13143069 | L58: 0 | M58: 0 | N58: 0 | O58: 0 | P58: 0.53125353 | Q58: 0.53125353
A59: South East | B59: Support costs (C1)South East | C59: X | D59: 0 | E59: -0.01399022 | F59: 0.05541217 | G59: 0.01359807 | H59: 18.97729154 | I59: 10.34215308 | J59: -8.63513846 | L59: 0 | M59: 0 | N59: 0 | O59: 0 | P59: 10.35215308 | Q59: 10.35215308
A60: South West | B60: Support costs (C1)South West | C60: X | D60: 0 | E60: 0.00163452 | F60: 0.13609787 | G60: 0.04130675 | H60: 0.00062549 | I60: 0 | J60: -0.00062549 | L60: 0 | M60: 0 | N60: 0 | O60: 0 | P60: 0 | Q60: 0
A61: Yorkshire & North East | B61: Support costs (C1)Yorkshire & North East | C61: X | D61: 0 | E61: 0.00303085 | F61: 0.02195093 | G61: 0.01652733 | H61: 0.00734989 | I61: 0 | J61: -0.00734989 | L61: 0 | M61: 0 | N61: 0 | O61: 0 | P61: 0 | Q61: 0
A62: Subtotal | C62: X | D62: 131.692522 | E62: 134.572583 | F62: 163.3875949 | G62: 171.5912504 | H62: 198.1546445 | I62: 166.0744746 | J62: -32.08016996 | L62: 107.0028726 | M62: 142.46 | N62: 158.2093957 | O62: 149.4332572 | P62: 173.0944746 | Q62: 730.17
A63: Other project activities (including Protocols)
A64: Centrally managed | B64: Other project activities (including Protocols)Centrally managed | C64: X | D64: 0.14846969 | E64: 34.29787619 | F64: 45.14329592 | G64: 57.34531296 | H64: 55.86045231 | I64: 60.29074182 | J64: 4.43028951 | L64: 39.02867947 | M64: 28.83996868 | N64: 50.345564 | O64: 70.20660593 | P64: 60.2574182 | Q64: 248.6782363
A65: East | B65: Other project activities (including Protocols)East | C65: X | D65: 3.6e-07 | E65: 0 | F65: 0 | G65: 6.12e-05 | H65: 0 | I65: 0 | J65: 0 | L65: 9.463429611e-05 | M65: 0 | N65: 0 | O65: 0 | P65: 0 | Q65: 9.463429611e-05
A66: Midlands | B66: Other project activities (including Protocols)Midlands | C66: X | D66: -3.15e-06 | E66: 0.049987 | F66: 0.04998 | G66: 0.052 | H66: 0.053709 | I66: 0.053709 | J66: 0 | L66: -0.000828050091 | M66: 0 | N66: 0 | O66: 0.061 | P66: 0.051909 | Q66: 0.1120809499
A67: North West | B67: Other project activities (including Protocols)North West | C67: X | D67: 0 | E67: 0 | F67: 0 | G67: 0 | H67: 0 | I67: 0 | J67: 0 | L67: 0 | M67: 0 | N67: 0 | O67: 0 | P67: 0 | Q67: 0
A68: South East | B68: Other project activities (including Protocols)South East | C68: X | D68: 7.5e-07 | E68: 0.07449382 | F68: 0 | G68: 0 | H68: 0 | I68: 0 | J68: 0 | L68: 0.0001971547836 | M68: 0 | N68: 0 | O68: 0 | P68: 0 | Q68: 0.0001971547836
A69: South West | B69: Other project activities (including Protocols)South West | C69: X | D69: -2.2e-07 | E69: 5.374655 | F69: 3.0737779 | G69: 0.13787068 | H69: 1.08e-05 | I69: 0 | J69: -1.08e-05 | L69: -5.783206984e-05 | M69: 2.58417 | N69: 2.09 | O69: 0.095157 | P69: 0 | Q69: 4.769269168
A70: West Midlands | D70: 0 | E70: 0 | F70: 0 | G70: 0 | H70: 0 | I70: 0 | J70: 0 | L70: 0 | M70: 0 | N70: 0 | O70: 0 | P70: 0 | Q70: 0
A71: Yorkshire & North East | B71: Other project activities (including Protocols)Yorkshire & North East | C71: X | D71: 2.3e-07 | E71: 8.94573669 | F71: 9.5293612 | G71: 9.87956167 | H71: 10.38046142 | I71: 10.35873472 | J71: -0.0217267 | L71: 6.04608003e-05 | M71: 8.51536864 | N71: 9.614476 | O71: 10.161482 | P71: 10.35873472 | Q71: 38.65012182
A72: Subtotal | C72: X | D72: 0.14846766 | E72: 48.7427487 | F72: 57.79641502 | G72: 67.41480651 | H72: 66.29463353 | I72: 70.70318554 | J72: 4.40855201 | L72: 39.02814583 | M72: 39.93950732 | N72: 62.05004 | O72: 80.52424493 | P72: 70.66806192 | Q72: 292.3032
A73: Total | C73: X | D73: 1069.187883 | E73: 1042.485586 | F73: 1081.483422 | G73: 1095.145217 | H73: 1285.01061 | I73: 1125.500001 | J73: -159.5106087 | L73: 1072.027289 | M73: 1047.49559 | N73: 1081.62004 | O73: 1095.972 | P73: 1215.995082 | Q73: 5513.0532
A75: Commentary:
A76: 15/16 PFI split restated - M25 included previously in centrally managed - moved SE to be consistent year on year and to ensure consistency in CRA reporting
A77: The detail in the 15/16 baseline is an apportionment of the total, split in the same proportions as the 15/16 actuals.

Sheet F2.2
A1: Highways England Performance Monitoring Statements Year end 2019-20
A2: Statement F2.2: Maintenance resource income and expenditure
A4: in £m nominal prices unless stated | D4: 2014-15 | E4: 2015-16 | F4: 2016-17 | G4: 2017-18 | H4: 2018-19 | I4: 2019-20 | M4: 2015-16 | N4: 2016-17 | O4: 2017-18 | P4: 2018-19 | Q4: 2019-20 | R4: Total
D5: Actual | E5: Actual | F5: Actual | G5: Actual | H5: Actual | I5: Actual | J5: Budget | K5: Budget Difference | M5: Baseline | N5: Baseline | O5: Baseline | P5: Baseline | Q5: Baseline | R5: Baseline
A6: Income
B7: Income | D7: X | E7: -11.37230918 | F7: -6.53780292 | G7: -10.22096641 | H7: -9.5859459 | I7: -7.43338084 | J7: -21 | K7: -13.56661916 | M7: -10.91378374 | N7: -8.8900579 | O7: -10.5 | P7: -15.027109 | Q7: -21 | R7: -66.33095064
B8: Income Subtotal | D8: X | E8: -11.37230918 | F8: -6.53780292 | G8: -10.22096641 | H8: -9.5859459 | I8: -7.43338084 | J8: -21 | K8: -13.56661916 | M8: -10.91378374 | N8: -8.8900579 | O8: -10.5 | P8: -15.027109 | Q8: -21 | R8: -66.33095064
A9: Pay
B10: Permanent staff salaries | D10: X | E10: 0 | F10: 0 | G10: 0 | H10: 0 | I10: 0 | J10: 0 | K10: 0 | M10: 0 | N10: 0 | O10: 0 | P10: 0 | Q10: 0 | R10: 0
B11: National Insurance | D11: X | E11: 0 | F11: 0 | G11: 0 | H11: 0 | I11: 0 | J11: 0 | K11: 0 | M11: 0 | N11: 0 | O11: 0 | P11: 0 | Q11: 0 | R11: 0
B12: Pension contributions | D12: X | E12: 0 | F12: 0 | G12: 0 | H12: 0 | I12: 0 | J12: 0 | K12: 0 | M12: 0 | N12: 0 | O12: 0 | P12: 0 | Q12: 0 | R12: 0
B13: Employment agency staff costs | D13: X | E13: 0 | F13: 0 | G13: 0 | H13: 0 | I13: 0 | J13: 0 | K13: 0 | M13: 0 | N13: 0 | O13: 0 | P13: 0 | Q13: 0 | R13: 0
B14: Capitalised Pay Costs | D14: X | E14: 0 | F14: 0 | G14: 0 | H14: 0 | I14: 0 | J14: 0 | K14: 0 | M14: 0 | N14: 0 | O14: 0 | P14: 0 | Q14: 0 | R14: 0
B15: Pay Subtotal | D15: X | E15: 0 | F15: 0 | G15: 0 | H15: 0 | I15: 0 | J15: 0 | K15: 0 | M15: 0 | N15: 0 | O15: 0 | P15: 0 | Q15: 0 | R15: 0
A16: Non Pay
B17: Travel and Subsistence | D17: X | E17: 0 | F17: 0 | G17: 0 | H17: 0 | I17: 0 | J17: 0 | K17: 0 | M17: 0 | N17: 0 | O17: 0 | P17: 0 | Q17: 0 | R17: 0
B18: Training and Development | D18: X | E18: 0 | F18: 0 | G18: 0 | H18: 0 | I18: 0 | J18: 0 | K18: 0 | M18: 0 | N18: 0 | O18: 0 | P18: 0 | Q18: 0 | R18: 0
B19: Other Non Pay Costs | D19: X | E19: 0 | F19: 0.41152526 | G19: 0.93120296 | H19: 0.27231687 | I19: 0.65845298 | J19: 0 | K19: -0.65845298 | M19: 0 | N19: 0 | O19: 0 | P19: 0 | Q19: 0 | R19: 0
B20: Non Pay Subtotal | D20: X | E20: 0 | F20: 0.41152526 | G20: 0.93120296 | H20: 0.27231687 | I20: 0.65845298 | J20: 0 | K20: -0.65845298 | M20: 0 | N20: 0 | O20: 0 | P20: 0 | Q20: 0 | R20: 0
A21: Projects
B22: Routine Maintenance | D22: X | E22: 233.4488716 | F22: 227.4490262 | G22: 230.0766003 | H22: 244.8624926 | I22: 237.993723 | J22: 219.0236033 | K22: -18.97011971 | M22: 224.0496943 | N22: 200.223978 | O22: 213.6408093 | P22: 215.450689 | Q22: 219.0236033 | R22: 1072.388774
B23: Winter Maintenance | D23: X | E23: 2.38927569 | F23: 2.52078053 | G23: 2.1581263 | H23: 1.26600142 | I23: 2.1218985 | J23: 5.087734 | K23: 2.9658355 | M23: 2.29307807 | N23: 3.09891994 | O23: 1.566176 | P23: 1.574035 | Q23: 5.087734 | R23: 13.61994301
B24: Technology - Maintenance | D24: X | E24: 36.94666864 | F24: 31.93053232 | G24: 30.28952102 | H24: 31.87322527 | I24: 29.26012109 | J24: 33.91160222 | K24: 4.651481133 | M24: 35.45911255 | N24: 41.54022319 | O24: 36.39398114 | P24: 35.43818169 | Q24: 33.91160222 | R24: 182.7431008
B25: Other | D25: X | E25: 4.74530472 | F25: 3.85480899 | G25: 5.77887431 | H25: 6.15136246 | I25: 4.47510926 | J25: 3.05 | K25: -1.42510926 | M25: 4.554248065 | N25: -3.749 | O25: 3.98275 | P25: 5.841135 | Q25: 3.05 | R25: 13.67913307
B26: Projects Subtotal | D26: X | E26: 277.5301206 | F26: 265.7551481 | G26: 268.303122 | H26: 284.1530818 | I26: 273.8508518 | J26: 261.0729395 | K26: -12.77791233 | M26: 266.356133 | N26: 241.1141211 | O26: 255.5837165 | P26: 258.3040406 | Q26: 261.0729395 | R26: 1282.430951
B27: Total | D27: X | E27: 266.1578114 | F27: 259.6288704 | G27: 259.0133585 | H27: 274.8394528 | I27: 267.075924 | J27: 240.0729395 | K27: -27.00298447 | M27: 255.4423492 | N27: 232.2240632 | O27: 245.0837165 | P27: 243.2769316 | Q27: 240.0729395 | R27: 1216.1
B29: FTEs | D29: X | E29: X | F29: X | G29: X | H29: X | I29: X | J29: X | K29: X | M29: X | N29: X | O29: X | P29: X | Q29: X | R29: X
A31: Segmental Analysis
A32: Income
B33: Centrally Managed | C33: MaintenanceIncomeCentrally Managed | D33: X | E33: -10.56975109 | F33: -5.84174997 | G33: -8.34288415 | H33: -8.02135436 | I33: -2.90937636 | J33: -11.2 | K33: -8.29062364 | M33: -10.14358436 | N33: -8.8900579 | O33: -10.5 | P33: -8.527109 | Q33: -11.2 | R33: -49.26075126
B34: East | C34: MaintenanceIncomeEast | D34: X | E34: -0.48624599 | F34: -0.04504304 | G34: 0.01406463 | H34: -0.02928035 | I34: -0.22991288 | J34: -1.5 | K34: -1.27008712 | M34: -0.466640811 | N34: 0 | O34: 0 | P34: 0 | Q34: -1.5 | R34: -1.966640811
B35: Midlands | C35: MaintenanceIncomeMidlands | D35: X | E35: -0.17994656 | F35: -0.17791591 | G35: 0.05040785 | H35: -0.70686833 | I35: -1.5719407 | J35: -3 | K35: -1.4280593 | M35: -0.1726912107 | N35: 0 | O35: 0 | P35: -2.5 | Q35: -3 | R35: -5.672691211
B36: North West | C36: MaintenanceIncomeNorth West | D36: X | E36: 0 | F36: 0 | G36: 0 | H36: 0 | I36: -0.69670155 | J36: -1 | K36: -0.30329845 | M36: 0 | N36: 0 | O36: 0 | P36: -1 | Q36: -1 | R36: -2
B37: South East | C37: MaintenanceIncomeSouth East | D37: X | E37: -0.08346075 | F37: -0.47055124 | G37: -1.9436375 | H37: -0.41703574 | I37: -0.83042666 | J37: -1.9 | K37: -1.06957334 | M37: -0.08009565707 | N37: 0 | O37: 0 | P37: 0 | Q37: -1.9 | R37: -1.980095657
B38: South West | C38: MaintenanceIncomeSouth West | D38: X | E38: 0 | F38: -0.00254276 | G38: 0.00108276 | H38: -0.34103547 | I38: -0.54184561 | J38: -0.9 | K38: -0.35815439 | M38: 0 | N38: 0 | O38: 0 | P38: -2 | Q38: -0.9 | R38: -2.9
B39: Yorkshire & North East | C39: MaintenanceIncomeYorkshire & North East | D39: X | E39: -0.05290479 | F39: 0 | G39: 0 | H39: -0.07037165 | I39: -0.65317708 | J39: -1.5 | K39: -0.84682292 | M39: -0.05077169708 | N39: 0 | O39: 0 | P39: -1 | Q39: -1.5 | R39: -2.550771697
B40: Income Subtotal | D40: X | E40: -11.37230918 | F40: -6.53780292 | G40: -10.22096641 | H40: -9.5859459 | I40: -7.43338084 | J40: -21 | K40: -13.56661916 | M40: -10.91378374 | N40: -8.8900579 | O40: -10.5 | P40: -15.027109 | Q40: -21 | R40: -66.33095064
A41: Pay
B42: Centrally Managed | C42: MaintenancePayCentrally Managed | D42: X | E42: 0 | F42: 0 | G42: 0 | H42: 0 | I42: 0 | J42: 0 | K42: 0 | M42: 0 | N42: 0 | O42: 0 | P42: 0 | Q42: 0 | R42: 0
B43: East | C43: MaintenancePayEast | D43: X | E43: 0 | F43: 0 | G43: 0 | H43: 0 | I43: 0 | J43: 0 | K43: 0 | M43: 0 | N43: 0 | O43: 0 | P43: 0 | Q43: 0 | R43: 0
B44: Midlands | C44: MaintenancePayMidlands | D44: X | E44: 0 | F44: 0 | G44: 0 | H44: 0 | I44: 0 | J44: 0 | K44: 0 | M44: 0 | N44: 0 | O44: 0 | P44: 0 | Q44: 0 | R44: 0
B45: North West | C45: MaintenancePayNorth West | D45: X | E45: 0 | F45: 0 | G45: 0 | H45: 0 | I45: 0 | J45: 0 | K45: 0 | M45: 0 | N45: 0 | O45: 0 | P45: 0 | Q45: 0 | R45: 0
B46: South East | C46: MaintenancePaySouth East | D46: X | E46: 0 | F46: 0 | G46: 0 | H46: 0 | I46: 0 | J46: 0 | K46: 0 | M46: 0 | N46: 0 | O46: 0 | P46: 0 | Q46: 0 | R46: 0
B47: South West | C47: MaintenancePaySouth West | D47: X | E47: 0 | F47: 0 | G47: 0 | H47: 0 | I47: 0 | J47: 0 | K47: 0 | M47: 0 | N47: 0 | O47: 0 | P47: 0 | Q47: 0 | R47: 0
B48: Yorkshire & North East | C48: MaintenancePayYorkshire & North East | D48: X | E48: 0 | F48: 0 | G48: 0 | H48: 0 | I48: 0 | J48: 0 | K48: 0 | M48: 0 | N48: 0 | O48: 0 | P48: 0 | Q48: 0 | R48: 0
B49: Pay Subtotal | D49: X | E49: 0 | F49: 0 | G49: 0 | H49: 0 | I49: 0 | J49: 0 | K49: 0 | M49: 0 | N49: 0 | O49: 0 | P49: 0 | Q49: 0 | R49: 0
A50: Non Pay
B51: Centrally Managed | C51: MaintenanceNon PayCentrally Managed | D51: X | E51: 0 | F51: 0 | G51: 0 | H51: 0 | I51: 0 | J51: 0 | K51: 0 | M51: 0 | N51: 0 | O51: 0 | P51: 0 | Q51: 0 | R51: 0
B52: East | C52: MaintenanceNon PayEast | D52: X | E52: 0 | F52: 0 | G52: 0 | H52: 0 | I52: 0 | J52: 0 | K52: 0 | M52: 0 | N52: 0 | O52: 0 | P52: 0 | Q52: 0 | R52: 0
B53: Midlands | C53: MaintenanceNon PayMidlands | D53: X | E53: 0 | F53: 0.41152466 | G53: 0.23542313 | H53: -0.21708601 | I53: 0.13483435 | J53: 0 | K53: -0.13483435 | M53: 0 | N53: 0 | O53: 0 | P53: 0 | Q53: 0 | R53: 0
B54: North West | C54: MaintenanceNon PayNorth West | D54: X | E54: 0 | F54: 0 | G54: 0.16069154 | H54: 0.12034724 | I54: 0.16295032 | J54: 0 | K54: -0.16295032 | M54: 0 | N54: 0 | O54: 0 | P54: 0 | Q54: 0 | R54: 0
B55: South East | C55: MaintenanceNon PaySouth East | D55: X | E55: 0 | F55: 0 | G55: 0 | H55: 0 | I55: 0 | J55: 0 | K55: 0 | M55: 0 | N55: 0 | O55: 0 | P55: 0 | Q55: 0 | R55: 0
B56: South West | C56: MaintenanceNon PaySouth West | D56: X | E56: 0 | F56: 0 | G56: 0.33316677 | H56: 0.25009384 | I56: 0.21181793 | J56: 0 | K56: -0.21181793 | M56: 0 | N56: 0 | O56: 0 | P56: 0 | Q56: 0 | R56: 0
B57: Yorkshire & North East | C57: MaintenancePayYorkshire & North East | D57: X | E57: 0 | F57: 6e-07 | G57: 0.20192152 | H57: 0.1189618 | I57: 0.13973612 | J57: 0 | K57: -0.13973612 | M57: 0 | N57: 0 | O57: 0 | P57: 0 | Q57: 0 | R57: 0
B58: Non Pay Subtotal | D58: X | E58: 0 | F58: 0.41152526 | G58: 0.93120296 | H58: 0.27231687 | I58: 0.64933872 | J58: 0 | K58: -0.64933872 | M58: 0 | N58: 0 | O58: 0 | P58: 0 | Q58: 0 | R58: 0
A59: Projects
B60: Centrally Managed | C60: MaintenanceProjectsCentrally Managed | D60: X | E60: 54.7947261 | F60: 49.08885412 | G60: 51.46816088 | H60: 55.73877485 | I60: 56.0586166 | J60: 55.773759 | K60: -0.2848576 | M60: 52.58308557 | N60: 44.439006 | O60: 53.95944342 | P60: 45.78520193 | Q60: 55.773759 | R60: 252.5404959
B61: East | C61: MaintenanceProjectsEast | D61: X | E61: 28.8295896 | F61: 31.63521882 | G61: 41.61639786 | H61: 33.65202262 | I61: 30.37393532 | J61: 30.75387993 | K61: 0.37994461 | M61: 27.66569214 | N61: 24.59999943 | O61: 28.27278456 | P61: 32.1091161 | Q61: 30.75387993 | R61: 143.4014722
B62: Midlands | C62: MaintenanceProjectsMidlands | D62: X | E62: 63.16726697 | F62: 45.52854908 | G62: 54.33087803 | H62: 66.77765015 | I62: 64.50818388 | J62: 53.93461309 | K62: -10.57357079 | M62: 60.61705461 | N62: 47.32162302 | O62: 50.61990241 | P62: 54.97551835 | Q62: 53.93461309 | R62: 267.4687115
B63: North West | C63: MaintenanceProjectsNorth West | D63: X | E63: 29.95142796 | F63: 41.26149098 | G63: 40.81614571 | H63: 35.99614006 | I63: 37.2555475 | J63: 33.28380663 | K63: -3.971740874 | M63: 28.74221326 | N63: 30.22956411 | O63: 34.78141485 | P63: 36.46320874 | Q63: 33.28380663 | R63: 163.5002076
B64: South East | C64: MaintenanceProjectsSouth East | D64: X | E64: 42.3346506 | F64: 36.24289098 | G64: 32.45322953 | H64: 38.41340704 | I64: 37.06530212 | J64: 36.47743696 | K64: -0.58786516 | M64: 40.6254984 | N64: 34.64537527 | O64: 33.49033111 | P64: 37.17174156 | Q64: 36.47743696 | R64: 182.4103833
B65: South West | C65: MaintenanceProjectsSouth West | D65: X | E65: 28.38501638 | F65: 33.66697022 | G65: 23.84817139 | H65: 23.17936894 | I65: 21.2459445 | J65: 21.196384 | K65: -0.0495605 | M65: 27.23904167 | N65: 26.69416592 | O65: 25.23013749 | P65: 21.76814096 | Q65: 21.196384 | R65: 122.12787
B66: Yorkshire & North East | C66: MaintenanceProjectsYorkshire & North East | D66: X | E66: 30.06744301 | F66: 28.33117387 | G66: 23.77013856 | H66: 30.39571814 | I66: 27.3433219 | J66: 29.65305988 | K66: 2.30973798 | M66: 28.8535473 | N66: 33.21438736 | O66: 29.22970261 | P66: 30.031113 | Q66: 29.65305988 | R66: 150.9818101
B67: Projects Subtotal | D67: X | E67: 277.5301206 | F67: 265.7551481 | G67: 268.303122 | H67: 284.1530818 | I67: 273.8508518 | J67: 261.0729395 | K67: -12.77791233 | M67: 266.326133 | N67: 241.1441211 | O67: 255.5837164 | P67: 258.3040406 | Q67: 261.0729395 | R67: 1282.430951
A68: Totals
B69: Centrally Managed | C69: MaintenanceTotalsCentrally Managed | D69: X | E69: 44.22497501 | F69: 43.24710415 | G69: 43.12527673 | H69: 47.71742049 | I69: 53.14924024 | J69: 44.573759 | K69: -8.57548124 | M69: 42.43950121 | N69: 35.5489481 | O69: 43.45944342 | P69: 37.25809293 | Q69: 44.573759 | R69: 203.2797447
B70: East | C70: MaintenanceTotalsEast | D70: X | E70: 28.34334361 | F70: 31.59017578 | G70: 41.63046249 | H70: 33.62274227 | I70: 30.14402244 | J70: 29.25387993 | K70: -0.89014251 | M70: 27.19905133 | N70: 24.59999943 | O70: 28.27278456 | P70: 32.1091161 | Q70: 29.25387993 | R70: 141.4348314
B71: Midlands | C71: MaintenanceTotalsMidlands | D71: X | E71: 62.98732041 | F71: 45.76215783 | G71: 54.61670901 | H71: 65.85369581 | I71: 63.07107753 | J71: 50.93461309 | K71: -12.13646444 | M71: 60.4443634 | N71: 47.32162302 | O71: 50.61990241 | P71: 52.47551835 | Q71: 50.93461309 | R71: 261.7960203
B72: North West | C72: MaintenanceTotalsNorth West | D72: X | E72: 29.95142796 | F72: 41.26149098 | G72: 40.97683725 | H72: 36.1164873 | I72: 36.72179627 | J72: 32.28380663 | K72: -4.437989644 | M72: 28.74221326 | N72: 30.22956411 | O72: 34.78141485 | P72: 35.46320874 | Q72: 32.28380663 | R72: 161.5002076
B73: South East | C73: MaintenanceTotalsSouth East | D73: X | E73: 42.25118985 | F73: 35.77233974 | G73: 30.50959203 | H73: 37.9963713 | I73: 36.23487546 | J73: 34.57743696 | K73: -1.6574385 | M73: 40.54540274 | N73: 34.64537527 | O73: 33.49033111 | P73: 37.17174156 | Q73: 34.57743696 | R73: 180.4302876
B74: South West | C74: MaintenanceTotalsSouth West | D74: X | E74: 28.38501638 | F74: 33.66442746 | G74: 24.18242092 | H74: 23.08842731 | I74: 20.91591682 | J74: 20.296384 | K74: -0.61953282 | M74: 27.23904167 | N74: 26.69416592 | O74: 25.23013749 | P74: 19.76814096 | Q74: 20.296384 | R74: 119.22787
B75: Yorkshire & North East | C75: MaintenanceTotalsYorkshire & North East | D75: X | E75: 30.01453822 | F75: 28.33117447 | G75: 23.97206008 | H75: 30.44430829 | I75: 26.82988094 | J75: 28.15305988 | K75: 1.32317894 | M75: 28.8027756 | N75: 33.21438736 | O75: 29.22970261 | P75: 29.031113 | Q75: 28.15305988 | R75: 148.4310385
B76: Grand Total | D76: X | E76: 266.1578114 | F76: 259.6288704 | G76: 259.0133585 | H76: 274.8394528 | I76: 267.0668097 | J76: 240.0729395 | K76: -26.99387021 | M76: 255.4123492 | N76: 232.2540632 | O76: 245.0837164 | P76: 243.2769316 | Q76: 240.0729395 | R76: 1216.1
A79: Commentary:
A80: The detail in the 15/16 baseline is an apportionment of the total, split in the same proportions as the 15/16 actuals.

Sheet F2.3
A1: Highways England Performance Monitoring Statements Year end 2019-20
A2: Statement F2.3: Renewals resource income and expenditure
A4: in £m nominal prices unless stated | D4: 2014-15 | E4: 2015-16 | F4: 2016-17 | G4: 2017-18 | H4: 2018-19 | I4: 2019-20 | M4: 2015-16 | N4: 2016-17 | O4: 2017-18 | P4: 2018-19 | Q4: 2019-20 | R4: Total
D5: Actual | E5: Actual | F5: Actual | G5: Actual | H5: Actual | I5: Actual | J5: Budget | K5: Budget Difference | M5: Baseline | N5: Baseline | O5: Baseline | P5: Baseline | Q5: Baseline | R5: Baseline
A6: Income
B7: Income | D7: X | E7: 0 | F7: 0 | G7: 0 | H7: 0 | I7: 0 | J7: 0 | K7: 0 | M7: 0 | N7: 0 | O7: 0 | P7: 0 | Q7: 0 | R7: X
B8: Income Subtotal | D8: X | E8: 0 | F8: 0 | G8: 0 | H8: 0 | I8: 0 | J8: 0 | K8: 0 | M8: 0 | N8: 0 | O8: 0 | P8: 0 | Q8: 0 | R8: X
A9: Pay
B10: Permanent staff salaries | D10: X | E10: 0 | F10: 0 | G10: 0 | H10: 0 | I10: 0 | J10: 0 | K10: 0 | M10: 0 | N10: 0 | O10: 0 | P10: 0 | Q10: 0 | R10: X
B11: National Insurance | D11: X | E11: 0 | F11: 0 | G11: 0 | H11: 0 | I11: 0 | J11: 0 | K11: 0 | M11: 0 | N11: 0 | O11: 0 | P11: 0 | Q11: 0 | R11: X
B12: Pension contributions | D12: X | E12: 0 | F12: 0 | G12: 0 | H12: 0 | I12: 0 | J12: 0 | K12: 0 | M12: 0 | N12: 0 | O12: 0 | P12: 0 | Q12: 0 | R12: X
B13: Employment agency staff costs | D13: X | E13: 0 | F13: 0 | G13: 0 | H13: 0 | I13: 0 | J13: 0 | K13: 0 | M13: 0 | N13: 0 | O13: 0 | P13: 0 | Q13: 0 | R13: X
B14: Capitalised Pay Costs | D14: X | E14: 0 | F14: 0 | G14: 0 | H14: 0 | I14: 0 | J14: 0 | K14: 0 | M14: 0 | N14: 0 | O14: 0 | P14: 0 | Q14: 0 | R14: X
B15: Pay Subtotal | D15: X | E15: 0 | F15: 0 | G15: 0 | H15: 0 | I15: 0 | J15: 0 | K15: 0 | M15: 0 | N15: 0 | O15: 0 | P15: 0 | Q15: 0 | R15: X
A16: Non Pay
B17: Travel and Subsistence | D17: X | E17: 0 | F17: 0 | G17: 0 | H17: 0 | I17: 0 | J17: 0 | K17: 0 | M17: 0 | N17: 0 | O17: 0 | P17: 0 | Q17: 0 | R17: X
B18: Training and Development | D18: X | E18: 0 | F18: 0 | G18: 0 | H18: 0 | I18: 0 | J18: 0 | K18: 0 | M18: 0 | N18: 0 | O18: 0 | P18: 0 | Q18: 0 | R18: X
B19: Other Non Pay Costs | D19: X | E19: 0 | F19: 0 | G19: 0 | H19: 0 | I19: 0 | J19: 0 | K19: 0 | M19: 0 | N19: 0 | O19: 0 | P19: 0 | Q19: 0 | R19: X
B20: Non Pay Subtotal | D20: X | E20: 0 | F20: 0 | G20: 0 | H20: 0 | I20: 0 | J20: 0 | K20: 0 | M20: 0 | N20: 0 | O20: 0 | P20: 0 | Q20: 0 | R20: X
A21: Projects
B22: Renewal of Roads - Non TPI | D22: X | E22: 8.86254461 | F22: 6.58251104 | G22: 6.58251104 | H22: 5.8294367 | I22: 4.18277471 | J22: 3.80100902 | K22: -0.38176569 | M22: 8.513539058 | N22: 7.67905079 | O22: 9.14756957 | P22: 5.04514448 | Q22: 3.80100902 | R22: 34.18631292
B23: Renewal of Structures - Non TPI | D23: X | E23: 11.36914624 | F23: 3.53338676 | G23: 3.53338676 | H23: 4.65175222 | I23: 8.46550579 | J23: 9.71033268 | K23: 1.24482689 | M23: 10.92143113 | N23: 11.82994914 | O23: 7.75657905 | P23: 8.24510273 | Q23: 9.71033268 | R23: 48.46339473
B24: Renewal of Technology | D24: X | E24: 0.06964086 | F24: 0.01449111 | G24: 0.01449111 | H24: 0 | I24: 0 | J24: 0 | K24: 0 | M24: 0.06689841436 | N24: 0 | O24: 0 | P24: 0 | Q24: 0 | R24: 0.06689841436
B25: Other | D25: X | E25: 4.72964665 | F25: 0 | G25: 0 | H25: 0.26508652 | I25: 0 | J25: 0 | K25: 0 | M25: 4.543393941 | N25: 2.34 | O25: 0 | P25: 0 | Q25: 0 | R25: 6.883393941
B26: Projects Subtotal | D26: X | E26: 25.03097836 | F26: 10.13038891 | G26: 10.13038891 | H26: 10.74627544 | I26: 12.6482805 | J26: 13.5113417 | K26: 0.8630612 | M26: 24.04526254 | N26: 21.84899993 | O26: 16.90414862 | P26: 13.29024721 | Q26: 13.5113417 | R26: 89.6
B27: Total | D27: X | E27: 25.03097836 | F27: 10.13038891 | G27: 10.13038891 | H27: 10.74627544 | I27: 12.6482805 | J27: 13.5113417 | K27: 0.8630612 | M27: 24.04526254 | N27: 21.84899993 | O27: 16.90414862 | P27: 13.29024721 | Q27: 13.5113417 | R27: 89.6
B29: FTEs | D29: X | E29: X | F29: X | G29: X | H29: X | I29: X | J29: X | K29: X | M29: X | N29: X | O29: X | P29: X | Q29: X | R29: X
A31: Segmental Analysis
A32: Income
B33: Centrally Managed | C33: RenewalsIncomeCentrally Managed | D33: X | E33: 0 | F33: 0 | G33: 0 | H33: 0 | I33: 0 | J33: 0 | K33: 0 | M33: 0 | N33: 0 | O33: 0 | P33: 0 | Q33: 0 | R33: 0
B34: East | C34: RenewalsIncomeEast | D34: X | E34: 0 | F34: 0 | G34: 0 | H34: 0 | I34: 0 | J34: 0 | K34: 0 | M34: 0 | N34: 0 | O34: 0 | P34: 0 | Q34: 0 | R34: 0
B35: Midlands | C35: RenewalsIncomeMidlands | D35: X | E35: 0 | F35: 0 | G35: 0 | H35: 0 | I35: 0 | J35: 0 | K35: 0 | M35: 0 | N35: 0 | O35: 0 | P35: 0 | Q35: 0 | R35: 0
B36: North West | C36: RenewalsIncomeNorth West | D36: X | E36: 0 | F36: 0 | G36: 0 | H36: 0 | I36: 0 | J36: 0 | K36: 0 | M36: 0 | N36: 0 | O36: 0 | P36: 0 | Q36: 0 | R36: 0
B37: South East | C37: RenewalsIncomeSouth East | D37: X | E37: 0 | F37: 0 | G37: 0 | H37: 0 | I37: 0 | J37: 0 | K37: 0 | M37: 0 | N37: 0 | O37: 0 | P37: 0 | Q37: 0 | R37: 0
B38: South West | C38: RenewalsIncomeSouth West | D38: X | E38: 0 | F38: 0 | G38: 0 | H38: 0 | I38: 0 | J38: 0 | K38: 0 | M38: 0 | N38: 0 | O38: 0 | P38: 0 | Q38: 0 | R38: 0
B39: Yorkshire & North East | C39: RenewalsIncomeYorkshire & North East | D39: X | E39: 0 | F39: 0 | G39: 0 | H39: 0 | I39: 0 | J39: 0 | K39: 0 | M39: 0 | N39: 0 | O39: 0 | P39: 0 | Q39: 0 | R39: 0
B40: Income Subtotal | D40: X | E40: 0 | F40: 0 | G40: 0 | H40: 0 | I40: 0 | J40: 0 | K40: 0 | M40: 0 | N40: 0 | O40: 0 | P40: 0 | Q40: 0 | R40: 0
A41: Pay
B42: Centrally Managed | C42: RenewalsPayCentrally Managed | D42: X | E42: 0 | F42: 0 | G42: 0 | H42: 0 | I42: 0 | J42: 0 | K42: 0 | M42: 0 | N42: 0 | O42: 0 | P42: 0 | Q42: 0 | R42: 0
B43: East | C43: RenewalsPayEast | D43: X | E43: 0 | F43: 0 | G43: 0 | H43: 0 | I43: 0 | J43: 0 | K43: 0 | M43: 0 | N43: 0 | O43: 0 | P43: 0 | Q43: 0 | R43: 0
B44: Midlands | C44: RenewalsPayMidlands | D44: X | E44: 0 | F44: 0 | G44: 0 | H44: 0 | I44: 0 | J44: 0 | K44: 0 | M44: 0 | N44: 0 | O44: 0 | P44: 0 | Q44: 0 | R44: 0
B45: North West | C45: RenewalsPayNorth West | D45: X | E45: 0 | F45: 0 | G45: 0 | H45: 0 | I45: 0 | J45: 0 | K45: 0 | M45: 0 | N45: 0 | O45: 0 | P45: 0 | Q45: 0 | R45: 0
B46: South East | C46: RenewalsPaySouth East | D46: X | E46: 0 | F46: 0 | G46: 0 | H46: 0 | I46: 0 | J46: 0 | K46: 0 | M46: 0 | N46: 0 | O46: 0 | P46: 0 | Q46: 0 | R46: 0
B47: South West | C47: RenewalsPaySouth West | D47: X | E47: 0 | F47: 0 | G47: 0 | H47: 0 | I47: 0 | J47: 0 | K47: 0 | M47: 0 | N47: 0 | O47: 0 | P47: 0 | Q47: 0 | R47: 0
B48: Yorkshire & North East | C48: RenewalsPayYorkshire & North East | D48: X | E48: 0 | F48: 0 | G48: 0 | H48: 0 | I48: 0 | J48: 0 | K48: 0 | M48: 0 | N48: 0 | O48: 0 | P48: 0 | Q48: 0 | R48: 0
B49: Pay Subtotal | D49: X | E49: 0 | F49: 0 | G49: 0 | H49: 0 | I49: 0 | J49: 0 | K49: 0 | M49: 0 | N49: 0 | O49: 0 | P49: 0 | Q49: 0 | R49: 0
A50: Non Pay
B51: Centrally Managed | C51: RenewalsNon PayCentrally Managed | D51: X | E51: 0 | F51: 0 | G51: 0 | H51: 0 | I51: 0 | J51: 0 | K51: 0 | M51: 0 | N51: 0 | O51: 0 | P51: 0 | Q51: 0 | R51: 0
B52: East | C52: RenewalsNon PayEast | D52: X | E52: 0 | F52: 0 | G52: 0 | H52: 0 | I52: 0 | J52: 0 | K52: 0 | M52: 0 | N52: 0 | O52: 0 | P52: 0 | Q52: 0 | R52: 0
B53: Midlands | C53: RenewalsNon PayMidlands | D53: X | E53: 0 | F53: 0 | G53: 0 | H53: 0 | I53: 0 | J53: 0 | K53: 0 | M53: 0 | N53: 0 | O53: 0 | P53: 0 | Q53: 0 | R53: 0
B54: North West | C54: RenewalsNon PayNorth West | D54: X | E54: 0 | F54: 0 | G54: 0 | H54: 0 | I54: 0 | J54: 0 | K54: 0 | M54: 0 | N54: 0 | O54: 0 | P54: 0 | Q54: 0 | R54: 0
B55: South East | C55: RenewalsNon PaySouth East | D55: X | E55: 0 | F55: 0 | G55: 0 | H55: 0 | I55: 0 | J55: 0 | K55: 0 | M55: 0 | N55: 0 | O55: 0 | P55: 0 | Q55: 0 | R55: 0
B56: South West | C56: RenewalsNon PaySouth West | D56: X | E56: 0 | F56: 0 | G56: 0 | H56: 0 | I56: 0 | J56: 0 | K56: 0 | M56: 0 | N56: 0 | O56: 0 | P56: 0 | Q56: 0 | R56: 0
B57: Yorkshire & North East | C57: RenewalsNon PayYorkshire & North East | D57: X | E57: 0 | F57: 0 | G57: 0 | H57: 0 | I57: 0 | J57: 0 | K57: 0 | M57: 0 | N57: 0 | O57: 0 | P57: 0 | Q57: 0 | R57: 0
B58: Non Pay Subtotal | D58: X | E58: 0 | F58: 0 | G58: 0 | H58: 0 | I58: 0 | J58: 0 | K58: 0 | M58: 0 | N58: 0 | O58: 0 | P58: 0 | Q58: 0 | R58: 0
A59: Projects
B60: Centrally Managed | C60: RenewalsProjectsCentrally Managed | D60: X | E60: 0.01961152 | F60: -1e-08 | G60: -1e-08 | H60: 0.083 | I60: 0 | J60: 0 | K60: 0 | M60: 0.01884235552 | N60: 4.867639 | O60: 0 | P60: 0 | Q60: 0 | R60: 4.886481356
B61: East | C61: RenewalsProjectsEast | D61: X | E61: 2.55025737 | F61: 0.87109622 | G61: 0.87109622 | H61: 0.41298789 | I61: 2.28516235 | J61: 1.5405 | K61: -0.74466235 | M61: 2.450236189 | N61: 2.56900018 | O61: 3.3 | P61: 0.105 | Q61: 1.5405 | R61: 9.964736369
B62: Midlands | C62: RenewalsProjectsMidlands | D62: X | E62: 6.11980911 | F62: 0.7854234 | G62: 0.7854234 | H62: 0.21045502 | I62: 0.22823036 | J62: 0.425 | K62: 0.19676964 | M62: 5.879789989 | N62: 5.45556008 | O62: 0.35 | P62: 0.35 | Q62: 0.425 | R62: 12.46035007
B63: North West | C63: RenewalsProjectsNorth West | D63: X | E63: 0.88525906 | F63: 0.58371821 | G63: 0.58371821 | H63: 1.50067098 | I63: 1.54000483 | J63: 2.16120108 | K63: 0.62119625 | M63: 0.8505391697 | N63: 0.06 | O63: 2.58729893 | P63: 2.80778341 | Q63: 2.16120108 | R63: 8.46682259
B64: South East | C64: RenewalsProjectsSouth East | D64: X | E64: 1.1395787 | F64: 1.96554712 | G64: 1.96554712 | H64: 2.54432825 | I64: 3.20874037 | J64: 3.2647966 | K64: 0.05605623 | M64: 1.094884385 | N64: 3.5 | O64: 4.59990869 | P64: 3.3382638 | Q64: 3.2647966 | R64: 15.79785347
B65: South West | C65: RenewalsProjectsSouth West | D65: X | E65: 2.88200904 | F65: 2.67412243 | G65: 2.67412243 | H65: 0.82779878 | I65: 2.56807965 | J65: 3.35 | K65: 0.78192035 | M65: 2.768976548 | N65: 2.3 | O65: 0.766941 | P65: 2.5 | Q65: 3.35 | R65: 11.68591755
